Workbook

Sheet Table1A List of required stocks
A1: Table1A: List of required stocks
L2: WP years | M2: 2017-2019
L3: AR year | M3: 2019
A4: MS | B4: Reference years | C4: Species | D4: Region | E4: RFMO/RFO/IO | F4: Area / Stock | G4: Selected for sampling (Y/N) | H4: Average landings in the reference years (tons) | I4: EU TAC (if any) (%) | J4: Share (%) in EU landings | K4: Threshold (Y/N) | L4: Comments | M4: Changes in species landings
A5: POL | B5: 2013-2015 | C5: Anguilla anguilla | D5: Baltic Sea | E5: ICES | F5: 22-32 | G5: Y | H5: <200 | J5: 8 | K5: N | L5: Shares in EU landings (column J) are based on the EU landings most recently uploaded by MS to the Regional Data Base (FishFrame) hosted by the ICES, which proved to be most reliable data source. Other available potential data source (e.g. FIDES, EUROSTAT) proved to be not reliable at the level of resolution required (stocks and/or areas).
A6: POL | B6: 2013-2015 | C6: Clupea harengus | D6: Baltic Sea | E6: ICES | F6: 22-24 | G6: Y | H6: 2720 | I6: 13 | K6: N | M6: -0.6
A7: POL | B7: 2013-2015 | C7: Clupea harengus | D7: Baltic Sea | E7: ICES | F7: 25-29 | G7: Y | H7: 27250 | I7: 25 | K7: N | M7: 0.45
A8: POL | B8: 2013-2015 | C8: Coregonus lavaretus | D8: Baltic Sea | E8: ICES | F8: IIId | G8: N | H8: <200 | J8: 3 | K8: Y
A9: POL | B9: 2013-2015 | C9: Coregonus albula | D9: Baltic Sea | E9: ICES | F9: 22-32 | G9: N | H9: None | J9: None | K9: Y
A10: POL | B10: 2013-2015 | C10: Gadus morhua | D10: Baltic Sea | E10: ICES | F10: 22-24 | G10: Y | H10: 780 | I10: 12 | K10: N | M10: 0.3
A11: POL | B11: 2013-2015 | C11: Gadus morhua | D11: Baltic Sea | E11: ICES | F11: 25-32 | G11: Y | H11: 11950 | I11: 26 | K11: N | M11: -0.72
A12: POL | B12: 2013-2015 | C12: Limanda limanda | D12: Baltic Sea | E12: ICES | F12: 22-32 | G12: N | H12: None | J12: None | K12: Y
A13: POL | B13: 2013-2015 | C13: Perca fluviatilis | D13: Baltic Sea | E13: ICES | F13: IIId | G13: Y | H13: 990 | J13: 26 | K13: N | M13: 0.12
A14: POL | B14: 2013-2015 | C14: Platichthys flesus | D14: Baltic Sea | E14: ICES | F14: 22-32 | G14: Y | H14: 11250 | J14: 60 | K14: N | M14: 0.49
A15: POL | B15: 2013-2015 | C15: Pleuronectes platessa | D15: Baltic Sea | E15: ICES | F15: 22-32 | G15: Y | H15: <200 | I15: 15 | K15: N
A16: POL | B16: 2013-2015 | C16: Psetta maxima | D16: Baltic Sea | E16: ICES | F16: 22-32 | G16: Y | H16: <200 | J16: 20 | K16: N
A17: POL | B17: 2013-2015 | C17: Salmo salar | D17: Baltic Sea | E17: ICES | F17: 22-31 | G17: Y | H17: <200 | I17: 6 | K17: N
A18: POL | B18: 2013-2015 | C18: Salmo trutta | D18: Baltic Sea | E18: ICES | F18: 22-32 | G18: Y | H18: <200 | J18: 54 | K18: N
A19: POL | B19: 2013-2015 | C19: Sander lucioperca | D19: Baltic Sea | E19: ICES | F19: IIId | G19: Y | H19: 320 | J19: 29 | K19: N | M19: 0.5
A20: POL | B20: 2013-2015 | C20: Scophthalmus rhombus | D20: Baltic Sea | E20: ICES | F20: 22-32 | G20: N | H20: None | J20: None | K20: Y
A21: POL | B21: 2013-2015 | C21: Sprattus sprattus | D21: Baltic Sea | E21: ICES | F21: 22-32 | G21: Y | H21: 67600 | I21: 29 | K21: N | M21: 0.1
A23: POL | B23: 2013-2015 | C23: Brosme brosme | D23: North Sea and Eastern Arctic | E23: ICES | F23: I, II | G23: N | H23: <200 | I23: None | J23: 2 | K23: Y
A24: POL | B24: 2013-2015 | C24: Clupea harengus | D24: North Sea and Eastern Arctic | E24: ICES | F24: I, II | G24: N | H24: None | I24: 1.7 | J24: None | K24: Y
A25: POL | B25: 2013-2015 | C25: Gadus morhua | D25: North Sea and Eastern Arctic | E25: ICES | F25: I, II | G25: Y | H25: 5100 | I25: 8.2 | J25: 14 | K25: N | M25: -0.48
A26: POL | B26: 2013-2015 | C26: Melanogrammus aeglefinus | D26: North Sea and Eastern Arctic | E26: ICES | F26: I, II | G26: Y | H26: 280 | I26: None | J26: 15 | K26: N | M26: -0.68
A27: POL | B27: 2013-2015 | C27: Micromesistius potassou | D27: North Sea and Eastern Arctic | E27: ICES | F27: I, II | G27: N | H27: None | I27: None | J27: None | K27: Y
A28: POL | B28: 2013-2015 | C28: Pollachius virens | D28: North Sea and Eastern Arctic | E28: ICES | F28: I, II | G28: Y | H28: 380 | I28: None | J28: 21 | K28: N | M28: -0.88
A29: POL | B29: 2013-2015 | C29: Reinhardtius hippoglossoides | D29: North Sea and Eastern Arctic | E29: ICES | F29: I, II | G29: N | H29: <200 | I29: None | J29: 4 | K29: Y
A30: POL | B30: 2013-2015 | C30: Scomber scombrus | D30: North Sea and Eastern Arctic | E30: ICES | F30: II | G30: N | H30: None | I30: None | J30: None | K30: Y
A31: POL | B31: 2013-2015 | C31: Sebastes mentella | D31: North Sea and Eastern Arctic | E31: ICES | F31: I, II | G31: N | H31: <200 | I31: None | J31: 2 | K31: Y
A32: POL | B32: 2013-2015 | C32: Sebastes marinus | D32: North Sea and Eastern Arctic | E32: ICES | F32: I, II | G32: N | H32: <200 | I32: None | K32: Y | L32: Average landing 16 t (as a by-catch only). EU Landing data not available
A34: POL | B34: 2013-2015 | C34: Brachydeuterus auritus | D34: Other regions | E34: CECAF | F34: 34.3.1 | G34: N | H34: <200 | J34: N.A. | K34: Y | L34: No reliable data source on EU landings available at present (see comments above). Selection for sampling stemming from international obligations and based on the Multi-lateral agreement for biological data collection of pelagic fisheries in CECAF waters and on the Sampling Protocol - “Biological Data Collection of pelagic fisheries in CECAF waters in compliance with the DCF, version 28/04/2011”. ( http://dcf.mir.gdynia.pl/?page_id=367 )
A35: POL | B35: 2013-2015 | C35: Dentex spp. | D35: Other regions | E35: CECAF | F35: 34.3.1 | G35: N | H35: <200 | J35: N.A. | K35: Y
A36: POL | B36: 2013-2015 | C36: Engraulis encrasicolus | D36: Other regions | E36: CECAF | F36: 34.1.3 | G36: N | H36: <200 | J36: N.A. | K36: Y
A37: POL | B37: 2013-2015 | C37: Merluccius merluccius | D37: Other regions | E37: CECAF | F37: 34.1.3 | G37: N | H37: <200 | J37: N.A. | K37: Y
A38: POL | B38: 2013-2015 | C38: Merluccius merluccius | D38: Other regions | E38: CECAF | F38: 34.3.1 | G38: N | H38: <200 | J38: N.A. | K38: Y
A39: POL | B39: 2013-2015 | C39: Merluccius senegalensis | D39: Other regions | E39: CECAF | F39: 34.1.3 | G39: N | H39: None | J39: N.A. | K39: Y
A40: POL | B40: 2013-2015 | C40: Sardinella aurita | D40: Other regions | E40: CECAF | F40: 34.1.3 | G40: Y | H40: 2730 | J40: N.A. | K40: N
A41: POL | B41: 2013-2015 | C41: Sardinella aurita | D41: Other regions | E41: CECAF | F41: 34.3.1 | G41: Y | H41: 3500 | J41: N.A. | K41: N
A42: POL | B42: 2013-2015 | C42: Sardina pilchardus | D42: Other regions | E42: CECAF | F42: 34.1.3 | G42: Y | H42: 690 | J42: N.A. | K42: N
A43: POL | B43: 2013-2015 | C43: Scomber spp. | D43: Other regions | E43: CECAF | F43: 34.1.3 | G43: Y | H43: 3241 | J43: N.A. | K43: N
A44: POL | B44: 2013-2015 | C44: Scomber spp. | D44: Other regions | E44: CECAF | F44: 34.3.1 | G44: Y | H44: 570 | J44: N.A. | K44: N
A45: POL | B45: 2013-2015 | C45: Sparus spp. | D45: Other regions | E45: CECAF | F45: 34.1.3 | G45: N | H45: None | J45: N.A. | K45: Y
A46: POL | B46: 2013-2015 | C46: Trachurus trachurus | D46: Other regions | E46: CECAF | F46: 34.1.3 | G46: Y | H46: 11230 | J46: N.A. | K46: N
A47: POL | B47: 2013-2015 | C47: Trachurus trachurus | D47: Other regions | E47: CECAF | F47: 34.3.1 | G47: Y | H47: 3380 | J47: N.A. | K47: N
A49: POL | B49: 2013-2015 | C49: Trachurus murphyi | D49: Other regions | E49: SPRFMO | F49: SPRFMO Convention Area | G49: Y | H49: None | I49: 30 | J49: None | K49: N | L49: Selection for sampling stemming from international obligations and based on Sampling protocol "Manual for scientific observers on board EU pelagic trawlers in the Pacific" in accordance with the SPRFMO Data Standards (Most recent Data Standards available at: https://www.sprfmo.int/assets/Fisheries/Conservation-and-Management-Measures/CMM-4.02-Data-Standards-2016-4Mar2016.pdf or at: http://dcf.mir.gdynia.pl/?page_id=367 )

Sheet Table1B Planning of sampling
A1: Table 1B: Planning of sampling for biological variables
R2: WP years | Y2: 2017-2019
R3: AR year | Y3: 2019
A4: MS | B4: Species | C4: Region | D4: RFMO/RFO/IO | E4: Area / Stock | F4: Frequency | G4: Length | J4: Age | M4: Weight | P4: Sex ratio | S4: Sexual maturity | V4: Fecundity | Y4: Comments
G5: 2017 | H5: 2018 | I5: 2019 | J5: 2017 | K5: 2018 | L5: 2019 | M5: 2017 | N5: 2018 | O5: 2019 | P5: 2017 | Q5: 2018 | R5: 2019 | S5: 2017 | T5: 2018 | U5: 2019 | V5: 2017 | W5: 2018 | X5: 2019
A6: POL | B6: Anguilla anguilla | C6: Baltic Sea | D6: ICES | E6: 22-32 | F6: A | G6: X | H6: X | I6: X | J6: X | K6: X | L6: X | M6: X | N6: X | O6: X | P6: X | Q6: X | R6: X
A7: POL | B7: Clupea harengus | C7: Baltic Sea | D7: ICES | E7: 22-24 | F7: Q | G7: X | H7: X | I7: X | J7: X | K7: X | L7: X | M7: X | N7: X | O7: X | P7: X | Q7: X | R7: X | S7: X | T7: X | U7: X
A8: POL | B8: Clupea harengus | C8: Baltic Sea | D8: ICES | E8: 25-29 | F8: Q | G8: X | H8: X | I8: X | J8: X | K8: X | L8: X | M8: X | N8: X | O8: X | P8: X | Q8: X | R8: X | S8: X | T8: X | U8: X
A9: POL | B9: Gadus morhua | C9: Baltic Sea | D9: ICES | E9: 22-24 | F9: Q | G9: X | H9: X | I9: X | J9: X | K9: X | L9: X | M9: X | N9: X | O9: X | P9: X | Q9: X | R9: X | S9: X | T9: X | U9: X
A10: POL | B10: Gadus morhua | C10: Baltic Sea | D10: ICES | E10: 25-32 | F10: Q | G10: X | H10: X | I10: X | J10: X | K10: X | L10: X | M10: X | N10: X | O10: X | P10: X | Q10: X | R10: X | S10: X | T10: X | U10: X
A11: POL | B11: Perca fluviatilis | C11: Baltic Sea | D11: ICES | E11: IIId | F11: A | G11: X | H11: X | I11: X | J11: X | K11: X | L11: X | M11: X | N11: X | O11: X | P11: X | Q11: X | R11: X | S11: X | T11: X | U11: X
A12: POL | B12: Platichthys flesus | C12: Baltic Sea | D12: ICES | E12: 22-32 | F12: Q | G12: X | H12: X | I12: X | J12: X | K12: X | L12: X | M12: X | N12: X | O12: X | P12: X | Q12: X | R12: X | S12: X | T12: X | U12: X
A13: POL | B13: Pleuronectes platessa | C13: Baltic Sea | D13: ICES | E13: 22-32 | F13: Q | G13: X | H13: X | I13: X | J13: X | K13: X | L13: X | M13: X | N13: X | O13: X | P13: X | Q13: X | R13: X | S13: X | T13: X | U13: X
A14: POL | B14: Psetta maxima | C14: Baltic Sea | D14: ICES | E14: 22-32 | F14: Q | G14: X | H14: X | I14: X | J14: X | K14: X | L14: X | M14: X | N14: X | O14: X | P14: X | Q14: X | R14: X | S14: X | T14: X | U14: X
A15: POL | B15: Salmo salar | C15: Baltic Sea | D15: ICES | E15: 22-31 | F15: A | G15: X | H15: X | I15: X | J15: X | K15: X | L15: X | M15: X | N15: X | O15: X | P15: X | Q15: X | R15: X
A16: POL | B16: Salmo trutta | C16: Baltic Sea | D16: ICES | E16: 22-32 | F16: A | G16: X | H16: X | I16: X | J16: X | K16: X | L16: X | M16: X | N16: X | O16: X | P16: X | Q16: X | R16: X
A17: POL | B17: Sander lucioperca | C17: Baltic Sea | D17: ICES | E17: IIId | F17: A | G17: X | H17: X | I17: X | J17: X | K17: X | L17: X | M17: X | N17: X | O17: X | P17: X | Q17: X | R17: X | S17: X | T17: X | U17: X
A18: POL | B18: Sprattus sprattus | C18: Baltic Sea | D18: ICES | E18: 22-32 | F18: Q | G18: X | H18: X | I18: X | J18: X | K18: X | L18: X | M18: X | N18: X | O18: X | P18: X | Q18: X | R18: X | S18: X | T18: X | U18: X
A20: POL | B20: Gadus morhua | C20: North Sea and Eastern Arctic | D20: ICES | E20: I, II | F20: A | G20: X | H20: X | I20: X | J20: X | K20: X | L20: X | M20: X | N20: X | O20: X | P20: X | Q20: X | R20: X | S20: X | T20: X | U20: X
A21: POL | B21: Melanogrammus aeglefinus | C21: North Sea and Eastern Arctic | D21: ICES | E21: I, II | F21: A | G21: X | H21: X | I21: X | J21: X | K21: X | L21: X | M21: X | N21: X | O21: X | P21: X | Q21: X | R21: X | S21: X | T21: X | U21: X
A22: POL | B22: Pollachius virens | C22: North Sea and Eastern Arctic | D22: ICES | E22: I, II | F22: A | G22: X | H22: X | I22: X | J22: X | K22: X | L22: X | M22: X | N22: X | O22: X | P22: X | Q22: X | R22: X | S22: X | T22: X | U22: X
A24: POL | B24: Sardinella aurita | C24: Other regions | D24: CECAF | E24: 34.1.3 | F24: Q | G24: X | H24: X | I24: X | M24: X | N24: X | O24: X | P24: X | Q24: X | R24: X | S24: X | T24: X | U24: X
A25: POL | B25: Sardinella aurita | C25: Other regions | D25: CECAF | E25: 34.3.1 | F25: Q | G25: X | H25: X | I25: X | M25: X | N25: X | O25: X | P25: X | Q25: X | R25: X | S25: X | T25: X | U25: X
A26: POL | B26: Sardina pilchardus | C26: Other regions | D26: CECAF | E26: 34.1.3 | F26: Q | G26: X | H26: X | I26: X | M26: X | N26: X | O26: X | P26: X | Q26: X | R26: X | S26: X | T26: X | U26: X
A27: POL | B27: Scomber spp. | C27: Other regions | D27: CECAF | E27: 34.1.3 | F27: Q | G27: X | H27: X | I27: X | M27: X | N27: X | O27: X | P27: X | Q27: X | R27: X | S27: X | T27: X | U27: X
A28: POL | B28: Scomber spp. | C28: Other regions | D28: CECAF | E28: 34.3.1 | F28: Q | G28: X | H28: X | I28: X | M28: X | N28: X | O28: X | P28: X | Q28: X | R28: X | S28: X | T28: X | U28: X
A29: POL | B29: Trachurus trachurus | C29: Other regions | D29: CECAF | E29: 34.1.3 | F29: Q | G29: X | H29: X | I29: X | M29: X | N29: X | O29: X | P29: X | Q29: X | R29: X | S29: X | T29: X | U29: X
A30: POL | B30: Trachurus trachurus | C30: Other regions | D30: CECAF | E30: 34.3.1 | F30: Q | G30: X | H30: X | I30: X | M30: X | N30: X | O30: X | P30: X | Q30: X | R30: X | S30: X | T30: X | U30: X
A32: POL | B32: Trachurus murphyi | C32: Other regions | D32: SPRFMO | E32: SPRFMO Convention Area | F32: A | G32: X | H32: X | I32: X | J32: X | K32: X | L32: X | P32: X | Q32: X | R32: X | S32: X | T32: X | U32: X

Sheet Table1C Sampling intensity
A1: Table 1C: Sampling intensity for biological variables
P2: WP years | Q2: 2017-2019
P3: AR year | Q3: 2019
A4: MS | B4: MS partcipating in sampling | C4: Sampling year | D4: Species | E4: Region | F4: RFMO/RFO/IO | G4: Area / Stock | H4: Variables | I4: Data sources | J4: Planned minimum no of individuals to be measured at the national level | K4: Planned minimum no of individuals to be measured at the regional level | L4: Comments | M4: Achieved number of individuals measured at the national level | N4: % of achievement (100*M/J) | O4: Achieved number of samples | P4: Sampling protocol | Q4: AR Comments
A5: POL | B5: POL | C5: 2017 -2019 | D5: Anguilla anguilla | E5: Baltic Sea | F5: ICES | G5: 22-32 | H5: length | I5: Commercial | J5: all fish caught per haul | K5: NA | M5: 447 | N5: 94.5593 | O5: 16 | P5: all fish caught per haul | Q5: %of achievement = no of fish measured / no of fish in the catch
A6: POL | B6: POL | C6: 2017 -2019 | D6: Anguilla anguilla | E6: Baltic Sea | F6: ICES | G6: 22-32 | H6: age, weight, sex | I6: Commercial | J6: 200 per eel management unit | K6: NA | M6: 354 | N6: 88.5 | O6: 4 | P6: 200 per eel management unit | Q6: %of achievement = no of fish aged / 400 eel (2 management units)
A7: POL | B7: POL | C7: 2017 -2019 | D7: Anguilla anguilla | E7: Baltic Sea | F7: ICES | G7: 22-32 | H7: length | I7: Surveys | J7: all fish caught per haul | K7: NA | M7: 276 | N7: 100 | O7: 78 | P7: all fish caught per haul | Q7: %of achievement = no of fish measured / no of fish in the catch
A8: POL | B8: POL | C8: 2017 -2019 | D8: Anguilla anguilla | E8: Baltic Sea | F8: ICES | G8: 22-32 | H8: age, weight, sex | I8: Surveys | J8: all fish caught per haul | K8: NA | M8: 276 | N8: 100 | O8: 78 | P8: all fish caught per haul | Q8: %of achievement = no of fish aged / no of fish in the catch
A9: POL | B9: POL | C9: 2017 -2019 | D9: Clupea harengus | E9: Baltic Sea | F9: ICES | G9: 22-24 | H9: length | I9: Commercial at sea | J9: 200 fish per haul | K9: NA | M9: 1195 | N9: 119.5 | O9: 8 | P9: 200 fish per haul | Q9: Planned no of fish = 200 * no of samples from trips targeting herring
A10: POL | B10: POL | C10: 2017 -2019 | D10: Clupea harengus | E10: Baltic Sea | F10: ICES | G10: 22-24 | H10: age, weight, sex, maturity | I10: Commercial at sea | J10: 4 per 0.5 cm per haul | K10: NA | M10: 331 | N10: 120.2 | O10: 7 | P10: 4 per 0.5 cm per haul | Q10: Planned no of fish = 4 individuals or no at length if less than 4, summed up for all trips targeting herring, subdivisions and length classes
A11: POL | B11: POL | C11: 2017 -2019 | D11: Clupea harengus | E11: Baltic Sea | F11: ICES | G11: 22-24 | H11: length | I11: Commercial on shore | J11: 200 fish from the last haul | K11: NA | M11: 1141 | N11: 95.08333333 | O11: 7 | P11: 200 fish from the last haul | Q11: Planned no of fish = 200 * no of samples from trips targeting herring
A12: POL | B12: POL | C12: 2017 -2019 | D12: Clupea harengus | E12: Baltic Sea | F12: ICES | G12: 22-24 | H12: age, weight, sex, maturity | I12: Commercial on shore | J12: 4 per 0.5 cm from the last haul | K12: NA | M12: 351 | N12: 113.6 | O12: 6 | P12: 4 per 0.5 cm from the last haul | Q12: Planned no of fish = 4 individuals or no at length if less than 4, summed up for all trips targeting herring, subdivisions and length classes
A13: POL | B13: POL | C13: 2017 -2019 | D13: Clupea harengus | E13: Baltic Sea | F13: ICES | G13: 22-24 | H13: length | I13: Surveys | J13: 200 fish per haul | K13: NA | L13: According to IBAS & BITS Surveys Manuals ( http://dcf.mir.gdynia.pl/?page_id=367 ) | M13: 715 | N13: 100.4213483 | O13: 4 | P13: 200 fish per haul | Q13: Planned no of fish = 200 individuals or estimated no of fish in the catch if less than 200, summed up for all samples
A14: POL | B14: POL | C14: 2017 -2019 | D14: Clupea harengus | E14: Baltic Sea | F14: ICES | G14: 22-24 | H14: age, weight, sex, maturity | I14: Surveys | J14: 5-10 per 0.5 cm per haul | K14: NA | M14: 149 | N14: 97.38562092 | O14: 4 | P14: 5-10 per 0.5 cm per haul | Q14: Planned no of fish = no of fish aged if between 5 and 10; 5 individuals or no of fish measured if less than 5; 10 individuals if no of fish aged greater than 10, summed up for all trips, subdivisions and length classes
A15: POL | B15: POL | C15: 2017 -2019 | D15: Clupea harengus | E15: Baltic Sea | F15: ICES | G15: 25-29 | H15: length | I15: Commercial at sea | J15: 200 fish per haul | K15: NA | M15: 3402 | N15: 189 | O15: 41 | P15: 200 fish per haul | Q15: Planned no of fish = 200 * no of samples from trips targeting herring
A16: POL | B16: POL | C16: 2017 -2019 | D16: Clupea harengus | E16: Baltic Sea | F16: ICES | G16: 25-29 | H16: age, weight, sex, maturity | I16: Commercial at sea | J16: 4 per 0.5 cm per haul per ICES Sub-Diivision | K16: NA | M16: 880 | N16: 101.9 | O16: 23 | P16: 4 per 0.5 cm per haul per ICES Sub-Diivision | Q16: Planned no of fish = 4 individuals or no at length if less than 4, summed up for all trips targeting herring, subdivisions and length classes
A17: POL | B17: POL | C17: 2017 -2019 | D17: Clupea harengus | E17: Baltic Sea | F17: ICES | G17: 25-29 | H17: length | I17: Commercial on shore | J17: 200 fish from the last haul | K17: NA | M17: 2113 | N17: 96.04545455 | O17: 11 | P17: 200 fish from the last haul | Q17: Planned no of fish = 200 * no of samples from trips targeting herring
A18: POL | B18: POL | C18: 2017 -2019 | D18: Clupea harengus | E18: Baltic Sea | F18: ICES | G18: 25-29 | H18: age, weight, sex, maturity | I18: Commercial on shore | J18: 4 per 0.5 cm from the last haul | K18: NA | M18: 623 | N18: 107.2289157 | O18: 11 | P18: 4 per 0.5 cm from the last haul | Q18: Planned no of fish = 4 individuals or no at length if less than 4, summed up for all trips targeting herring, subdivisions and length classes
A19: POL | B19: POL | C19: 2017 -2019 | D19: Clupea harengus | E19: Baltic Sea | F19: ICES | G19: 25-29 | H19: length | I19: Surveys | J19: 200 fish per haul | K19: NA | L19: According to IBAS & BITS Surveys Manuals (http://dcf.mir.gdynia.pl/?page_id=367 ) | M19: 24418 | N19: 90.00110258 | O19: 169 | P19: 200 fish per haul | Q19: Planned no of fish = 200 individuals or estimated no of fish in the catch if less than 200, summed up for all samples
A20: POL | B20: POL | C20: 2017 -2019 | D20: Clupea harengus | E20: Baltic Sea | F20: ICES | G20: 25-29 | H20: age, weight, sex, maturity | I20: Surveys | J20: 5-10 per 0.5 cm per haul | K20: NA | M20: 3158 | N20: 144.2009132 | O20: 144 | P20: 5-10 per 0.5 cm per haul | Q20: Planned no of fish = no of fish aged if between 5 and 10; 5 individuals or no of fish measured if less than 5; 10 individuals if no of fish aged greater than 10, summed up for all trips, subdivisions and length classes
A21: POL | B21: POL | C21: 2017 -2019 | D21: Gadus morhua | E21: Baltic Sea | F21: ICES | G21: 22-24 | H21: length | I21: Commercial at sea | J21: 5 boxes per haul | K21: NA | M21: 33 | N21: 2.184 | O21: 1 | P21: 5 boxes per haul | Q21: %of achievement = sum of sample weights / no of samples from trips targeting cod * 125kg(5 boxes)
A22: POL | B22: POL | C22: 2017 -2019 | D22: Gadus morhua | E22: Baltic Sea | F22: ICES | G22: 22-24 | H22: age, weight, sex, maturity | I22: Commercial at sea | J22: 5 per 1cm | K22: NA | M22: 0 | N22: 0 | O22: 0 | P22: 5 per 1cm | Q22: Planned no of fish = 5 individuals or no at length if less than 5, summed up for all trips targeting cod, subdivisions and length classes
A23: POL | B23: POL | C23: 2017 -2019 | D23: Gadus morhua | E23: Baltic Sea | F23: ICES | G23: 22-24 | H23: length | I23: Commercial on shore | J23: 2 boxes from the last haul | K23: NA | M23: 397 | N23: 116 | O23: 5 | P23: 2 boxes from the last haul | Q23: %of achievement = sum of sample weights / no of samples from trips targeting cod * 50kg(2 boxes)
A24: POL | B24: POL | C24: 2017 -2019 | D24: Gadus morhua | E24: Baltic Sea | F24: ICES | G24: 22-24 | H24: age, weight, sex, maturity | I24: Commercial on shore | J24: 4 per 1 cm | K24: NA | M24: 271 | N24: 118.6 | O24: 5 | P24: 4 per 1 cm | Q24: Planned no of fish = 4 individuals or no at length if less than 4, summed up for all trips targeting cod, subdivisions and length classes
A25: POL | B25: POL | C25: 2017 -2019 | D25: Gadus morhua | E25: Baltic Sea | F25: ICES | G25: 22-24 | H25: length | I25: Surveys | J25: 5 boxes per haul | K25: NA | L25: According to IBAS & BITS Surveys Manuals (http://dcf.mir.gdynia.pl/?page_id=367 ) | M25: 721 | N25: 100 | O25: 5 | P25: 5 boxes per haul | Q25: %of achievement = sum of sample weights / (125kg (5 boxes) or catch weight if less than 125kg summed up for all samples)
A26: POL | B26: POL | C26: 2017 -2019 | D26: Gadus morhua | E26: Baltic Sea | F26: ICES | G26: 22-24 | H26: age, weight, sex, maturity | I26: Surveys | J26: 5 per 1cm | K26: NA | M26: 185 | N26: 123.3333333 | O26: 5 | P26: 5 per 1cm | Q26: Planned no of fish = 5 individuals or no at length if less than 5, summed up for all trips, subdivisions and length classes
A27: POL | B27: POL | C27: 2017 -2019 | D27: Gadus morhua | E27: Baltic Sea | F27: ICES | G27: 25-32 | H27: length | I27: Commercial at sea | J27: 5 boxes per haul | K27: NA | M27: 3266 | N27: 89.18285714 | O27: 47 | P27: 5 boxes per haul | Q27: %of achievement = sum of sample weights / no of samples from trips targeting cod * 125kg(5 boxes)
A28: POL | B28: POL | C28: 2017 -2019 | D28: Gadus morhua | E28: Baltic Sea | F28: ICES | G28: 25-32 | H28: age, weight, sex, maturity | I28: Commercial at sea | J28: 5 per 1cm | K28: NA | M28: 654 | N28: 79.9 | O28: 14 | P28: 5 per 1cm | Q28: Planned no of fish = 5 individuals or no at length if less than 5, summed up for all trips targeting cod, subdivisions and length classes
A29: POL | B29: POL | C29: 2017 -2019 | D29: Gadus morhua | E29: Baltic Sea | F29: ICES | G29: 25-32 | H29: length | I29: Commercial on shore | J29: 2 boxes from the last haul | K29: NA | M29: 485 | N29: 90.92 | O29: 5 | P29: 2 boxes from the last haul | Q29: %of achievement = sum of sample weights / no of samples from trips targeting cod * 50kg(2 boxes)
A30: POL | B30: POL | C30: 2017 -2019 | D30: Gadus morhua | E30: Baltic Sea | F30: ICES | G30: 25-32 | H30: age, weight, sex, maturity | I30: Commercial on shore | J30: 4 per 1 cm | K30: NA | M30: 204 | N30: 116 | O30: 5 | P30: 4 per 1 cm | Q30: Planned no of fish = 4 individuals or no at length if less than 4, summed up for all trips targeting cod, subdivisions and length classes
A31: POL | B31: POL | C31: 2017 -2019 | D31: Gadus morhua | E31: Baltic Sea | F31: ICES | G31: 25-32 | H31: length | I31: Surveys | J31: 5 boxes per haul | K31: NA | L31: According to IBAS & BITS Surveys Manuals (http://dcf.mir.gdynia.pl/?page_id=367 ) | M31: 22185 | N31: 139.1927554 | O31: 141 | P31: 5 boxes per haul | Q31: %of achievement = sum of sample weights / (125kg (5 boxes) or catch weight if less than 125kg summed up for all samples)
A32: POL | B32: POL | C32: 2017 -2019 | D32: Gadus morhua | E32: Baltic Sea | F32: ICES | G32: 25-32 | H32: age, weight, sex, maturity | I32: Surveys | J32: 5 per 1cm per ICES Sub-Division | K32: NA | M32: 1542 | N32: 145.33459 | O32: 117 | P32: 5 per 1cm per ICES Sub-Division | Q32: Planned no of fish = 5 individuals or no at length if less than 5, summed up for all trips, subdivisions and length classes
A33: POL | B33: POL | C33: 2017 -2019 | D33: Perca fluviatilis | E33: Baltic Sea | F33: ICES | G33: IIId | H33: length | I33: Commercial | J33: 1 box per haul | K33: NA | M33: 1580 | N33: 48.68 | O33: 25 | P33: 1 box per haul | Q33: %of achievement = sum of sample weights / no of samples from trips targeting perch * 25kg(1 box)
A34: POL | B34: POL | C34: 2017 -2019 | D34: Perca fluviatilis | E34: Baltic Sea | F34: ICES | G34: IIId | H34: age, weight, sex, maturity | I34: Commercial | J34: 5 per 1 cm per fishing ground | K34: NA | M34: 558 | N34: 276.2376238 | O34: 24 | P34: 5 per 1 cm per fishing ground | Q34: Planned no of fish = 5 individuals or no at length if less than 5, summed up for all subdivisions and length classes from trips targeting perch
A35: POL | B35: POL | C35: 2017 -2019 | D35: Platichthys flesus | E35: Baltic Sea | F35: ICES | G35: 22-32 | H35: length | I35: Commercial at sea | J35: 1 box per haul | K35: NA | M35: 4409 | N35: 173.7866667 | O35: 60 | P35: 1 box per haul | Q35: %of achievement = sum of sample weights / no of samples from trips targeting flounder * 25kg(1 box)
A36: POL | B36: POL | C36: 2017 -2019 | D36: Platichthys flesus | E36: Baltic Sea | F36: ICES | G36: 22-32 | H36: age, weight, sex, maturity | I36: Commercial at sea | J36: 5 per 1 cm | K36: NA | M36: 680 | N36: 83.5 | O36: 15 | P36: 5 per 1 cm | Q36: Planned no of fish = 5 individuals or no at length if less than 5, summed up for all trips targeting flounder, subdivisions and length classes
A37: POL | B37: POL | C37: 2017 -2019 | D37: Platichthys flesus | E37: Baltic Sea | F37: ICES | G37: 22-32 | H37: length | I37: Commercial on shore | J37: 1 box from the last haul | K37: NA | M37: 1184 | N37: 107.2888889 | O37: 10 | P37: 1 box from the last haul | Q37: %of achievement = sum of sample weights / no of samples from trips targeting flounder * 25kg(1 box)
A38: POL | B38: POL | C38: 2017 -2019 | D38: Platichthys flesus | E38: Baltic Sea | F38: ICES | G38: 22-32 | H38: age, weight, sex, maturity | I38: Commercial on shore | J38: 5 per 1 cm | K38: NA | M38: 540 | N38: 100 | O38: 10 | P38: 5 per 1 cm | Q38: Planned no of fish = 5 individuals or no at length if less than 5, summed up for all trips targeting flounder, subdivisions and length classes
A39: POL | B39: POL | C39: 2017 -2019 | D39: Platichthys flesus | E39: Baltic Sea | F39: ICES | G39: 22-32 | H39: length | I39: Surveys | J39: 1 box per haul per ICES Sub-Division | K39: NA | L39: According to BITS Surveys Manual (http://dcf.mir.gdynia.pl/?page_id=367) | M39: 13176 | N39: 110.5791185 | O39: 135 | P39: 1 box per haul per ICES Sub-Division | Q39: %of achievement = sum of sample weights / (25kg (1 box) or catch weight if less than 25kg summed up for all samples)
A40: POL | B40: POL | C40: 2017 -2019 | D40: Platichthys flesus | E40: Baltic Sea | F40: ICES | G40: 22-32 | H40: age, weight, sex, maturity | I40: Surveys | J40: 10 per 1cm per sex per ICES Sub-Division | K40: NA | M40: 1713 | N40: 96.23595506 | O40: 124 | P40: 10 per 1cm per sex per ICES Sub-Division | Q40: Planned no of fish = 10 individuals or no at length if less than 10, summed up for all trips, subdivisions, sex and length classes
A41: POL | B41: POL | C41: 2017 -2019 | D41: Pleuronectes platessa | E41: Baltic Sea | F41: ICES | G41: 22-32 | H41: length | I41: Commercial at sea | J41: all fish caught per haul | K41: NA | L41: no directed fishery (bycatch in cod and flounder fisheries) | M41: 158 | N41: 7.0217 | O41: 17 | P41: all fish caught per haul | Q41: %of achievement = sum of sample weights / sum of catch weights of plaice
A42: POL | B42: POL | C42: 2017 -2019 | D42: Pleuronectes platessa | E42: Baltic Sea | F42: ICES | G42: 22-32 | H42: age, weight, sex, maturity | I42: Commercial at sea | J42: all fish caught per haul | K42: NA | M42: 13 | N42: 8.227848101 | O42: 4 | P42: all fish caught per haul | Q42: %of achievement = no of fish aged / estimated no of fish in the catch
A43: POL | B43: POL | C43: 2017 -2019 | D43: Pleuronectes platessa | E43: Baltic Sea | F43: ICES | G43: 22-32 | H43: length | I43: Surveys | J43: all fish caught per haul | K43: NA | L43: According to BITS Surveys Manual (http://dcf.mir.gdynia.pl/?page_id=367) | M43: 2367 | N43: 99.89772716 | O43: 103 | P43: all fish caught per haul | Q43: %of achievement = sum of sample weights / sum of catch weights
A44: POL | B44: POL | C44: 2017 -2019 | D44: Pleuronectes platessa | E44: Baltic Sea | F44: ICES | G44: 22-32 | H44: age, weight, sex, maturity | I44: Surveys | J44: all fish caught per haul | K44: NA | M44: 1117 | N44: 47.19053654 | O44: 97 | P44: all fish caught per haul | Q44: %of achievement = no of fish aged / no of fish measured
A45: POL | B45: POL | C45: 2017 -2019 | D45: Psetta maxima | E45: Baltic Sea | F45: ICES | G45: 22-32 | H45: length | I45: Commercial at sea | J45: all fish caught per haul | K45: NA | L45: no directed fishery (bycatch in cod and flounder fisheries) | M45: 52 | N45: 100 | O45: 6 | P45: all fish caught per haul | Q45: %of achievement = sum of sample weights / sum of catch weights of turbot
A46: POL | B46: POL | C46: 2017 -2019 | D46: Psetta maxima | E46: Baltic Sea | F46: ICES | G46: 22-32 | H46: age, weight, sex, maturity | I46: Commercial at sea | J46: all fish caught per haul | K46: NA | M46: 0 | N46: 0 | O46: 0 | P46: all fish caught per haul | Q46: %of achievement = no of fish aged / estimated no of fish in the catch
A47: POL | B47: POL | C47: 2017 -2019 | D47: Psetta maxima | E47: Baltic Sea | F47: ICES | G47: 22-32 | H47: length | I47: Surveys | J47: all fish caught per haul | K47: NA | L47: According to BITS Surveys Manual (http://dcf.mir.gdynia.pl/?page_id=367) | M47: 86 | N47: 100 | O47: 36 | P47: all fish caught per haul | Q47: %of achievement = sum of sample weights / sum of catch weights
A48: POL | B48: POL | C48: 2017 -2019 | D48: Psetta maxima | E48: Baltic Sea | F48: ICES | G48: 22-32 | H48: age, weight, sex, maturity | I48: Surveys | J48: all fish caught per haul | K48: NA | M48: 86 | N48: 100 | O48: 36 | P48: all fish caught per haul | Q48: %of achievement = no of fish aged / no of fish measured
A49: POL | B49: POL | C49: 2017 -2019 | D49: Salmo salar | E49: Baltic Sea | F49: ICES | G49: 22-31 | H49: length | I49: Commercial | J49: all fish caught per haul | K49: NA | M49: 1 | N49: 100 | O49: 1 | P49: all fish caught per haul | Q49: %of achievement = sum of sample weights / sum of catch weights of salmon
A50: POL | B50: POL | C50: 2017 -2019 | D50: Salmo salar | E50: Baltic Sea | F50: ICES | G50: 22-31 | H50: age, weight, sex | I50: Commercial | J50: 5 per 1 cm per year | K50: NA | M50: 0 | N50: 0 | O50: 0 | P50: 5 per 1 cm per year | Q50: Planned no of fish = 5 individuals or no at length if less than 5, summed up for whole year and all length classes
A51: POL | B51: POL | C51: 2017 -2019 | D51: Salmo trutta | E51: Baltic Sea | F51: ICES | G51: 22-32 | H51: length | I51: Commercial | J51: all fish caught per haul | K51: NA | M51: 66 | N51: 100 | O51: 29 | P51: all fish caught per haul | Q51: %of achievement = sum of sample weights / sum of catch weights of sea trout
A52: POL | B52: POL | C52: 2017 -2019 | D52: Salmo trutta | E52: Baltic Sea | F52: ICES | G52: 22-32 | H52: age, weight, sex | I52: Commercial | J52: 5 per 1 cm per year | K52: NA | M52: 63 | N52: 100 | O52: 28 | P52: 5 per 1 cm per year | Q52: Planned no of fish = 5 individuals or no at length if less than 5, summed up for whole year and all length classes
A53: POL | B53: POL | C53: 2017 -2019 | D53: Sander lucioperca | E53: Baltic Sea | F53: ICES | G53: IIId | H53: length | I53: Commercial | J53: 5 box per haul | K53: NA | M53: 876 | N53: 35.204 | O53: 23 | P53: 5 box per haul | Q53: %of achievement = sum of sample weights / no of samples from trips targeting pike-perch * 125kg(5 boxes)
A54: POL | B54: POL | C54: 2017 -2019 | D54: Sander lucioperca | E54: Baltic Sea | F54: ICES | G54: IIId | H54: age, weight, sex, maturity | I54: Commercial | J54: 5 per 1 cm per fishing ground | K54: NA | M54: 422 | N54: 131.4641745 | O54: 22 | P54: 5 per 1 cm per fishing ground | Q54: Planned no of fish = 5 individuals or no at length if less than 5, summed up for all subdivisions and length classes from trips targeting pike-perch
A55: POL | B55: POL | C55: 2017 -2019 | D55: Sprattus sprattus | E55: Baltic Sea | F55: ICES | G55: 22-32 | H55: length | I55: Commercial at sea | J55: 200 fish per haul | K55: NA | M55: 8598 | N55: 122.8285714 | O55: 41 | P55: 200 fish per haul | Q55: Planned no of fish = 200 * no of samples from trips targeting sprat
A56: POL | B56: POL | C56: 2017 -2019 | D56: Sprattus sprattus | E56: Baltic Sea | F56: ICES | G56: 22-32 | H56: age, weight, sex, maturity | I56: Commercial at sea | J56: 5-10 per 0.5 cm per haul per ICES Sub-Diivision | K56: NA | M56: 2076 | N56: 98.6 | O56: 30 | P56: 5-10 per 0.5 cm per haul per ICES Sub-Diivision | Q56: Planned no of fish = no of fish aged if between 5 and 10; 5 individuals or no of fish measured if less than 5; 10 individuals if no of fish aged greater than 10, summed up for all trips targeting sprat, subdivisions and length classes
A57: POL | B57: POL | C57: 2017 -2019 | D57: Sprattus sprattus | E57: Baltic Sea | F57: ICES | G57: 22-32 | H57: length | I57: Commercial on shore | J57: 200 fish from the last haul | K57: NA | M57: 216 | N57: 108 | O57: 1 | P57: 200 fish from the last haul | Q57: Planned no of fish = 200 * no of samples from trips targeting sprat
A58: POL | B58: POL | C58: 2017 -2019 | D58: Sprattus sprattus | E58: Baltic Sea | F58: ICES | G58: 22-32 | H58: age, weight, sex, maturity | I58: Commercial on shore | J58: 5-10 per 0.5 cm from the last haul | K58: NA | M58: 63 | N58: 100 | O58: 1 | P58: 5-10 per 0.5 cm from the last haul | Q58: Planned no of fish = no of fish aged if between 5 and 10; 5 individuals or no of fish measured if less than 5; 10 individuals if no of fish aged greater than 10, summed up for all trips targeting sprat, subdivisions and length classes
A59: POL | B59: POL | C59: 2017 -2019 | D59: Sprattus sprattus | E59: Baltic Sea | F59: ICES | G59: 22-32 | H59: length | I59: Surveys | J59: 200 fish per haul | K59: NA | L59: According to BITS Surveys Manual (http://dcf.mir.gdynia.pl/?page_id=367) | M59: 25956 | N59: 100.2986547 | O59: 151 | P59: 200 fish per haul | Q59: Planned no of fish = 200 individuals or estimated no of fish in the catch if less than 200, summed up for all samples
A60: POL | B60: POL | C60: 2017 -2019 | D60: Sprattus sprattus | E60: Baltic Sea | F60: ICES | G60: 22-32 | H60: age, weight, sex, maturity | I60: Surveys | J60: 5-10 per 0.5 cm per haul | K60: NA | M60: 2001 | N60: 176.1443662 | O60: 78 | P60: 5-10 per 0.5 cm per haul | Q60: Planned no of fish = no of fish aged if between 5 and 10; 5 individuals or no of fish measured if less than 5; 10 individuals if no of fish aged greater than 10, summed up for all trips, subdivisions and length classes
A62: POL | B62: POL | C62: 2017 -2019 | D62: Gadus morhua | E62: North Sea and Eastern Arctic | F62: ICES | G62: I, II | H62: length | I62: Commercial at sea | J62: 300 fish per haul | K62: NA | M62: 7123 | N62: 79.14444444 | O62: 29 | P62: 300 fish per haul | Q62: Planned no of fish = 300 * no of samples from trips targeting cod
A63: POL | B63: POL | C63: 2017 -2019 | D63: Gadus morhua | E63: North Sea and Eastern Arctic | F63: ICES | G63: I, II | H63: age, weight, sex, maturity | I63: Commercial at sea | J63: 5 per 1 cm per trip | K63: NA | M63: 342 | N63: 99.13043478 | O63: 6 | P63: 5 per 1 cm per trip | Q63: Planned no of fish = 5 individuals or no at length if less than 5, summed up for all trips targeting cod, subdivisions and length classes
A64: POL | B64: POL | C64: 2017 -2019 | D64: Melanogrammus aeglefinus | E64: North Sea and Eastern Arctic | F64: ICES | G64: I, II | H64: length | I64: Commercial at sea | J64: 300 fish per haul | K64: NA | M64: 195 | N64: 2.166666667 | O64: 13 | P64: 300 fish per haul | Q64: Planned no of fish = 300 * no of samples from trips targeting cod (with bycatch of haddock)
A65: POL | B65: POL | C65: 2017 -2019 | D65: Melanogrammus aeglefinus | E65: North Sea and Eastern Arctic | F65: ICES | G65: I, II | H65: age, weight, sex, maturity | I65: Commercial at sea | J65: 5 per 1 cm per trip | K65: NA | M65: 0 | N65: 0 | O65: 0 | P65: 5 per 1 cm per trip | Q65: Planned no of fish = 5 individuals or no at length if less than 5, summed up for all trips targeting cod, subdivisions and length classes
A66: POL | B66: POL | C66: 2017 -2019 | D66: Pollachius virens | E66: North Sea and Eastern Arctic | F66: ICES | G66: I, II | H66: length | I66: Commercial at sea | J66: 300 fish per haul | K66: NA | M66: 510 | N66: 7.727272727 | O66: 3 | P66: 300 fish per haul | Q66: Planned no of fish = 300 * no of samples from trips targeting cod (with bycatch of saithe)
A67: POL | B67: POL | C67: 2017 -2019 | D67: Pollachius virens | E67: North Sea and Eastern Arctic | F67: ICES | G67: I, II | H67: age, weight, sex, maturity | I67: Commercial at sea | J67: 5 per 1 cm per trip | K67: NA | M67: 0 | N67: 0 | O67: 0 | P67: 5 per 1 cm per trip | Q67: Planned no of fish = 5 individuals or no at length if less than 5, summed up for all trips targeting cod, subdivisions and length classes
A69: POL | B69: DEU - LTU -LVA - NLD - POL | C69: 2017 -2019 | D69: Sardinella aurita | E69: Other regions | F69: CECAF | G69: 34.1.3 | H69: length | I69: Commercial at sea | J69: sample of 25 kg per haul | K69: NA | L69: Sampling Protocol - "Biological Data Collection of pelagic fisheries in CECAF waters in compliance with the DCF" (http://dcf.mir.gdynia.pl/?page_id=367) | M69: 6 | N69: 0 | O69: 1 | P69: sample of 25 kg per haul | Q69: only two fishing trips sampled in 2019 (due to unavailability of the space for observer on board fishing vessels active in this area). In two observed trips only one haul took place in area 34.3.1.
A70: POL | B70: DEU - LTU -LVA - NLD - POL | C70: 2017 -2019 | D70: Sardinella aurita | E70: Other regions | F70: CECAF | G70: 34.1.3 | H70: weight, sex, maturity | I70: Commercial at sea | J70: 100 per quarter | K70: NA | M70: 6 | N70: 1.5 | O70: 1 | P70: 100 per quarter | Q70: only two fishing trips sampled in 2019 (due to unavailability of the space for observer on board fishing vessels active in this area). In two observed trips only one haul took place in area 34.3.1.
A71: POL | B71: DEU - LTU -LVA - NLD - POL | C71: 2017 -2019 | D71: Sardinella aurita | E71: Other regions | F71: CECAF | G71: 34.3.1 | H71: length | I71: Commercial at sea | J71: sample of 25 kg per haul | K71: NA | M71: 0 | N71: 0 | O71: 0 | P71: sample of 25 kg per haul | Q71: only two fishing trips sampled in 2019 (due to unavailability of the space for observer on board fishing vessels active in this area). In two observed trips only one haul took place in area 34.3.1.
A72: POL | B72: DEU - LTU -LVA - NLD - POL | C72: 2017 -2019 | D72: Sardinella aurita | E72: Other regions | F72: CECAF | G72: 34.3.1 | H72: weight, sex, maturity | I72: Commercial at sea | J72: 100 per quarter | K72: NA | M72: 0 | N72: 0 | O72: 0 | P72: 100 per quarter | Q72: only two fishing trips sampled in 2019 (due to unavailability of the space for observer on board fishing vessels active in this area). In two observed trips only one haul took place in area 34.3.1.
A73: POL | B73: DEU - LTU -LVA - NLD - POL | C73: 2017 -2019 | D73: Sardina pilchardus | E73: Other regions | F73: CECAF | G73: 34.1.3 | H73: length | I73: Commercial at sea | J73: sample of 25 kg per haul | K73: NA | M73: 1828 | N73: 38.11714286 | O73: 14 | P73: sample of 25 kg per haul | Q73: only two fishing trips sampled in 2019 (due to unavailability of the space for observer on board fishing vessels active in this area). In two observed trips only one haul took place in area 34.3.1.
A74: POL | B74: DEU - LTU -LVA - NLD - POL | C74: 2017 -2019 | D74: Sardina pilchardus | E74: Other regions | F74: CECAF | G74: 34.1.3 | H74: weight, sex, maturity | I74: Commercial at sea | J74: 100 per quarter | K74: NA | M74: 227 | N74: 56.75 | O74: 9 | P74: 100 per quarter | Q74: only two fishing trips sampled in 2019 (due to unavailability of the space for observer on board fishing vessels active in this area). In two observed trips only one haul took place in area 34.3.1.
A75: POL | B75: DEU - LTU -LVA - NLD - POL | C75: 2017 -2019 | D75: Scomber spp. | E75: Other regions | F75: CECAF | G75: 34.1.3 | H75: length | I75: Commercial at sea | J75: sample of 25 kg per haul | K75: NA | M75: 3533 | N75: 71.75571429 | O75: 28 | P75: sample of 25 kg per haul | Q75: only two fishing trips sampled in 2019 (due to unavailability of the space for observer on board fishing vessels active in this area). In two observed trips only one haul took place in area 34.3.1.
A76: POL | B76: DEU - LTU -LVA - NLD - POL | C76: 2017 -2019 | D76: Scomber spp. | E76: Other regions | F76: CECAF | G76: 34.1.3 | H76: weight, sex, maturity | I76: Commercial at sea | J76: 100 per quarter | K76: NA | M76: 206 | N76: 51.5 | O76: 11 | P76: 100 per quarter | Q76: only two fishing trips sampled in 2019 (due to unavailability of the space for observer on board fishing vessels active in this area). In two observed trips only one haul took place in area 34.3.1.
A77: POL | B77: DEU - LTU -LVA - NLD - POL | C77: 2017 -2019 | D77: Scomber spp. | E77: Other regions | F77: CECAF | G77: 34.3.1 | H77: length | I77: Commercial at sea | J77: sample of 25 kg per haul | K77: NA | M77: 4 | N77: 2.8 | O77: 1 | P77: sample of 25 kg per haul | Q77: only two fishing trips sampled in 2019 (due to unavailability of the space for observer on board fishing vessels active in this area). In two observed trips only one haul took place in area 34.3.1.
A78: POL | B78: DEU - LTU -LVA - NLD - POL | C78: 2017 -2019 | D78: Scomber spp. | E78: Other regions | F78: CECAF | G78: 34.3.1 | H78: weight, sex, maturity | I78: Commercial at sea | J78: 100 per quarter | K78: NA | M78: 4 | N78: 1 | O78: 1 | P78: 100 per quarter | Q78: only two fishing trips sampled in 2019 (due to unavailability of the space for observer on board fishing vessels active in this area). In two observed trips only one haul took place in area 34.3.1.
A79: POL | B79: DEU - LTU -LVA - NLD - POL | C79: 2017 -2019 | D79: Trachurus trachurus | E79: Other regions | F79: CECAF | G79: 34.1.3 | H79: length | I79: Commercial at sea | J79: sample of 25 kg per haul | K79: NA | M79: 1030 | N79: 22.08210526 | O79: 19 | P79: sample of 25 kg per haul | Q79: only two fishing trips sampled in 2019 (due to unavailability of the space for observer on board fishing vessels active in this area). In two observed trips only one haul took place in area 34.3.1.
A80: POL | B80: DEU - LTU -LVA - NLD - POL | C80: 2017 -2019 | D80: Trachurus trachurus | E80: Other regions | F80: CECAF | G80: 34.1.3 | H80: weight, sex, maturity | I80: Commercial at sea | J80: 100 per quarter | K80: NA | M80: 131 | N80: 32.75 | O80: 11 | P80: 100 per quarter | Q80: only two fishing trips sampled in 2019 (due to unavailability of the space for observer on board fishing vessels active in this area). In two observed trips only one haul took place in area 34.3.1.
A81: POL | B81: DEU - LTU -LVA - NLD - POL | C81: 2017 -2019 | D81: Trachurus trachurus | E81: Other regions | F81: CECAF | G81: 34.3.1 | H81: length | I81: Commercial at sea | J81: sample of 25 kg per haul | K81: NA | M81: 10 | N81: 5.76 | O81: 1 | P81: sample of 25 kg per haul | Q81: only two fishing trips sampled in 2019 (due to unavailability of the space for observer on board fishing vessels active in this area). In two observed trips only one haul took place in area 34.3.1.
A82: POL | B82: DEU - LTU -LVA - NLD - POL | C82: 2017 -2019 | D82: Trachurus trachurus | E82: Other regions | F82: CECAF | G82: 34.3.1 | H82: weight, sex, maturity | I82: Commercial at sea | J82: 100 per quarter | K82: NA | M82: 10 | N82: 2.5 | O82: 1 | P82: 100 per quarter | Q82: only two fishing trips sampled in 2019 (due to unavailability of the space for observer on board fishing vessels active in this area). In two observed trips only one haul took place in area 34.3.1.
A84: POL | B84: DEU - LTU - NLD - POL | C84: 2017 -2019 | D84: Trachurus murphyi | E84: Other regions | F84: SPRFMO | G84: SPRFMO Convention Area | H84: length | I84: Commercial at sea | J84: 2-3 baskets per haul (ca. 100 fish per haul) | K84: NA | L84: "Manual for scientific observers on board EU pelagic trawlers in the Pacific" (in accordance to SPRFMO Data Standards) (http://dcf.mir.gdynia.pl/?page_id=367) | M84: 5152 | N84: 99.07 | O84: 52 | P84: 2-3 baskets per haul (ca. 100 fish per haul)
A85: POL | B85: DEU - LTU - NLD - POL | C85: 2017 -2019 | D85: Trachurus murphyi | E85: Other regions | F85: SPRFMO | G85: SPRFMO Convention Area | H85: age, sex, maturity | I85: Commercial at sea | J85: 25 fish per day | K85: NA | M85: 251 | N85: 100 | O85: 22 | P85: 5 fish per length class | Q85: New sampling requirement was introduced in 2018 providing that 5 specimens per length class shall be collected for age, sex and maturity data.
A86: POL | B86: POL | C86: 2019 | D86: Belone belone | E86: Baltic Sea | F86: ICES | G86: NA | H86: age, weight, sex, maturity | I86: Commercial on shore | J86: NA | K86: NA | M86: 121 | N86: NA | O86: 2 | P86: NA | Q86: New row - GAR fishery was not selected as a sampling frame in the WP. Fishery season is very short. Two samples were collected for biological variables due to importance of this fishery to local community in Puck Bay (part of Gulf of Gdańsk)
A87: POL | B87: POL | C87: 2019 | D87: Belone belone | E87: Baltic Sea | F87: ICES | G87: NA | H87: length | I87: Commercial on shore | J87: NA | K87: NA | M87: 121 | N87: NA | O87: 2 | P87: NA | Q87: New row - GAR fishery was not selected as a sampling frame in the WP. Fishery season is very short. Two samples were collected for biological variables due to importance of this fishery to local community in Puck Bay (part of Gulf of Gdańsk)
A88: POL | B88: POL | C88: 2019 | D88: Sprattus sprattus | E88: Baltic Sea | F88: ICES | G88: 22-32 | H88: age, weight, sex, maturity | I88: Commercial on shore | J88: NA | K88: NA | M88: 1288 | N88: NA | O88: 25 | P88: NA | Q88: New row. There is no corresponding sampling frame in the WP. Samples were taken by DNK from POL vessels on landings in DNK ports. Samples were collected in 2019 and delivered to POL in January 2020.
A89: POL | B89: POL | C89: 2019 | D89: Sprattus sprattus | E89: Baltic Sea | F89: ICES | G89: 22-32 | H89: length | I89: Commercial on shore | J89: NA | K89: NA | M89: 3552 | N89: NA | O89: 25 | P89: NA | Q89: New row. There is no corresponding sampling frame in the WP. Samples were taken by DNK from POL vessels on landings in DNK ports. Samples were collected in 2019 and delivered to POL in January 2021
A90: POL | B90: POL | C90: 2019 | D90: marine crabs nei (CRA - Brachyura) | E90: North Sea and Eastern Arctic | F90: ICES | G90: IV | H90: NA | I90: NA | J90: NA | K90: NA | M90: 0 | N90: NA | O90: 0 | P90: NA | Q90: New row - vessel started fishing in 2018 thus not included in WP and not sampled

Sheet Table1D Recreational Fisheries
A1: Table 1D: Recreational fisheries
X2: WP years | Y2: 2017-2019
X3: AR year | Y3: 2019
A4: MS | B4: Sampling year | C4: Area/EMU | D4: RFMO/RFO/IO | E4: Species | F4: Applicable (Species present in the MS?) | G4: Reasons for not sampling | H4: Threshold (Y/N) | I4: Annual estimate of catch? (Y/N) | J4: Annual percentage of released catch? (Y/N) | K4: Collection of catch composition data? (Y/N) | L4: Type of Survey | M4: Comments | N4: Unique Survey ID or Name of sampling scheme (Linked to Table 5A) | O4: Is the survey part of a pilot study or part of an established programme? | P4: Frequency | Q4: Is the sampling design documented? (Linked to Table 5A) | R4: Are non-response and refusal recorded? (Linked to Table 5A) | S4: Are the editing and imputation methods documented? (Linked to Table 5A) | T4: Estimation of the yearly weight and numbers of catch (Y/N) | U4: Estimation of the yearly percentage release (Y/N) | V4: Collection of catch composition data (Y/N) | W4: Evaluated by external experts/bodies (Y/N) | X4: Conform with accepted standards Y/N | Y4: AR Comments
A5: POL | B5: 2017-2019 | C5: Baltic Sea | D5: ICES | E5: Gadus morhua | F5: Y | G5: NA | H5: N | I5: Y | J5: Y | K5: Y | L5: National estimates of numbers of trips &number of anglers & onsite surveys of catch per unit effort & of catch composition | M5: Planned number of at sea trips: 24 | N5: At sea cod recreational fishery | O5: Routine | P5: Annual | Q5: Y | R5: Y | S5: N | T5: Y | U5: Y | V5: Y | W5: Y | X5: Y | Y5: The estimation of annual catch and number for the sampling Year (N) is available in the year after (N+1). Survey evaluated by WGRFS. Imputation is not performed at national level. Refusals recorded for questionnaires' survey. At-sea biological sampling not randomized but based on vessels' availability (drawing from vessel list).
A6: POL | B6: 2017-2019 | C6: Vistula/Oder EMU | D6: ICES | E6: Anguilla anguilla | F6: Y | G6: NA | H6: N | I6: Y | J6: N | K6: N | L6: National estimates of catch based on questionaires and catch register | N6: NA | O6: NA | P6: NA | Q6: NA | R6: NA | S6: NA | T6: NA | U6: NA | V6: NA | W6: NA | X6: NA | Y6: Data collected through other program by Inland Fisheries Institute, annually by questionnaires as part of national statistics and based on contract with government. Annual data publicly available (http://www.infish.com.pl/)
A7: POL | B7: 2017-2018 | C7: Baltic Sea | D7: ICES | E7: Salmo salar | F7: Y | G7: Pilot Sudy planned | H7: N | I7: Y | J7: Y | K7: Y | M7: see Pilot Study 1 in text file | N7: Pilot Study 1 | O7: Pilot | P7: Biennial | Q7: Y | R7: Y | S7: N | T7: N | U7: N | V7: N | W7: N | X7: N | Y7: See Text Box on Pilot Study 1 for comments
A8: POL | B8: 2017-2018 | C8: Baltic Sea | D8: ICES | E8: Salmo trutta | F8: Y | G8: Pilot Sudy planned | H8: N | I8: Y | J8: Y | K8: Y | N8: Pilot Study 1 | O8: Pilot | P8: Biennial | Q8: Y | R8: Y | S8: N | T8: N | U8: N | V8: N | W8: N | X8: N
A9: POL | B9: 2017-2018 | C9: Baltic Sea | D9: ICES | E9: Anguilla anguilla | F9: Y | G9: Pilot Sudy planned | H9: N | I9: Y | J9: Y | K9: Y | N9: Pilot Study 1 | O9: Pilot | P9: Biennial | Q9: Y | R9: Y | S9: N | T9: N | U9: N | V9: N | W9: N | X9: N
A10: POL | B10: 2017-2018 | C10: Baltic Sea inland waters | D10: ICES | E10: Salmo salar | F10: Y | G10: Pilot Sudy planned | H10: N | I10: Y | J10: Y | K10: N | M10: see Pilot Study 1 in text file | N10: Pilot Study 1 | O10: Pilot | P10: Biennial | Q10: Y | R10: Y | S10: N | T10: N | U10: N | V10: N | W10: N | X10: N
A11: POL | B11: 2017-2018 | C11: Baltic Sea inland waters | D11: ICES | E11: Salmo trutta | F11: Y | G11: Pilot Sudy planned | H11: N | I11: Y | J11: Y | K11: N | N11: Pilot Study 1 | O11: Pilot | P11: Biennial | Q11: Y | R11: Y | S11: N | T11: N | U11: N | V11: N | W11: N | X11: N

Sheet Table1E Anadromous catadromous
A1: Table 1E: Anadromous and catadromous species data collection in fresh water
T2: WP years | U2: 2017-2019
T3: AR year | U3: 2019
A4: MS | B4: Sampling period | C4: Area | D4: RFMO/RFO/IO | E4: Species | F4: Applicable (Y/N) | G4: Reasons for not sampling | H4: Water Body | I4: Life stage | J4: Fishery / Independent data collection | K4: Method | L4: Unit | M4: Planned nos | N4: Frequency | O4: Comments | P4: Achieved numbers | Q4: % of achievement (100*P/M) | R4: Reasons for non-conformity | S4: Survey ID | T4: Agreed at RCG level? | U4: AR Comments
A6: POL | B6: 2017-2019 | C6: ODER EMU | D6: ICES | E6: Anguilla anguilla | F6: Y | G6: NA | H6: Szczecin Lagoon | I6: yellow | J6: F | K6: sampling | L6: n.samples | M6: 100 | N6: Y | O6: biological variables | P6: NA | Q6: NA | R6: NA | S6: NA | T6: NA | U6: This sampling refers to commercial fisheries in marine waters (not fresh waters) and is defined in Tables 1 A-C
A7: POL | B7: 2017-2019 | C7: VISTULA EMU | D7: ICES | E7: Anguilla anguilla | F7: Y | G7: NA | H7: Vistula Lagoon | I7: yellow | J7: F | K7: sampling | L7: n.samples | M7: 100 | N7: Y | O7: biological variables | P7: NA | Q7: NA | R7: NA | S7: NA | T7: NA | U7: This sampling refers to commercial fisheries in marine waters (not fresh waters) and is defined in Tables 1 A-C
A8: POL | B8: 2017-2019 | C8: ODER EMU | D8: ICES | E8: Anguilla anguilla | F8: Y | G8: NA | H8: Szczecin Lagoon | I8: silver | J8: F | K8: sampling | L8: n.samples | M8: 100 | N8: Y | O8: biological variables | P8: NA | Q8: NA | R8: NA | S8: NA | T8: NA | U8: This sampling refers to commercial fisheries in marine waters (not fresh waters) and is defined in Tables 1 A-C
A9: POL | B9: 2017-2019 | C9: VISTULA EMU | D9: ICES | E9: Anguilla anguilla | F9: Y | G9: NA | H9: Vistula Lagoon | I9: silver | J9: F | K9: sampling | L9: n.samples | M9: 100 | N9: Y | O9: biological variables | P9: NA | Q9: NA | R9: NA | S9: NA | T9: NA | U9: This sampling refers to commercial fisheries in marine waters (not fresh waters) and is defined in Tables 1 A-C
A10: POL | B10: 2017-2019 | C10: ODER EMU | D10: ICES | E10: Anguilla anguilla | F10: Y | G10: NA | H10: Inland - lakes | I10: yellow | J10: F | K10: sampling | L10: n.samples | M10: 100 | N10: Y | O10: biological variables | P10: 107 | Q10: =P10*100/M10 -> 107 | R10: NA | S10: POL-ELE-FRW-FYK-commercial fishing | T10: N
A11: POL | B11: 2017-2019 | C11: VISTULA EMU | D11: ICES | E11: Anguilla anguilla | F11: Y | G11: NA | H11: Inland - lakes | I11: yellow | J11: F | K11: sampling | L11: n.samples | M11: 100 | N11: Y | O11: biological variables | P11: 100 | Q11: =P11*100/M11 -> 100 | R11: NA | S11: POL-ELE-FRW-FYK-commercial fishing | T11: N
A12: POL | B12: 2017-2019 | C12: ODER EMU | D12: ICES | E12: Anguilla anguilla | F12: Y | G12: NA | H12: Inland - lakes | I12: silver | J12: F | K12: sampling | L12: n.samples | M12: 150 | N12: Y | O12: biological variables | P12: 302 | Q12: =P12*100/M12 -> 201.3333333 | R12: See Text Box 1E for comments | S12: POL-ELE-FRW-FYK-commercial fishing | T12: N | U12: A larger number of individuals is associated with large catches in the autumn. The entire catch of the day was analyzed
A13: POL | B13: 2017-2019 | C13: VISTULA EMU | D13: ICES | E13: Anguilla anguilla | F13: Y | G13: NA | H13: Inland - lakes | I13: silver | J13: F | K13: sampling | L13: n.samples | M13: 150 | N13: Y | O13: biological variables | P13: 332 | Q13: =P13*100/M13 -> 221.3333333 | R13: See Text Box 1E for comments | S13: POL-ELE-FRW-FYK-commercial fishing | T13: N | U13: A larger number of individuals is associated with large catches in the autumn. The entire catch of the day was analyzed
A14: POL | B14: 2017-2019 | C14: ODER EMU | D14: ICES | E14: Anguilla anguilla | F14: Y | G14: NA | H14: Szczecin Lagoon | I14: yellow | J14: I | K14: trap | L14: n.sites | M14: 2 | N14: Y | O14: yellow eel abundance | P14: 1 | Q14: 50 | R14: See Text Box 1E for comments | S14: POL-ELE-FRW-FYK-fishery-independent | T14: N | U14: The number of individuals caught in one fishing gear is sufficient. In addition, there is a data series only for this one site.
A15: POL | B15: 2017-2019 | C15: VISTULA EMU | D15: ICES | E15: Anguilla anguilla | F15: Y | G15: NA | H15: Vistula Lagoon | I15: yellow | J15: I | K15: trap | L15: n.sites | M15: 2 | N15: Y | O15: yellow eel abundance | P15: 2 | Q15: =P15*100/M15 -> 100 | R15: See Text Box 1E for comments | S15: POL-ELE-FRW-FYK-fishery-independent | T15: N
A16: POL | B16: 2017-2019 | C16: ODER EMU | D16: ICES | E16: Anguilla anguilla | F16: Y | G16: NA | H16: Inland - lakes | I16: yellow | J16: I | K16: electrofishing | L16: n.sites | M16: 10 | N16: Y | O16: yellow eel abundance | P16: 18 | Q16: 180 | R16: See Text Box 1E for comments | S16: POL-ELE-FRW-MEL-fishery-independent | T16: N | U16: Low eel density requires more sampling sites
A17: POL | B17: 2017-2019 | C17: VISTULA EMU | D17: ICES | E17: Anguilla anguilla | F17: Y | G17: NA | H17: Inland - lakes | I17: yellow | J17: I | K17: electrofishing | L17: n.sites | M17: 10 | N17: Y | O17: yellow eel abundance | P17: 21 | Q17: 210 | R17: See Text Box 1E for comments | S17: POL-ELE-FRW-MEL-fishery-independent | T17: N | U17: Low eel density requires more sampling sites
A18: POL | B18: 2017-2019 | C18: ODER EMU | D18: ICES | E18: Anguilla anguilla | F18: Y | G18: NA | H18: Pomeranian rivers | I18: yellow | J18: I | K18: trap | L18: n.sites | M18: 5 | N18: Y | O18: abundance of recruits | P18: 3 | Q18: 60 | R18: See Text Box 1E for comments | S18: POL-ELE-FRW-FIX-fishery independant | T18: N | U18: Based on experience from last years, sites with large water fluctuations cousing trap damages were abandoned. The current number of traps and sites is sufficient.
A19: POL | B19: 2017-2019 | C19: VISTULA EMU | D19: ICES | E19: Anguilla anguilla | F19: Y | G19: NA | H19: Pomeranian rivers | I19: yellow | J19: I | K19: trap | L19: n.sites | M19: 4 | N19: Y | O19: abundance of recruits | P19: 3 | Q19: 75 | R19: See Text Box 1E for comments | S19: POL-ELE-FRW-FIX-fishery independant | T19: N | U19: Based on experience from last years, sites with large water fluctuations cousing trap damages were abandoned. The current number of traps and sites is sufficient.
A20: POL | B20: 2017-2019 | C20: Baltic Sea | D20: ICES | E20: Salmo trutta | F20: Y | G20: NA | H20: Oder and Vistula RBD | I20: adult | J20: F | K20: sampling | L20: n.samples | M20: 100 | N20: Y | O20: biological variables | P20: 156 | Q20: 156 | R20: See Text Box 1E for comments | S20: POL-TRS-FRW-FIX-commercial fishing | T20: N | U20: Additional sampling of spawners were conducted.
A21: POL | B21: 2017-2019 | C21: Baltic Sea | D21: ICES | E21: Salmo trutta | F21: Y | G21: NA | H21: Pomeranian rivers | I21: parr | J21: I | K21: electrofishing | L21: n.sites | M21: 30 | N21: Y | O21: parr density | P21: 40 | Q21: 133.3333333 | R21: See Text Box 1E for comments | S21: POL-TRS-FRW-MEL-fishery-independent | T21: N | U21: Sampling fitted to the national assessment needs

Sheet Table1F Incidental by catch
A1: Table 1F: Incidental by-catch of birds, mammals, reptiles and fish
V2: WP years | W2: 2017-2019
V3: AR year | W3: 2019
P4: Has there be occurrence of bycatch?
A5: MS | B5: Sampling period/year(s) | C5: Region | D5: RFMO/RFO/IO | E5: Sub-area / Fishing ground | F5: Scheme | G5: Stratum ID code / Name of the survey | H5: Group of vulnerable species | I5: Expected occurence of recordings | J5: Comments | K5: Total number of PSU in the sampling year | L5: Achieved number of PSU in the sampling year | M5: Number of PSU sampled in which observers have been instructed to look for bycatch | N5: Does your sampling protocol allow for the calculation of observation effort “at haul level” (Y/N) | O5: Is there any mitigation device? (Y/N) | P5: Fish (Y/N/NA) | Q5: Mammals (Y/N/NA) | R5: Birds (Y/N/NA) | S5: Reptiles (Y/N/NA) | T5: Other (Y/N/NA) | U5: Are data stored in a national database? | V5: Are data stored in international database(s)? | W5: AR Comments
A7: POL | B7: 2017-2019 | C7: Baltic Sea | D7: ICES | E7: 22-24 | F7: Demersal at sea and on shore | G7: POL DCT1 | H7: fish | I7: X | K7: 336 | L7: 1 | M7: 1 | N7: Y | O7: N | P7: Y | Q7: Y | R7: Y | S7: NA | T7: Y | U7: Y | V7: Y | W7: National database: NPZDRpl. International databases: ICES Bycatch DB
A8: POL | B8: 2017-2019 | C8: Baltic Sea | D8: ICES | E8: 22-24 | F8: Demersal at sea and on shore | G8: POL GNSC1 | H8: fish, birds, mammals | I8: X | K8: 377 | L8: 0 | M8: 0 | N8: Y | O8: Y | P8: Y | Q8: Y | R8: Y | S8: NA | T8: Y | U8: Y | V8: Y | W8: Acoustic deterrent devices. National database: NPZDRpl. International databases: ICES Bycatch DB
A9: POL | B9: 2017-2019 | C9: Baltic Sea | D9: ICES | E9: 25-32 | F9: Demersal at sea and on shore | G9: POL DCT2 | H9: fish | I9: X | K9: 1021 | L9: 8 | M9: 8 | N9: Y | O9: N | P9: Y | Q9: Y | R9: Y | S9: NA | T9: Y | U9: Y | V9: Y | W9: National database: NPZDRpl. International databases: ICES Bycatch DB
A10: POL | B10: 2017-2019 | C10: Baltic Sea | D10: ICES | E10: 25-32 | F10: Demersal at sea and on shore | G10: POL GNSC2 | H10: fish, birds, mammals | I10: X | K10: 3267 | L10: 1 | M10: 1 | N10: Y | O10: Y | P10: Y | Q10: Y | R10: Y | S10: NA | T10: Y | U10: Y | V10: Y | W10: Acoustic deterrent devices. National database: NPZDRpl. International databases: ICES Bycatch DB
A11: POL | B11: 2017-2019 | C11: Baltic Sea | D11: ICES | E11: 25-32 | F11: Demersal at sea and on shore | G11: POL DTF | H11: fish | I11: X | K11: 1323 | L11: 10 | M11: 10 | N11: Y | O11: N | P11: Y | Q11: Y | R11: Y | S11: NA | T11: Y | U11: Y | V11: Y | W11: National database: NPZDRpl. International databases: ICES Bycatch DB
A12: POL | B12: 2017-2019 | C12: Baltic Sea | D12: ICES | E12: 25-32 | F12: Demersal at sea and on shore | G12: POL GNSF | H12: fish, birds, mammals | I12: X | K12: 14561 | L12: 8 | M12: 8 | N12: Y | O12: Y | P12: Y | Q12: Y | R12: Y | S12: NA | T12: Y | U12: Y | V12: Y | W12: Acoustic deterrent devices. National database: NPZDRpl. International databases: ICES Bycatch DB
A13: POL | B13: 2017-2019 | C13: Baltic Sea | D13: ICES | E13: 22-32 | F13: Pelagic at sea and on shore | G13: POL PST | H13: fish | I13: X | K13: 3048 | L13: 24 | M13: 24 | N13: Y | O13: N | P13: Y | Q13: Y | R13: Y | S13: NA | T13: Y | U13: Y | V13: Y | W13: National database: NPZDRpl. International databases: ICES Bycatch DB
A14: POL | B14: 2017-2019 | C14: Baltic Sea | D14: ICES | E14: 22-24 | F14: Pelagic at sea and on shore | G14: POL PHT1 | H14: fish | I14: X | K14: 47 | L14: 3 | M14: 3 | N14: Y | O14: N | P14: Y | Q14: Y | R14: Y | S14: NA | T14: Y | U14: Y | V14: Y | W14: National database: NPZDRpl. International databases: ICES Bycatch DB
A15: POL | B15: 2017-2019 | C15: Baltic Sea | D15: ICES | E15: 22-24 | F15: Pelagic at sea and on shore | G15: POL BH1 | H15: fish, birds | I15: X | K15: 140 | L15: 8 | M15: 8 | N15: Y | O15: N | P15: Y | Q15: Y | R15: Y | S15: NA | T15: Y | U15: Y | V15: Y | W15: National database: NPZDRpl. International databases: ICES Bycatch DB
A16: POL | B16: 2017-2019 | C16: Baltic Sea | D16: ICES | E16: 25-32 | F16: Pelagic at sea and on shore | G16: POL PHT2 | H16: fish | I16: X | K16: 1589 | L16: 10 | M16: 10 | N16: Y | O16: N | P16: Y | Q16: Y | R16: Y | S16: NA | T16: Y | U16: Y | V16: Y | W16: National database: NPZDRpl. International databases: ICES Bycatch DB
A17: POL | B17: 2017-2019 | C17: Baltic Sea | D17: ICES | E17: 25-32 | F17: Pelagic at sea and on shore | G17: POL BH2 | H17: fish, birds | I17: X | K17: 1776 | L17: 7 | M17: 7 | N17: Y | O17: N | P17: Y | Q17: Y | R17: Y | S17: NA | T17: Y | U17: Y | V17: Y | W17: National database: NPZDRpl. International databases: ICES Bycatch DB
A18: POL | B18: 2017-2019 | C18: Baltic Sea | D18: ICES | E18: 22-24 | F18: Freshwater at sea and on shore | G18: POL BFWS1 | H18: fish, birds, mammals | I18: X | K18: 4033 | L18: 13 | M18: 13 | N18: Y | O18: Y | P18: Y | Q18: Y | R18: Y | S18: NA | T18: Y | U18: Y | V18: Y | W18: Typing error in WP in the name of Scheme (column F) - should read: "Freshwater and eel at sea and on shore". Escape device. National database: NPZDRpl. International databases: ICES Bycatch DB
A19: POL | B19: 2017-2019 | C19: Baltic Sea | D19: ICES | E19: 25-32 | F19: Freshwater at sea and on shore | G19: POL BFWS2 | H19: fish, birds, mammals | I19: X | K19: 7203 | L19: 16 | M19: 16 | N19: Y | O19: Y | P19: Y | Q19: Y | R19: Y | S19: NA | T19: Y | U19: Y | V19: Y | W19: Typing error in WP in the name of Scheme (column F) - should read: "Freshwater and eel at sea and on shore". Escape device. National database: NPZDRpl. International databases: ICES Bycatch DB
A20: POL | B20: 2017-2019 | C20: Baltic Sea | D20: ICES | E20: 22-32 | F20: Salmonids at sea and on shore | G20: POL GNSSAL | H20: birds, mammals | I20: X | K20: 1905 | L20: 14 | M20: 14 | N20: Y | O20: N | P20: Y | Q20: Y | R20: Y | S20: NA | T20: Y | U20: Y | V20: Y | W20: National database: NPZDRpl. International databases: ICES Bycatch DB
A21: POL | B21: 2017-2019 | C21: Baltic Sea | D21: ICES | E21: 22-32 | F21: Salmonids at sea and on shore | G21: POL LLDSAL | H21: birds, mammals | I21: X | K21: 325 | L21: 0 | M21: 0 | N21: Y | O21: N | P21: Y | Q21: Y | R21: Y | S21: NA | T21: Y | U21: Y | V21: Y | W21: National database: NPZDRpl. International databases: ICES Bycatch DB
A22: POL | B22: 2017-2019 | C22: North Sea and Eastern Arctic | D22: ICES | E22: I, II | F22: at sea | G22: LDF1 | H22: fish, birds, mammals | I22: X | K22: 7 | L22: 1 | M22: 1 | N22: Y | O22: Y | P22: Y | Q22: Y | R22: Y | S22: NA | T22: Y | U22: Y | V22: Y | W22: Escape device. National database: NPZDRpl. International databases: ICES Bycatch DB
A23: POL | B23: 2017-2019 | C23: other regions | D23: CECAF | E23: 34.1.3; 34.3.1 | F23: at sea | G23: LDF2 | H23: fish, mammals | I23: X | K23: 0 | L23: 2 | M23: 2 | N23: Y | O23: N | P23: Y | Q23: Y | R23: Y | S23: NA | T23: Y | U23: Y | V23: N | W23: No international database. Data are reported to CECAF Working Group. National database under re-development to incorporate data from Other Regions.
A24: POL | B24: 2017-2019 | C24: other regions | D24: SPRFMO | E24: SPRFMO Convention Area | F24: at sea | G24: LDF3 | H24: fish, birds, mammals | I24: X | K24: 4 | L24: 2 | M24: 2 | N24: Y | O24: Y | P24: Y | Q24: Y | R24: Y | S24: Y | T24: Y | U24: Y | V24: Y | W24: Bird Baffler -obligatory birds mitigation device in SPRFMO area. Data reported to SPRFMO Secretariat and Scientific Council. National database under re-development to incorporate data from Other Regions.
A25: POL | B25: 2019 | C25: Baltic Sea | D25: ICES | E25: 22-32 | F25: on shore | G25: POLGAR | H25: fish, birds, mammals | I25: X | K25: 943 | L25: 2 | M25: 0 | N25: NA | O25: NA | P25: NA | Q25: NA | R25: NA | S25: NA | T25: NA | U25: Y | V25: Y | W25: New row - GAR fishery was not selected as a sampling frame in the WP. Fishery season is very short. Two samples were collected for biological variables due to importance of this fishery to local community in Puck Bay (part of Gulf of Gdańsk)
A26: POL | B26: 2019 | C26: Baltic Sea | D26: ICES | E26: 22-32 | F26: on shore | G26: POLDNK SPR | H26: fish, birds | I26: X | K26: 473 | L26: 25 | M26: 0 | N26: NA | O26: NA | P26: NA | Q26: NA | R26: NA | S26: NA | T26: NA | U26: Y | V26: Y | W26: New row. There is no corresponding sampling frame in the WP. Samples were taken by DNK from POL vessels on landings in DNK ports. Samples were collected in 2019 and delivered to POL in January 2020
A27: POL | B27: 2019 | C27: North Sea and Eastern Arctic | D27: ICES | E27: IV | F27: NA | G27: POLNSCRA | H27: NA | I27: NA | K27: 51 | L27: 0 | M27: 0 | N27: NA | O27: NA | P27: NA | Q27: NA | R27: NA | S27: NA | T27: NA | U27: N | V27: N | W27: New row - vessel started fishing in 2018 thus not included in WP and not sampled

Sheet Table1G List of research survey
A1: Table 1G: List of research surveys at sea
Z2: WP years | AA2: 2017-2019
Z3: AR year | AA3: 2019
A4: MS | B4: Name of survey | C4: Acronym | D4: Mandatory (Y/N) | E4: Threshold (Y/N) | F4: Agreed at RCG level | G4: MS participation | H4: Area(s) covered | I4: Period (Month) | J4: Frequency | K4: Days at sea planned | L4: Type of sampling activities | M4: Planned target | N4: Map | O4: Relevant international planning group - RFMO/RFO/IO | P4: International database | Q4: Comments | R4: Type of MS participation | S4: In case of financial participation, is payment done? (Y/N) | T4: Days at sea achieved | U4: Achieved target | V4: Other data assimilations (Y/N) | W4: Was the survey carried out within the official time period? (Y/N) | X4: Was the survey carried out within the official survey area? (Y/N) | Y4: Indication if AR comments by MS are required concerning effort achieved | Z4: Indication if AR comments by MS are required concerning temporal and spatial coverage | AA4: AR Comments
A5: POL | B5: Baltic International Trawl Survey | C5: BITS-1Q | D5: Y | E5: N | F5: Y | G5: DEU - E; DNK - E; LTU - E; LVA - E; SWE - E | H5: IIIb-d | I5: February | J5: Annual | K5: 28 | L5: Fish Hauls | M5: 81 | N5: Fig 1.1 | O5: ICES WGBIFS | P5: DATRAS, TowData, ROSCOP | Q5: Number of planned days at sea and planned targets (no of hauls, Nm) may change between years according to recommendations from WGBIFS | R5: P | T5: 24 | U5: 69 | V5: N | W5: Y | X5: Y | Y5: =IF(((K5-T5)/K5*100)>[2]Settings!H4,"x",IF(((K5-T5)/K5*100)>[2]Settings!H4,"x",IF(T5="","",""))) -> x | AA5: Typing error in the WP - the acronim for this survey shaal read: BITS Q1. 24 days were planned for this survey in 2019 (see comment in column "Q"). All fish control hauls planned by WGBIFS were made.
A6: POL | B6: Baltic International Trawl Survey | C6: BITS-4Q | D6: Y | E6: N | F6: Y | G6: DEU - E; DNK - E; EST - E; LTU - E; LVA - E; SWE - E | H6: IIIb-d | I6: November | J6: Annual | K6: 23 | L6: Fish Hauls | M6: 60 | N6: Fig 1.2 | O6: ICES WGBIFS | P6: DATRAS, TowData, ROSCOP | R6: P | T6: 19 | U6: 61 | V6: N | W6: Y | X6: Y | AA6: Typing error in the WP - the acronim for this survey shaal read: BITS Q4. 19 days were planned for this survey in 2019 (see comment in column "Q"). All fish control hauls planned by WGBIFS were made.
A7: POL | B7: Baltic International Acoustic Survey | C7: BIAS | D7: Y | E7: N | F7: Y | G7: DEU - E; DNK - C; EST - E; FIN - E; LTU - E; LVA - E; SWE - E | H7: IIIb-d | I7: September | J7: Annual | K7: 18 | L7: Echo Nm | M7: 830 | N7: Fig 1.3 | O7: ICES WGBIFS | P7: BIAS-DB | R7: P | T7: 16 | U7: 782 | V7: N | W7: Y | X7: Y | AA7: 16 days, 750 Nm and 32 control hauls were planned for this survey in 2019 (see comment in column "Q"). Due to a heavy weather condition for a number of days, 27 out of 32 planned control hauls were made.
L8: Fish Hauls | M8: 35 | U8: 27
A9: POL | B9: Sprat Acoustic Survey | C9: SPRAS | D9: Y | E9: N | F9: Y | G9: DEU - E; EST - E; LTU - E; LVA - E | H9: IIId | I9: May | J9: Annual | K9: 12 | L9: Echo Nm | M9: 830 | N9: Fig 1.3 | O9: ICES WGBIFS | P9: BASS-DB | R9: P | T9: 13 | U9: 774 | V9: N | W9: Y | X9: Y | AA9: Despite the extention of the survey duration by one day, planned targets were not fully achieved due to a heavy weather condition for a number of days.
L10: Fish Hauls | M10: 35 | U10: 31

Sheet Table1H Research survey data
A1: Table 1H: Research survey data collection and dissemination
L2: WP years | M2: 2017-2019
L3: AR year | M3: 2019
A4: MS | B4: Name of survey | C4: Acronym | D4: Type of data collected | E4: Core/ Additional variable | F4: Used as basis for advice (Y/N) | G4: Comments | H4: Was the sampling carried out? (Y/N/P) | I4: Relevant International database | J4: Was the data uploaded to the relevant database? (Y/N) | K4: Other data assimilations? (Y/N) | L4: Indication if AR comments are required by MS | M4: AR comments
A5: POL | B5: Baltic International Trawl Survey | C5: BITS-1Q | D5: Biological data for Cod 25-32 and Flounder 22-32 | E5: C | F5: Y | H5: Y | I5: DATRAS, TowData, ROSCOP | J5: Y | K5: N | L5: =IF(OR(H5="Y",H5=""),"","x") ->  | M5: Typing error in the WP - the acronim for this survey shaal read: BITS Q1
D6: CTD by haul | E6: A | F6: N | H6: Y | I6: ICES Oceanographic DB; ICES - IROC | J6: Y | K6: N
D7: Litter by haul | E7: A | F7: N | H7: Y | I7: DATRAS | J7: Y | K7: N
D8: Marine mammal observations | E8: A | F8: N | H8: Y | I8: No existing database | J8: N | K8: N
D9: stomach content | E9: A | F9: N | H9: Y | I9: No existing database | J9: N | K9: N
A10: POL | B10: Baltic International Trawl Survey | C10: BITS-4Q | D10: Biological data for Cod 25-32 and Flounder 22-32 | E10: C | F10: Y | H10: Y | I10: DATRAS, TowData, ROSCOP | J10: Y | K10: N | L10: =IF(OR(H10="Y",H10=""),"","x") ->  | M10: Typing error in the WP - the acronim for this survey shaal read: BITS Q4
D11: CTD by haul | E11: A | F11: N | H11: Y | I11: ICES Oceanographic DB; ICES - IROC | J11: Y | K11: N
D12: Litter by haul | E12: A | F12: N | H12: Y | I12: DATRAS | J12: Y | K12: N
D13: Marine mammal observations | E13: A | F13: N | H13: Y | I13: No existing database | J13: N | K13: N
D14: stomach content | E14: A | F14: N | H14: Y | I14: No existing database | J14: N | K14: N
A15: POL | B15: Baltic International Acoustic Survey | C15: BIAS | D15: Biological data for Herring 25-29 and Sprat 22-32 | E15: C | F15: Y | H15: Y | I15: ICES Acoustic trawl surveys DB | J15: Y | K15: N
D16: CTD by haul | E16: A | F16: N | H16: Y | I16: ICES Oceanographic DB; ICES - IROC | J16: Y | K16: N
D17: Marine mammal observations | E17: A | F17: N | H17: Y | I17: No existing database | J17: N | K17: N
A18: POL | B18: Sprat Acoustic Survey | C18: SPRAS | D18: Biological data for Sprat 22-32 | E18: C | F18: Y | H18: Y | I18: ICES Acoustic trawl surveys DB | J18: Y | K18: N
D19: CTD by haul | E19: A | F19: N | H19: Y | I19: ICES Oceanographic DB; ICES - IROC | J19: Y | K19: N
D20: Marine mammal observations | E20: A | F20: N | H20: Y | I20: No existing database | J20: N | K20: N

Sheet Table2A Fishing activity variab
A1: Table 2A: Fishing activity variables data collection strategy
S2: WP years | T2: 2017-2019
S3: AR year | T3: 2019
A4: MS | B4: Supra region | C4: Region | D4: Variable Group | E4: Variable | F4: Fishing technique | G4: Length class | H4: Metiers (level 6) | I4: Data collected under control regulation appropriate for scientific use (Y/N/I) | J4: Type of data collected under control regulation used to calculate the estimates | K4: Expected coverage of data collected under control regulation (% of fishing trips) | L4: Additional data collection (Y/N) | M4: Data collection scheme | N4: Planned coverage of data collected under complementary data collection (% of fishing trips) | O4: Comments | P4: Data collected under control regulation accessible for scientific use (Y/N/I) | Q4: Data source for complementary data collection | R4: Achieved coverage of data collected under complementary data collection | S4: Response Rate (%) | T4: AR comments
A5: POL | B5: Baltic Sea; North Sea; Eastern Arctic; NAFO; Extended North-Western waters (Ices areas V, VI and VII) and Southern Western waters | C5: Baltic Sea (ICES areas III b-d) | D5: Effort | E5: Days at sea, Hours fished, Fishing days, kW*Fishing days, GT*Fishing days, Number of trips, Number of fishing operations | F5: Demersal trawlers and/or seiners | G5: 10-<12 | H5: All metiers | I5: Y | J5: Aggregated data from logbooks | K5: 100 | L5: N | M5: None | N5: NA | P5: Y | Q5: NA | R5: NA | S5: NA | T5: Length class in meters
A6: POL | B6: Baltic Sea; North Sea; Eastern Arctic; NAFO; Extended North-Western waters (Ices areas V, VI and VII) and Southern Western waters | C6: Baltic Sea (ICES areas III b-d) | D6: Effort | E6: Days at sea, Hours fished, Fishing days, kW*Fishing days, GT*Fishing days, Number of trips, Number of fishing operations | F6: Demersal trawlers and/or seiners | G6: 12-<18 | H6: All metiers | I6: Y | J6: Aggregated data from logbooks, VMS data | K6: 100 | L6: N | M6: None | N6: NA | P6: Y | Q6: NA | R6: NA | S6: NA | T6: Length class in meters
A7: POL | B7: Baltic Sea; North Sea; Eastern Arctic; NAFO; Extended North-Western waters (Ices areas V, VI and VII) and Southern Western waters | C7: Baltic Sea (ICES areas III b-d) | D7: Effort | E7: Days at sea, Hours fished, Fishing days, kW*Fishing days, GT*Fishing days, Number of trips, Number of fishing operations | F7: Demersal trawlers and/or seiners | G7: 18-<24 | H7: All metiers | I7: Y | J7: Aggregated data from logbooks, VMS data | K7: 100 | L7: N | M7: None | N7: NA | P7: Y | Q7: NA | R7: NA | S7: NA | T7: Length class in meters
A8: POL | B8: Baltic Sea; North Sea; Eastern Arctic; NAFO; Extended North-Western waters (Ices areas V, VI and VII) and Southern Western waters | C8: Baltic Sea (ICES areas III b-d) | D8: Effort | E8: Days at sea, Hours fished, Fishing days, kW*Fishing days, GT*Fishing days, Number of trips, Number of fishing operations | F8: Demersal trawlers and/or seiners | G8: 24-<40 | H8: All metiers | I8: Y | J8: Aggregated data from logbooks, VMS data | K8: 100 | L8: N | M8: None | N8: NA | P8: Y | Q8: NA | R8: NA | S8: NA | T8: Length class in meters
A9: POL | B9: Baltic Sea; North Sea; Eastern Arctic; NAFO; Extended North-Western waters (Ices areas V, VI and VII) and Southern Western waters | C9: Baltic Sea (ICES areas III b-d) | D9: Capacity | E9: Number of vessels, GT, kW, Vessel Age | F9: Demersal trawlers and/or seiners | G9: 10-<12 | H9: All metiers | I9: Y | J9: Aggregated data from logbooks, Fleet register | K9: 100 | L9: N | M9: None | N9: NA | P9: Y | Q9: NA | R9: NA | S9: NA | T9: Length class in meters
A10: POL | B10: Baltic Sea; North Sea; Eastern Arctic; NAFO; Extended North-Western waters (Ices areas V, VI and VII) and Southern Western waters | C10: Baltic Sea (ICES areas III b-d) | D10: Capacity | E10: Number of vessels, GT, kW, Vessel Age | F10: Demersal trawlers and/or seiners | G10: 12-<18 | H10: All metiers | I10: Y | J10: Aggregated data from logbooks, Fleet register | K10: 100 | L10: N | M10: None | N10: NA | P10: Y | Q10: NA | R10: NA | S10: NA | T10: Length class in meters
A11: POL | B11: Baltic Sea; North Sea; Eastern Arctic; NAFO; Extended North-Western waters (Ices areas V, VI and VII) and Southern Western waters | C11: Baltic Sea (ICES areas III b-d) | D11: Capacity | E11: Number of vessels, GT, kW, Vessel Age | F11: Demersal trawlers and/or seiners | G11: 18-<24 | H11: All metiers | I11: Y | J11: Aggregated data from logbooks, Fleet register | K11: 100 | L11: N | M11: None | N11: NA | P11: Y | Q11: NA | R11: NA | S11: NA | T11: Length class in meters
A12: POL | B12: Baltic Sea; North Sea; Eastern Arctic; NAFO; Extended North-Western waters (Ices areas V, VI and VII) and Southern Western waters | C12: Baltic Sea (ICES areas III b-d) | D12: Capacity | E12: Number of vessels, GT, kW, Vessel Age | F12: Demersal trawlers and/or seiners | G12: 24-<40 | H12: All metiers | I12: Y | J12: Aggregated data from logbooks, Fleet register | K12: 100 | L12: N | M12: None | N12: NA | P12: Y | Q12: NA | R12: NA | S12: NA | T12: Length class in meters
A13: POL | B13: Baltic Sea; North Sea; Eastern Arctic; NAFO; Extended North-Western waters (Ices areas V, VI and VII) and Southern Western waters | C13: Baltic Sea (ICES areas III b-d) | D13: Landings | E13: Value of landings total and per commercial species, Live Weight of landings total and per species, Prices by commercial species | F13: Demersal trawlers and/or seiners | G13: 10-<12 | H13: All metiers | I13: Y | J13: Aggregated data from logbooks and sales notes | K13: 100 | L13: N | M13: None | N13: NA | P13: Y | Q13: NA | R13: NA | S13: NA | T13: Length class in meters
A14: POL | B14: Baltic Sea; North Sea; Eastern Arctic; NAFO; Extended North-Western waters (Ices areas V, VI and VII) and Southern Western waters | C14: Baltic Sea (ICES areas III b-d) | D14: Landings | E14: Value of landings total and per commercial species, Live Weight of landings total and per species, Prices by commercial species | F14: Demersal trawlers and/or seiners | G14: 12-<18 | H14: All metiers | I14: Y | J14: Aggregated data from logbooks and sales notes, VMS data | K14: 100 | L14: N | M14: None | N14: NA | P14: Y | Q14: NA | R14: NA | S14: NA | T14: Length class in meters
A15: POL | B15: Baltic Sea; North Sea; Eastern Arctic; NAFO; Extended North-Western waters (Ices areas V, VI and VII) and Southern Western waters | C15: Baltic Sea (ICES areas III b-d) | D15: Landings | E15: Value of landings total and per commercial species, Live Weight of landings total and per species, Prices by commercial species | F15: Demersal trawlers and/or seiners | G15: 18-<24 | H15: All metiers | I15: Y | J15: Aggregated data from logbooks and sales notes, VMS data | K15: 100 | L15: N | M15: None | N15: NA | P15: Y | Q15: NA | R15: NA | S15: NA | T15: Length class in meters
A16: POL | B16: Baltic Sea; North Sea; Eastern Arctic; NAFO; Extended North-Western waters (Ices areas V, VI and VII) and Southern Western waters | C16: Baltic Sea (ICES areas III b-d) | D16: Landings | E16: Value of landings total and per commercial species, Live Weight of landings total and per species, Prices by commercial species | F16: Demersal trawlers and/or seiners | G16: 24-<40 | H16: All metiers | I16: Y | J16: Aggregated data from logbooks and sales notes, VMS data | K16: 100 | L16: N | M16: None | N16: NA | P16: Y | Q16: NA | R16: NA | S16: NA | T16: Length class in meters
A17: POL | B17: Baltic Sea; North Sea; Eastern Arctic; NAFO; Extended North-Western waters (Ices areas V, VI and VII) and Southern Western waters | C17: Baltic Sea (ICES areas III b-d) | D17: Effort | E17: Days at sea, Hours fished, Fishing days, kW*Fishing days, GT*Fishing days, Number of trips, Number of fishing operations | F17: Pelagic trawlers | G17: 12-<18 | H17: All metiers | I17: Y | J17: Aggregated data from logbooks, VMS data | K17: 100 | L17: N | M17: None | N17: NA | P17: Y | Q17: NA | R17: NA | S17: NA | T17: Length class in meters
A18: POL | B18: Baltic Sea; North Sea; Eastern Arctic; NAFO; Extended North-Western waters (Ices areas V, VI and VII) and Southern Western waters | C18: Baltic Sea (ICES areas III b-d) | D18: Effort | E18: Days at sea, Hours fished, Fishing days, kW*Fishing days, GT*Fishing days, Number of trips, Number of fishing operations | F18: Pelagic trawlers | G18: 18-<24 | H18: All metiers | I18: Y | J18: Aggregated data from logbooks, VMS data | K18: 100 | L18: N | M18: None | N18: NA | P18: Y | Q18: NA | R18: NA | S18: NA | T18: Length class in meters
A19: POL | B19: Baltic Sea; North Sea; Eastern Arctic; NAFO; Extended North-Western waters (Ices areas V, VI and VII) and Southern Western waters | C19: Baltic Sea (ICES areas III b-d) | D19: Effort | E19: Days at sea, Hours fished, Fishing days, kW*Fishing days, GT*Fishing days, Number of trips, Number of fishing operations | F19: Pelagic trawlers | G19: 24-<40 | H19: All metiers | I19: Y | J19: Aggregated data from logbooks, VMS data | K19: 100 | L19: N | M19: None | N19: NA | P19: Y | Q19: NA | R19: NA | S19: NA | T19: Length class in meters
A20: POL | B20: Baltic Sea; North Sea; Eastern Arctic; NAFO; Extended North-Western waters (Ices areas V, VI and VII) and Southern Western waters | C20: Baltic Sea (ICES areas III b-d) | D20: Capacity | E20: Number of vessels, GT, kW, Vessel Age | F20: Pelagic trawlers | G20: 12-<18 | H20: All metiers | I20: Y | J20: Aggregated data from logbooks, Fleet register | K20: 100 | L20: N | M20: None | N20: NA | P20: Y | Q20: NA | R20: NA | S20: NA | T20: Length class in meters
A21: POL | B21: Baltic Sea; North Sea; Eastern Arctic; NAFO; Extended North-Western waters (Ices areas V, VI and VII) and Southern Western waters | C21: Baltic Sea (ICES areas III b-d) | D21: Capacity | E21: Number of vessels, GT, kW, Vessel Age | F21: Pelagic trawlers | G21: 18-<24 | H21: All metiers | I21: Y | J21: Aggregated data from logbooks, Fleet register | K21: 100 | L21: N | M21: None | N21: NA | P21: Y | Q21: NA | R21: NA | S21: NA | T21: Length class in meters
A22: POL | B22: Baltic Sea; North Sea; Eastern Arctic; NAFO; Extended North-Western waters (Ices areas V, VI and VII) and Southern Western waters | C22: Baltic Sea (ICES areas III b-d) | D22: Capacity | E22: Number of vessels, GT, kW, Vessel Age | F22: Pelagic trawlers | G22: 24-<40 | H22: All metiers | I22: Y | J22: Aggregated data from logbooks, Fleet register | K22: 100 | L22: N | M22: None | N22: NA | P22: Y | Q22: NA | R22: NA | S22: NA | T22: Length class in meters
A23: POL | B23: Baltic Sea; North Sea; Eastern Arctic; NAFO; Extended North-Western waters (Ices areas V, VI and VII) and Southern Western waters | C23: Baltic Sea (ICES areas III b-d) | D23: Landings | E23: Value of landings total and per commercial species, Live Weight of landings total and per species, Prices by commercial species | F23: Pelagic trawlers | G23: 12-<18 | H23: All metiers | I23: Y | J23: Aggregated data from logbooks and sales notes, VMS data | K23: 100 | L23: N | M23: None | N23: NA | P23: Y | Q23: NA | R23: NA | S23: NA | T23: Length class in meters
A24: POL | B24: Baltic Sea; North Sea; Eastern Arctic; NAFO; Extended North-Western waters (Ices areas V, VI and VII) and Southern Western waters | C24: Baltic Sea (ICES areas III b-d) | D24: Landings | E24: Value of landings total and per commercial species, Live Weight of landings total and per species, Prices by commercial species | F24: Pelagic trawlers | G24: 18-<24 | H24: All metiers | I24: Y | J24: Aggregated data from logbooks and sales notes, VMS data | K24: 100 | L24: N | M24: None | N24: NA | P24: Y | Q24: NA | R24: NA | S24: NA | T24: Length class in meters
A25: POL | B25: Baltic Sea; North Sea; Eastern Arctic; NAFO; Extended North-Western waters (Ices areas V, VI and VII) and Southern Western waters | C25: Baltic Sea (ICES areas III b-d) | D25: Landings | E25: Value of landings total and per commercial species, Live Weight of landings total and per species, Prices by commercial species | F25: Pelagic trawlers | G25: 24-<40 | H25: All metiers | I25: Y | J25: Aggregated data from logbooks and sales notes, VMS data | K25: 100 | L25: N | M25: None | N25: NA | P25: Y | Q25: NA | R25: NA | S25: NA | T25: Length class in meters
A26: POL | B26: Baltic Sea; North Sea; Eastern Arctic; NAFO; Extended North-Western waters (Ices areas V, VI and VII) and Southern Western waters | C26: Baltic Sea (ICES areas III b-d) | D26: Effort | E26: Days at sea, Hours fished, Fishing days, kW*Fishing days, GT*Fishing days, Number of trips, Number of nets | F26: Drift and/or fixed netters | G26: 0-<10 | H26: All metiers | I26: Y | J26: Data from monthly catch reports | K26: 100 | L26: N | M26: None | N26: NA | O26: Mesh size information is missing which causes difficulties in metier identification. | P26: Y | Q26: NA | R26: NA | S26: NA | T26: Length class in meters
A27: POL | B27: Baltic Sea; North Sea; Eastern Arctic; NAFO; Extended North-Western waters (Ices areas V, VI and VII) and Southern Western waters | C27: Baltic Sea (ICES areas III b-d) | D27: Effort | E27: Days at sea, Hours fished, Fishing days, kW*Fishing days, GT*Fishing days, Number of trips, Number of fishing operations, Number of nets | F27: Drift and/or fixed netters | G27: 10-<12 | H27: All metiers | I27: Y | J27: Aggregated data from logbooks | K27: 100 | L27: N | M27: None | N27: NA | P27: Y | Q27: NA | R27: NA | S27: NA | T27: Length class in meters
A28: POL | B28: Baltic Sea; North Sea; Eastern Arctic; NAFO; Extended North-Western waters (Ices areas V, VI and VII) and Southern Western waters | C28: Baltic Sea (ICES areas III b-d) | D28: Effort | E28: Days at sea, Hours fished, Fishing days, kW*Fishing days, GT*Fishing days, Number of trips, Number of fishing operations, Number of nets | F28: Drift and/or fixed netters | G28: 12-<18 | H28: All metiers | I28: Y | J28: Aggregated data from logbooks, VMS data | K28: 100 | L28: N | M28: None | N28: NA | P28: Y | Q28: NA | R28: NA | S28: NA | T28: Length class in meters
A29: POL | B29: Baltic Sea; North Sea; Eastern Arctic; NAFO; Extended North-Western waters (Ices areas V, VI and VII) and Southern Western waters | C29: Baltic Sea (ICES areas III b-d) | D29: Capacity | E29: Number of vessels, GT, kW, Vessel Age | F29: Drift and/or fixed netters | G29: 0-<10 | H29: All metiers | I29: Y | J29: Data from monthly catch reports, Fleet register | K29: 100 | L29: N | M29: None | N29: NA | O29: Mesh size information is missing which causes difficulties in metier identification. | P29: Y | Q29: NA | R29: NA | S29: NA | T29: Length class in meters
A30: POL | B30: Baltic Sea; North Sea; Eastern Arctic; NAFO; Extended North-Western waters (Ices areas V, VI and VII) and Southern Western waters | C30: Baltic Sea (ICES areas III b-d) | D30: Capacity | E30: Number of vessels, GT, kW, Vessel Age | F30: Drift and/or fixed netters | G30: 10-<12 | H30: All metiers | I30: Y | J30: Aggregated data from logbooks, Fleet register | K30: 100 | L30: N | M30: None | N30: NA | P30: Y | Q30: NA | R30: NA | S30: NA | T30: Length class in meters
A31: POL | B31: Baltic Sea; North Sea; Eastern Arctic; NAFO; Extended North-Western waters (Ices areas V, VI and VII) and Southern Western waters | C31: Baltic Sea (ICES areas III b-d) | D31: Capacity | E31: Number of vessels, GT, kW, Vessel Age | F31: Drift and/or fixed netters | G31: 12-<18 | H31: All metiers | I31: Y | J31: Aggregated data from logbooks, Fleet register | K31: 100 | L31: N | M31: None | N31: NA | P31: Y | Q31: NA | R31: NA | S31: NA | T31: Length class in meters
A32: POL | B32: Baltic Sea; North Sea; Eastern Arctic; NAFO; Extended North-Western waters (Ices areas V, VI and VII) and Southern Western waters | C32: Baltic Sea (ICES areas III b-d) | D32: Landings | E32: Value of landings total and per commercial species, Live Weight of landings total and per species, Prices by commercial species | F32: Drift and/or fixed netters | G32: 0-<10 | H32: All metiers | I32: Y | J32: Data from monthly catch reports ad sales notes | K32: 100 | L32: N | M32: None | N32: NA | O32: Mesh size information is missing which causes difficulties in metier identification. | P32: Y | Q32: NA | R32: NA | S32: NA | T32: Limited access to sales notes which are stored in a paper form.
A33: POL | B33: Baltic Sea; North Sea; Eastern Arctic; NAFO; Extended North-Western waters (Ices areas V, VI and VII) and Southern Western waters | C33: Baltic Sea (ICES areas III b-d) | D33: Landings | E33: Value of landings total and per commercial species, Live Weight of landings total and per species, Prices by commercial species | F33: Drift and/or fixed netters | G33: 10-<12 | H33: All metiers | I33: Y | J33: Aggregated data from logbooks and sales notes | K33: 100 | L33: N | M33: None | N33: NA | P33: Y | Q33: NA | R33: NA | S33: NA | T33: Length class in meters
A34: POL | B34: Baltic Sea; North Sea; Eastern Arctic; NAFO; Extended North-Western waters (Ices areas V, VI and VII) and Southern Western waters | C34: Baltic Sea (ICES areas III b-d) | D34: Landings | E34: Value of landings total and per commercial species, Live Weight of landings total and per species, Prices by commercial species | F34: Drift and/or fixed netters | G34: 12-<18 | H34: All metiers | I34: Y | J34: Aggregated data from logbooks and sales notes, VMS data | K34: 100 | L34: N | M34: None | N34: NA | P34: Y | Q34: NA | R34: NA | S34: NA | T34: Length class in meters
A35: POL | B35: Baltic Sea; North Sea; Eastern Arctic; NAFO; Extended North-Western waters (Ices areas V, VI and VII) and Southern Western waters | C35: Baltic Sea (ICES areas III b-d) | D35: Effort | E35: Days at sea, Hours fished, Fishing days, kW*Fishing days, GT*Fishing days, Number of trips, Number of pots/traps | F35: Vessels using Pots and/or traps | G35: 0-<10 | H35: All metiers | I35: Y | J35: Data from monthly catch reports | K35: 100 | L35: N | M35: None | N35: NA | O35: Mesh size information is missing which causes difficulties in metier identification. | P35: Y | Q35: NA | R35: NA | S35: NA | T35: Length class in meters
A36: POL | B36: Baltic Sea; North Sea; Eastern Arctic; NAFO; Extended North-Western waters (Ices areas V, VI and VII) and Southern Western waters | C36: Baltic Sea (ICES areas III b-d) | D36: Effort | E36: Days at sea, Hours fished, Fishing days, kW*Fishing days, GT*Fishing days, Number of trips, Number of fishing operations, Number of pots/traps | F36: Vessels using Pots and/or traps | G36: 10-<12 | H36: All metiers | I36: Y | J36: Aggregated data from logbooks | K36: 100 | L36: N | M36: None | N36: NA | P36: Y | Q36: NA | R36: NA | S36: NA | T36: Length class in meters
A37: POL | B37: Baltic Sea; North Sea; Eastern Arctic; NAFO; Extended North-Western waters (Ices areas V, VI and VII) and Southern Western waters | C37: Baltic Sea (ICES areas III b-d) | D37: Capacity | E37: Number of vessels, GT, kW, Vessel Age | F37: Vessels using Pots and/or traps | G37: 0-<10 | H37: All metiers | I37: Y | J37: Data from monthly catch reports, Fleet register | K37: 100 | L37: N | M37: None | N37: NA | O37: Mesh size information is missing which causes difficulties in metier identification. | P37: Y | Q37: NA | R37: NA | S37: NA | T37: Length class in meters
A38: POL | B38: Baltic Sea; North Sea; Eastern Arctic; NAFO; Extended North-Western waters (Ices areas V, VI and VII) and Southern Western waters | C38: Baltic Sea (ICES areas III b-d) | D38: Capacity | E38: Number of vessels, GT, kW, Vessel Age | F38: Vessels using Pots and/or traps | G38: 10-<12 | H38: All metiers | I38: Y | J38: Aggregated data from logbooks, Fleet register | K38: 100 | L38: N | M38: None | N38: NA | P38: Y | Q38: NA | R38: NA | S38: NA | T38: Length class in meters
A39: POL | B39: Baltic Sea; North Sea; Eastern Arctic; NAFO; Extended North-Western waters (Ices areas V, VI and VII) and Southern Western waters | C39: Baltic Sea (ICES areas III b-d) | D39: Landings | E39: Value of landings total and per commercial species, Live Weight of landings total and per species, Prices by commercial species | F39: Vessels using Pots and/or traps | G39: 0-<10 | H39: All metiers | I39: Y | J39: Data from monthly catch reports ad sales notes | K39: 100 | L39: N | M39: None | N39: NA | O39: Mesh size information is missing which causes difficulties in metier identification. | P39: Y | Q39: NA | R39: NA | S39: NA | T39: Length class in meters. Limited access to sales notes which are stored in a paper form.
A40: POL | B40: Baltic Sea; North Sea; Eastern Arctic; NAFO; Extended North-Western waters (Ices areas V, VI and VII) and Southern Western waters | C40: Baltic Sea (ICES areas III b-d) | D40: Landings | E40: Value of landings total and per commercial species, Live Weight of landings total and per species, Prices by commercial species | F40: Vessels using Pots and/or traps | G40: 10-<12 | H40: All metiers | I40: Y | J40: Aggregated data from logbooks and sales notes | K40: 100 | L40: N | M40: None | N40: NA | P40: Y | Q40: NA | R40: NA | S40: NA | T40: Length class in meters
A41: POL | B41: Baltic Sea; North Sea; Eastern Arctic; NAFO; Extended North-Western waters (Ices areas V, VI and VII) and Southern Western waters | C41: Baltic Sea (ICES areas III b-d) | D41: Effort | E41: Days at sea, Hours fished, Fishing days, kW*Fishing days, GT*Fishing days, Number of trips, Number of hooks | F41: Vessels using hooks | G41: 0-<10 | H41: All metiers | I41: Y | J41: Data from monthly catch reports | K41: 100 | L41: N | M41: None | N41: NA | O41: Mesh size information is missing which causes difficulties in metier identification. | P41: Y | Q41: NA | R41: NA | S41: NA | T41: Length class in meters
A42: POL | B42: Baltic Sea; North Sea; Eastern Arctic; NAFO; Extended North-Western waters (Ices areas V, VI and VII) and Southern Western waters | C42: Baltic Sea (ICES areas III b-d) | D42: Effort | E42: Days at sea, Hours fished, Fishing days, kW*Fishing days, GT*Fishing days, Number of trips, Number of fishing operations, Number of hooks | F42: Vessels using hooks | G42: 10-<12 | H42: All metiers | I42: Y | J42: Aggregated data from logbooks | K42: 100 | L42: N | M42: None | N42: NA | P42: Y | Q42: NA | R42: NA | S42: NA | T42: Length class in meters
A43: POL | B43: Baltic Sea; North Sea; Eastern Arctic; NAFO; Extended North-Western waters (Ices areas V, VI and VII) and Southern Western waters | C43: Baltic Sea (ICES areas III b-d) | D43: Effort | E43: Days at sea, Hours fished, Fishing days, kW*Fishing days, GT*Fishing days, Number of trips, Number of fishing operations, Number of hooks | F43: Vessels using hooks | G43: 12-<18 | H43: All metiers | I43: Y | J43: Aggregated data from logbooks, VMS data | K43: 100 | L43: N | M43: None | N43: NA | P43: Y | Q43: NA | R43: NA | S43: NA | T43: Segment did not exist in 2018. Length class in meters
A44: POL | B44: Baltic Sea; North Sea; Eastern Arctic; NAFO; Extended North-Western waters (Ices areas V, VI and VII) and Southern Western waters | C44: Baltic Sea (ICES areas III b-d) | D44: Effort | E44: Days at sea, Hours fished, Fishing days, kW*Fishing days, GT*Fishing days, Number of trips, Number of fishing operations, Number of hooks | F44: Vessels using hooks | G44: 18-<24 | H44: All metiers | I44: Y | J44: Aggregated data from logbooks, VMS data | K44: 100 | L44: N | M44: None | N44: NA | P44: Y | Q44: NA | R44: NA | S44: NA | T44: Segment did not exist in 2018. Length class in meters
A45: POL | B45: Baltic Sea; North Sea; Eastern Arctic; NAFO; Extended North-Western waters (Ices areas V, VI and VII) and Southern Western waters | C45: Baltic Sea (ICES areas III b-d) | D45: Capacity | E45: Number of vessels, GT, kW, Vessel Age | F45: Vessels using hooks | G45: 0-<10 | H45: All metiers | I45: Y | J45: Data from monthly catch reports, Fleet register | K45: 100 | L45: N | M45: None | N45: NA | O45: Mesh size information is missing which causes difficulties in metier identification. | P45: Y | Q45: NA | R45: NA | S45: NA | T45: Length class in meters
A46: POL | B46: Baltic Sea; North Sea; Eastern Arctic; NAFO; Extended North-Western waters (Ices areas V, VI and VII) and Southern Western waters | C46: Baltic Sea (ICES areas III b-d) | D46: Capacity | E46: Number of vessels, GT, kW, Vessel Age | F46: Vessels using hooks | G46: 10-<12 | H46: All metiers | I46: Y | J46: Aggregated data from logbooks, Fleet register | K46: 100 | L46: N | M46: None | N46: NA | P46: Y | Q46: NA | R46: NA | S46: NA | T46: Length class in meters
A47: POL | B47: Baltic Sea; North Sea; Eastern Arctic; NAFO; Extended North-Western waters (Ices areas V, VI and VII) and Southern Western waters | C47: Baltic Sea (ICES areas III b-d) | D47: Capacity | E47: Number of vessels, GT, kW, Vessel Age | F47: Vessels using hooks | G47: 12-<18 | H47: All metiers | I47: Y | J47: Aggregated data from logbooks, Fleet register | K47: 100 | L47: N | M47: None | N47: NA | P47: Y | Q47: NA | R47: NA | S47: NA | T47: Segment did not exist in 2018. Length class in meters
A48: POL | B48: Baltic Sea; North Sea; Eastern Arctic; NAFO; Extended North-Western waters (Ices areas V, VI and VII) and Southern Western waters | C48: Baltic Sea (ICES areas III b-d) | D48: Capacity | E48: Number of vessels, GT, kW, Vessel Age | F48: Vessels using hooks | G48: 18-<24 | H48: All metiers | I48: Y | J48: Aggregated data from logbooks, Fleet register | K48: 100 | L48: N | M48: None | N48: NA | P48: Y | Q48: NA | R48: NA | S48: NA | T48: Segment did not exist in 2018. Length class in meters
A49: POL | B49: Baltic Sea; North Sea; Eastern Arctic; NAFO; Extended North-Western waters (Ices areas V, VI and VII) and Southern Western waters | C49: Baltic Sea (ICES areas III b-d) | D49: Landings | E49: Value of landings total and per commercial species, Live Weight of landings total and per species, Prices by commercial species | F49: Vessels using hooks | G49: 0-<10 | H49: All metiers | I49: Y | J49: Data from monthly catch reports ad sales notes | K49: 100 | L49: N | M49: None | N49: NA | O49: Mesh size information is missing which causes difficulties in metier identification. | P49: Y | Q49: NA | R49: NA | S49: NA | T49: Length class in meters
A50: POL | B50: Baltic Sea; North Sea; Eastern Arctic; NAFO; Extended North-Western waters (Ices areas V, VI and VII) and Southern Western waters | C50: Baltic Sea (ICES areas III b-d) | D50: Landings | E50: Value of landings total and per commercial species, Live Weight of landings total and per species, Prices by commercial species | F50: Vessels using hooks | G50: 10-<12 | H50: All metiers | I50: Y | J50: Aggregated data from logbooks and sales notes | K50: 100 | L50: N | M50: None | N50: NA | P50: Y | Q50: NA | R50: NA | S50: NA | T50: Length class in meters
A51: POL | B51: Baltic Sea; North Sea; Eastern Arctic; NAFO; Extended North-Western waters (Ices areas V, VI and VII) and Southern Western waters | C51: Baltic Sea (ICES areas III b-d) | D51: Landings | E51: Value of landings total and per commercial species, Live Weight of landings total and per species, Prices by commercial species | F51: Vessels using hooks | G51: 12-<18 | H51: All metiers | I51: Y | J51: Aggregated data from logbooks and sales notes, VMS data | K51: 100 | L51: N | M51: None | N51: NA | P51: Y | Q51: NA | R51: NA | S51: NA | T51: Segment did not exist in 2018. Length class in meters
A52: POL | B52: Baltic Sea; North Sea; Eastern Arctic; NAFO; Extended North-Western waters (Ices areas V, VI and VII) and Southern Western waters | C52: Baltic Sea (ICES areas III b-d) | D52: Landings | E52: Value of landings total and per commercial species, Live Weight of landings total and per species, Prices by commercial species | F52: Vessels using hooks | G52: 18-<24 | H52: All metiers | I52: Y | J52: Aggregated data from logbooks and sales notes, VMS data | K52: 100 | L52: N | M52: None | N52: NA | P52: Y | Q52: NA | R52: NA | S52: NA | T52: Segment did not exist in 2018. Length class in meters
A53: POL | B53: Baltic Sea; North Sea; Eastern Arctic; NAFO; Extended North-Western waters (Ices areas V, VI and VII) and Southern Western waters | C53: Eastern Arctic (ICES areas I and II) | D53: Effort | E53: Days at sea, Hours fished, Fishing days, kW*Fishing days, GT*Fishing days, Number of trips, Number of fishing operations | F53: Demersal trawlers and/or seiners | G53: 40 m or larger | H53: All metiers | I53: Y | J53: Aggregated data from logbooks, VMS data | K53: 100 | L53: N | M53: None | N53: NA | P53: Y | Q53: NA | R53: NA | S53: NA
A54: POL | B54: Baltic Sea; North Sea; Eastern Arctic; NAFO; Extended North-Western waters (Ices areas V, VI and VII) and Southern Western waters | C54: Eastern Arctic (ICES areas I and II) | D54: Capacity | E54: Number of vessels, GT, kW, Vessel Age | F54: Demersal trawlers and/or seiners | G54: 40 m or larger | H54: All metiers | I54: Y | J54: Aggregated data from logbooks, Fleet register | K54: 100 | L54: N | M54: None | N54: NA | P54: Y | Q54: NA | R54: NA | S54: NA
A55: POL | B55: Baltic Sea; North Sea; Eastern Arctic; NAFO; Extended North-Western waters (Ices areas V, VI and VII) and Southern Western waters | C55: Eastern Arctic (ICES areas I and II) | D55: Landings | E55: Live Weight of landings total and per species | F55: Demersal trawlers and/or seiners | G55: 40 m or larger | H55: All metiers | I55: Y | J55: Aggregated data from logbooks and sales notes, VMS data | K55: 100 | L55: N | M55: None | N55: NA | P55: Y | Q55: NA | R55: NA | S55: NA
A56: POL | B56: Other regions | C56: CECAF | D56: Effort | E56: Days at sea, Hours fished, Fishing days, kW*Fishing days, GT*Fishing days, Number of trips, Number of fishing operations | F56: Pelagic trawlers | G56: 40 m or larger | H56: All metiers | I56: Y | J56: Aggregated data from logbooks, VMS data | K56: 100 | L56: N | M56: None | N56: NA | P56: Y | Q56: NA | R56: NA | S56: NA
A57: POL | B57: Other regions | C57: CECAF | D57: Capacity | E57: Number of vessels, GT, kW, Vessel Age | F57: Pelagic trawlers | G57: 40 m or larger | H57: All metiers | I57: Y | J57: Aggregated data from logbooks, Fleet register | K57: 100 | L57: N | M57: None | N57: NA | P57: Y | Q57: NA | R57: NA | S57: NA
A58: POL | B58: Other regions | C58: CECAF | D58: Landings | E58: Live Weight of landings total and per species | F58: Pelagic trawlers | G58: 40 m or larger | H58: All metiers | I58: Y | J58: Aggregated data from logbooks and sales notes, VMS data | K58: 100 | L58: N | M58: None | N58: NA | P58: Y | Q58: NA | R58: NA | S58: NA
A59: POL | B59: Other regions | C59: SPRFMO | D59: Effort | E59: Days at sea, Hours fished, Fishing days, kW*Fishing days, GT*Fishing days, Number of trips, Number of fishing operations | F59: Pelagic trawlers | G59: 40 m or larger | H59: All metiers | I59: Y | J59: Aggregated data from logbooks, VMS data | K59: 100 | L59: N | M59: None | N59: NA | P59: Y | Q59: NA | R59: NA | S59: NA
A60: POL | B60: Other regions | C60: SPRFMO | D60: Capacity | E60: Number of vessels, GT, kW, Vessel Age | F60: Pelagic trawlers | G60: 40 m or larger | H60: All metiers | I60: Y | J60: Aggregated data from logbooks, Fleet register | K60: 100 | L60: N | M60: None | N60: NA | P60: Y | Q60: NA | R60: NA | S60: NA
A61: POL | B61: Other regions | C61: SPRFMO | D61: Landings | E61: Live Weight of landings total and per species | F61: Pelagic trawlers | G61: 40 m or larger | H61: All metiers | I61: Y | J61: Aggregated data from logbooks and sales notes, VMS data | K61: 100 | L61: N | M61: None | N61: NA | P61: Y | Q61: NA | R61: NA | S61: NA
A62: POL | B62: Baltic Sea; North Sea; Eastern Arctic; NAFO; Extended North-Western waters (Ices areas V, VI and VII) and Southern Western waters | C62: Baltic Sea (ICES areas III b-d) | D62: Capacity | E62: Number of vessels, GT, kW, Vessel Age | F62: Inactive | G62: 0-<10 m | H62: NA | I62: Y | J62: Fleet register | K62: 100 | L62: N | M62: None | N62: NA | P62: Y | Q62: NA | R62: NA | S62: NA | T62: New row
A63: POL | B63: Baltic Sea; North Sea; Eastern Arctic; NAFO; Extended North-Western waters (Ices areas V, VI and VII) and Southern Western waters | C63: Baltic Sea (ICES areas III b-d) | D63: Capacity | E63: Number of vessels, GT, kW, Vessel Age | F63: Inactive | G63: 10-<12 m | H63: NA | I63: Y | J63: Fleet register | K63: 100 | L63: N | M63: None | N63: NA | P63: Y | Q63: NA | R63: NA | S63: NA | T63: New row
A64: POL | B64: Baltic Sea; North Sea; Eastern Arctic; NAFO; Extended North-Western waters (Ices areas V, VI and VII) and Southern Western waters | C64: Baltic Sea (ICES areas III b-d) | D64: Capacity | E64: Number of vessels, GT, kW, Vessel Age | F64: Inactive | G64: 12-<18 m | H64: NA | I64: Y | J64: Fleet register | K64: 100 | L64: N | M64: None | N64: NA | P64: Y | Q64: NA | R64: NA | S64: NA | T64: New row
A65: POL | B65: Baltic Sea; North Sea; Eastern Arctic; NAFO; Extended North-Western waters (Ices areas V, VI and VII) and Southern Western waters | C65: Baltic Sea (ICES areas III b-d) | D65: Capacity | E65: Number of vessels, GT, kW, Vessel Age | F65: Inactive | G65: 18-<24 m | H65: NA | I65: Y | J65: Fleet register | K65: 100 | L65: N | M65: None | N65: NA | P65: Y | Q65: NA | R65: NA | S65: NA | T65: New row
A66: POL | B66: Baltic Sea; North Sea; Eastern Arctic; NAFO; Extended North-Western waters (Ices areas V, VI and VII) and Southern Western waters | C66: Baltic Sea (ICES areas III b-d) | D66: Capacity | E66: Number of vessels, GT, kW, Vessel Age | F66: Inactive | G66: 24-<40 m | H66: NA | I66: Y | J66: Fleet register | K66: 100 | L66: N | M66: None | N66: NA | P66: Y | Q66: NA | R66: NA | S66: NA | T66: New row
A67: POL | B67: Baltic Sea; North Sea; Eastern Arctic; NAFO; Extended North-Western waters (Ices areas V, VI and VII) and Southern Western waters | C67: North Sea (ICES areas IIIa and IV) | D67: Effort | E67: Days at sea, Hours fished, Fishing days, kW*Fishing days, GT*Fishing days, Number of trips, Number of fishing operations, Number of pots/traps | F67: Vessels using Pots and/or traps | G67: 24-<40 m | H67: All metiers | I67: Y | J67: Aggregated data from logbooks, VMS data | K67: 100 | L67: N | M67: None | N67: NA | P67: Y | Q67: NA | R67: NA | S67: NA | T67: New row. Segment was not included in WP
A68: POL | B68: Baltic Sea; North Sea; Eastern Arctic; NAFO; Extended North-Western waters (Ices areas V, VI and VII) and Southern Western waters | C68: North Sea (ICES areas IIIa and IV) | D68: Capacity | E68: Number of vessels, GT, kW, Vessel Age | F68: Vessels using Pots and/or traps | G68: 24-<40 m | H68: All metiers | I68: Y | J68: Fleet register | K68: 100 | L68: N | M68: None | N68: NA | P68: Y | Q68: NA | R68: NA | S68: NA | T68: New row. Segment was not included in WP
A69: POL | B69: Baltic Sea; North Sea; Eastern Arctic; NAFO; Extended North-Western waters (Ices areas V, VI and VII) and Southern Western waters | C69: North Sea (ICES areas IIIa and IV) | D69: Landings | E69: Value of landings total and per commercial species, Live Weight of landings total and per species, Prices by commercial species | F69: Vessels using Pots and/or traps | G69: 24-<40 m | H69: All metiers | I69: Y | J69: Aggregated data from logbooks and sales notes, VMS data | K69: 100 | L69: N | M69: None | N69: NA | P69: Y | Q69: NA | R69: NA | S69: NA | T69: New row. Segment was not included in WP
A70: POL | B70: Baltic Sea; North Sea; Eastern Arctic; NAFO; Extended North-Western waters (Ices areas V, VI and VII) and Southern Western waters | C70: Baltic Sea (ICES areas III b-d) | D70: Effort | E70: Days at sea, Hours fished, Fishing days, kW*Fishing days, GT*Fishing days, Number of trips, Number of fishing operations | F70: Vessels using active and passive gears | G70: 12-<18 m | H70: All metiers | I70: Y | J70: Aggregated data from logbooks, VMS data | K70: 100 | L70: N | M70: None | N70: NA | P70: Y | Q70: NA | R70: NA | S70: NA | T70: New row. Segment was not included in WP
A71: POL | B71: Baltic Sea; North Sea; Eastern Arctic; NAFO; Extended North-Western waters (Ices areas V, VI and VII) and Southern Western waters | C71: Baltic Sea (ICES areas III b-d) | D71: Capacity | E71: Number of vessels, GT, kW, Vessel Age | F71: Vessels using active and passive gears | G71: 12-<18 m | H71: All metiers | I71: Y | J71: Aggregated data from logbooks, Fleet register | K71: 100 | L71: N | M71: None | N71: NA | P71: Y | Q71: NA | R71: NA | S71: NA | T71: New row. Segment was not included in WP
A72: POL | B72: Baltic Sea; North Sea; Eastern Arctic; NAFO; Extended North-Western waters (Ices areas V, VI and VII) and Southern Western waters | C72: Baltic Sea (ICES areas III b-d) | D72: Landings | E72: Value of landings total and per commercial species, Live Weight of landings total and per species, Prices by commercial species | F72: Vessels using active and passive gears | G72: 12-<18 m | H72: All metiers | I72: Y | J72: Aggregated data from logbooks and sales notes, VMS data | K72: 100 | L72: N | M72: None | N72: NA | P72: Y | Q72: NA | R72: NA | S72: NA | T72: New row. Segment was not included in WP
A73: POL | B73: Baltic Sea; North Sea; Eastern Arctic; NAFO; Extended North-Western waters (Ices areas V, VI and VII) and Southern Western waters | C73: Baltic Sea (ICES areas III b-d) | D73: Effort | E73: Days at sea, Hours fished, Fishing days, kW*Fishing days, GT*Fishing days, Number of trips, Number of fishing operations | F73: Vessels using active and passive gears | G73: 18-<24 m | H73: All metiers | I73: Y | J73: Aggregated data from logbooks, VMS data | K73: 100 | L73: N | M73: None | N73: NA | P73: Y | Q73: NA | R73: NA | S73: NA | T73: New row. Segment was not included in WP
A74: POL | B74: Baltic Sea; North Sea; Eastern Arctic; NAFO; Extended North-Western waters (Ices areas V, VI and VII) and Southern Western waters | C74: Baltic Sea (ICES areas III b-d) | D74: Capacity | E74: Number of vessels, GT, kW, Vessel Age | F74: Vessels using active and passive gears | G74: 18-<24 m | H74: All metiers | I74: Y | J74: Aggregated data from logbooks, Fleet register | K74: 100 | L74: N | M74: None | N74: NA | P74: Y | Q74: NA | R74: NA | S74: NA | T74: New row. Segment was not included in WP
A75: POL | B75: Baltic Sea; North Sea; Eastern Arctic; NAFO; Extended North-Western waters (Ices areas V, VI and VII) and Southern Western waters | C75: Baltic Sea (ICES areas III b-d) | D75: Landings | E75: Value of landings total and per commercial species, Live Weight of landings total and per species, Prices by commercial species | F75: Vessels using active and passive gears | G75: 18-<24 m | H75: All metiers | I75: Y | J75: Aggregated data from logbooks and sales notes, VMS data | K75: 100 | L75: N | M75: None | N75: NA | P75: Y | Q75: NA | R75: NA | S75: NA | T75: New row. Segment was not included in WP
A76: POL | B76: Baltic Sea; North Sea; Eastern Arctic; NAFO; Extended North-Western waters (Ices areas V, VI and VII) and Southern Western waters | C76: Baltic Sea (ICES areas III b-d) | D76: Effort | E76: Days at sea, Hours fished, Fishing days, kW*Fishing days, GT*Fishing days, Number of trips, Number of fishing operations, Number of nets | F76: Drift and/or fixed netters | G76: 18-<24 m | H76: All metiers | I76: Y | J76: Aggregated data from logbooks, VMS data | K76: 100 | L76: N | M76: None | N76: NA | P76: Y | Q76: NA | R76: NA | S76: NA | T76: New row. Segment was not included in WP
A77: POL | B77: Baltic Sea; North Sea; Eastern Arctic; NAFO; Extended North-Western waters (Ices areas V, VI and VII) and Southern Western waters | C77: Baltic Sea (ICES areas III b-d) | D77: Capacity | E77: Number of vessels, GT, kW, Vessel Age | F77: Drift and/or fixed netters | G77: 18-<24 m | H77: All metiers | I77: Y | J77: Aggregated data from logbooks, Fleet register | K77: 100 | L77: N | M77: None | N77: NA | P77: Y | Q77: NA | R77: NA | S77: NA | T77: New row. Segment was not included in WP
A78: POL | B78: Baltic Sea; North Sea; Eastern Arctic; NAFO; Extended North-Western waters (Ices areas V, VI and VII) and Southern Western waters | C78: Baltic Sea (ICES areas III b-d) | D78: Landings | E78: Value of landings total and per commercial species, Live Weight of landings total and per species, Prices by commercial species | F78: Drift and/or fixed netters | G78: 18-<24 m | H78: All metiers | I78: Y | J78: Aggregated data from logbooks and sales notes, VMS data | K78: 100 | L78: N | M78: None | N78: NA | P78: Y | Q78: NA | R78: NA | S78: NA | T78: New row. Segment was not included in WP

Sheet Table3A Pop segment fisheries
A1: Table 3A: Population segments for collection of economic and social data for fisheries
Q2: WP years | R2: 2017-2019
Q3: AR year | R3: 2019
A4: MS | B4: Supra region | C4: Fishing technique | D4: Length class | E4: Cluster Name | F4: Type of variables (E/S) | G4: Variable | H4: Data Source | I4: Type of data collection scheme | J4: Frequency | K4: Planned sample rate % | L4: Comments | M4: Frame population | N4: Achieved sample number | O4: Achieved Sample Rate % | P4: Response Rate % | Q4: Achieved Sample no/Planned sample no. | R4: AR Comments
A5: POL | B5: Baltic Sea, North Sea and Eastern Arctic, and North Atlantic | C5: Passive gears | D5: 00-<10 m | E5: NA | F5: E | G5: Gross value of landings | H5: landing declaration, sales notes | I5: A | J5: Every Year | K5: 100 | M5: 510 | N5: 510 | O5: =N5/M5 -> 1 | P5: =N5/M5 -> 1 | Q5: =N5/(M5*K5/100) -> 1 | R5: Typing error in WP - name in column C should read: "Vessels using Polyvalent ‘passive’ gears only". Additional Data Source - first sale documents. Includes vessels using hooks, fixed netters, vessels using pots and traps and vessels using Polyvalent passive gears.
A6: POL | B6: Baltic Sea, North Sea and Eastern Arctic, and North Atlantic | C6: Passive gears | D6: 00-<10 m | E6: NA | F6: E | G6: Income from leasing out quota or other fishing rights | H6: not relevant | M6: N/A | N6: N/A | O6: N/A | P6: N/A | Q6: N/A
A7: POL | B7: Baltic Sea, North Sea and Eastern Arctic, and North Atlantic | C7: Passive gears | D7: 00-<10 m | E7: NA | F7: E | G7: Other income | H7: questionnaires | I7: A | J7: Every Year | K7: 100 | M7: 510 | N7: 248 | O7: =N7/M7 -> 0.4862745098 | P7: =N7/M7 -> 0.4862745098 | Q7: 0.4862745098 | R7: Typing error in WP - name in column C should read: "Vessels using Polyvalent ‘passive’ gears only". Includes vessels using hooks, fixed netters, vessels using pots and traps and vessels using Polyvalent passive gears. Achieved Sample Rate lower than expected due to low no of responses
A8: POL | B8: Baltic Sea, North Sea and Eastern Arctic, and North Atlantic | C8: Passive gears | D8: 00-<10 m | E8: NA | F8: E | G8: Wages and salaries of crew | H8: questionnaires | I8: A | J8: Every Year | K8: 100 | M8: 510 | N8: 248 | O8: 0.4862745098 | P8: =N8/M8 -> 0.4862745098 | Q8: 0.4862745098 | R8: Typing error in WP - name in column C should read: "Vessels using Polyvalent ‘passive’ gears only". Wrong variable name in WP - should read: "Personnel cost". Includes vessels using hooks, fixed netters, vessels using pots and traps and vessels using Polyvalent passive gears. Achieved Sample Rate lower than expected due to low no of responses
A9: POL | B9: Baltic Sea, North Sea and Eastern Arctic, and North Atlantic | C9: Passive gears | D9: 00-<10 m | E9: NA | F9: E | G9: Imputed value of unpaid labour | H9: estimation | I9: D | J9: Every Year | K9: 100 | M9: 510 | N9: 248 | O9: 0.4862745098 | P9: 0.4862745098 | Q9: 0.4862745098 | R9: Typing error in WP - name in column C should read: "Vessels using Polyvalent ‘passive’ gears only". Wrong variable name in WP - should read: "Value of unpaid labour". Includes vessels using hooks, fixed netters, vessels using pots and traps and vessels using Polyvalent passive gears. Achieved Sample Rate lower than expected due to low no of responses
A10: POL | B10: Baltic Sea, North Sea and Eastern Arctic, and North Atlantic | C10: Passive gears | D10: 00-<10 m | E10: NA | F10: E | G10: Energy costs | H10: questionnaires | I10: A | J10: Every Year | K10: 100 | M10: 510 | N10: 248 | O10: 0.4862745098 | P10: 0.4862745098 | Q10: 0.4862745098 | R10: Typing error in WP - name in column C should read: "Vessels using Polyvalent ‘passive’ gears only". Includes vessels using hooks, fixed netters, vessels using pots and traps and vessels using Polyvalent passive gears. Achieved Sample Rate lower than expected due to low no of responses
A11: POL | B11: Baltic Sea, North Sea and Eastern Arctic, and North Atlantic | C11: Passive gears | D11: 00-<10 m | E11: NA | F11: E | G11: Repair and maintenance costs | H11: questionnaires | I11: A | J11: Every Year | K11: 100 | M11: 510 | N11: 248 | O11: 0.4862745098 | P11: 0.4862745098 | Q11: 0.4862745098 | R11: Typing error in WP - name in column C should read: "Vessels using Polyvalent ‘passive’ gears only". Includes vessels using hooks, fixed netters, vessels using pots and traps and vessels using Polyvalent passive gears. Achieved Sample Rate lower than expected due to low no of responses
A12: POL | B12: Baltic Sea, North Sea and Eastern Arctic, and North Atlantic | C12: Passive gears | D12: 00-<10 m | E12: NA | F12: E | G12: Variable costs | H12: questionnaires | I12: A | J12: Every Year | K12: 100 | M12: 510 | N12: 248 | O12: 0.4862745098 | P12: 0.4862745098 | Q12: 0.4862745098 | R12: Typing error in WP - name in column C should read: "Vessels using Polyvalent ‘passive’ gears only". Includes vessels using hooks, fixed netters, vessels using pots and traps and vessels using Polyvalent passive gears. Achieved Sample Rate lower than expected due to low no of responses
A13: POL | B13: Baltic Sea, North Sea and Eastern Arctic, and North Atlantic | C13: Passive gears | D13: 00-<10 m | E13: NA | F13: E | G13: Non-variable costs | H13: questionnaires | I13: A | J13: Every Year | K13: 100 | M13: 510 | N13: 248 | O13: 0.4862745098 | P13: 0.4862745098 | Q13: 0.4862745098 | R13: Typing error in WP - name in column C should read: "Vessels using Polyvalent ‘passive’ gears only". Includes vessels using hooks, fixed netters, vessels using pots and traps and vessels using Polyvalent passive gears. Achieved Sample Rate lower than expected due to low no of responses
A14: POL | B14: Baltic Sea, North Sea and Eastern Arctic, and North Atlantic | C14: Passive gears | D14: 00-<10 m | E14: NA | F14: E | G14: Lease/rental payments for quota or other fishing rights | H14: questionnaires | I14: A | J14: Every Year | K14: 100 | M14: 510 | N14: 248 | O14: 0.4862745098 | P14: 0.4862745098 | Q14: 0.4862745098 | R14: Typing error in WP - name in column C should read: "Vessels using Polyvalent ‘passive’ gears only". Includes vessels using hooks, fixed netters, vessels using pots and traps and vessels using Polyvalent passive gears. Achieved Sample Rate lower than expected due to low no of responses
A15: POL | B15: Baltic Sea, North Sea and Eastern Arctic, and North Atlantic | C15: Passive gears | D15: 00-<10 m | E15: NA | F15: E | G15: Operating Subsidies | H15: administrative records | I15: A | J15: Every Year | K15: 100 | M15: 510 | N15: 248 | O15: 0.4862745098 | P15: 0.4862745098 | Q15: 0.4862745098 | R15: Typing error in WP - name in column C should read: "Vessels using Polyvalent ‘passive’ gears only". Includes vessels using hooks, fixed netters, vessels using pots and traps and vessels using Polyvalent passive gears. Achieved Sample Rate lower than expected due to low no of responses
A16: POL | B16: Baltic Sea, North Sea and Eastern Arctic, and North Atlantic | C16: Passive gears | D16: 00-<10 m | E16: NA | F16: E | G16: Subsidies on investments | H16: administrative records | I16: A | J16: Every Year | K16: 100 | M16: 510 | N16: 510 | O16: 1 | P16: 1 | Q16: 1 | R16: Typing error in WP - name in column C should read: "Vessels using Polyvalent ‘passive’ gears only". Includes vessels using hooks, fixed netters, vessels using pots and traps and vessels using Polyvalent passive gears. Achieved Sample Rate lower than expected due to low no of responses
A17: POL | B17: Baltic Sea, North Sea and Eastern Arctic, and North Atlantic | C17: Passive gears | D17: 00-<10 m | E17: NA | F17: E | G17: Lease/rental payments for quota or other fishing rights | H17: not relevant | M17: N/A | N17: N/A | O17: N/A | P17: N/A | Q17: N/A
A18: POL | B18: Baltic Sea, North Sea and Eastern Arctic, and North Atlantic | C18: Passive gears | D18: 00-<10 m | E18: NA | F18: E | G18: Consumption of fixed capital | H18: questionnaires | I18: A | J18: Every Year | K18: 100 | M18: 510 | N18: 248 | O18: 0.4862745098 | P18: 0.4862745098 | Q18: 0.4862745098 | R18: Typing error in WP - name in column C should read: "Vessels using Polyvalent ‘passive’ gears only". Includes vessels using hooks, fixed netters, vessels using pots and traps and vessels using Polyvalent passive gears. Achieved Sample Rate lower than expected due to low no of responses
A19: POL | B19: Baltic Sea, North Sea and Eastern Arctic, and North Atlantic | C19: Passive gears | D19: 00-<10 m | E19: NA | F19: E | G19: Value of physical capital | H19: calculated based on scraping premium | I19: A | J19: Every Year | K19: 100 | M19: 510 | N19: 510 | O19: 1 | P19: 1 | Q19: 1 | R19: Typing error in WP - name in column C should read: "Vessels using Polyvalent ‘passive’ gears only". Includes vessels using hooks, fixed netters, vessels using pots and traps and vessels using Polyvalent passive gears. Achieved Sample Rate lower than expected due to low no of responses
A20: POL | B20: Baltic Sea, North Sea and Eastern Arctic, and North Atlantic | C20: Passive gears | D20: 00-<10 m | E20: NA | F20: E | G20: Value of quota and other fishing rights | H20: not relevant | M20: N/A | N20: N/A | O20: N/A | P20: N/A | Q20: N/A
A21: POL | B21: Baltic Sea, North Sea and Eastern Arctic, and North Atlantic | C21: Passive gears | D21: 00-<10 m | E21: NA | F21: E | G21: Investments of tangible assets, net | H21: questionnaires | I21: A | J21: Every Year | K21: 100 | M21: 510 | N21: 248 | O21: 0.4862745098 | P21: 0.4862745098 | Q21: 0.4862745098 | R21: Typing error in WP - name in column C should read: "Vessels using Polyvalent ‘passive’ gears only". Includes vessels using hooks, fixed netters, vessels using pots and traps and vessels using Polyvalent passive gears. Achieved Sample Rate lower than expected due to low no of responses
A22: POL | B22: Baltic Sea, North Sea and Eastern Arctic, and North Atlantic | C22: Passive gears | D22: 00-<10 m | E22: NA | F22: E | G22: Long/short debts | H22: questionnaires | I22: A | J22: Every Year | K22: 100 | M22: 510 | N22: 248 | O22: 0.4862745098 | P22: 0.4862745098 | Q22: 0.4862745098 | R22: Typing error in WP - name in column C should read: "Vessels using Polyvalent ‘passive’ gears only". Includes vessels using hooks, fixed netters, vessels using pots and traps and vessels using Polyvalent passive gears. Achieved Sample Rate lower than expected due to low no of responses
A23: POL | B23: Baltic Sea, North Sea and Eastern Arctic, and North Atlantic | C23: Passive gears | D23: 00-<10 m | E23: NA | F23: E | G23: Total assets | H23: questionnaires | I23: A | J23: Every Year | K23: 100 | M23: 510 | N23: 248 | O23: 0.4862745098 | P23: 0.4862745098 | Q23: 0.4862745098 | R23: Typing error in WP - name in column C should read: "Vessels using Polyvalent ‘passive’ gears only". Includes vessels using hooks, fixed netters, vessels using pots and traps and vessels using Polyvalent passive gears. Achieved Sample Rate lower than expected due to low no of responses
A24: POL | B24: Baltic Sea, North Sea and Eastern Arctic, and North Atlantic | C24: Passive gears | D24: 00-<10 m | E24: NA | F24: E | G24: Engaged crew | H24: questionnaires | I24: A | J24: Every Year | K24: 100 | M24: 510 | N24: 248 | O24: 0.4862745098 | P24: 0.4862745098 | Q24: 0.4862745098 | R24: Typing error in WP - name in column C should read: "Vessels using Polyvalent ‘passive’ gears only". Includes vessels using hooks, fixed netters, vessels using pots and traps and vessels using Polyvalent passive gears. Achieved Sample Rate lower than expected due to low no of responses
A25: POL | B25: Baltic Sea, North Sea and Eastern Arctic, and North Atlantic | C25: Passive gears | D25: 00-<10 m | E25: NA | F25: E | G25: Unpaid labour | H25: questionnaires | I25: A | J25: Every Year | K25: 100 | M25: 510 | N25: 248 | O25: 0.4862745098 | P25: 0.4862745098 | Q25: 0.4862745098 | R25: Typing error in WP - name in column C should read: "Vessels using Polyvalent ‘passive’ gears only". Includes vessels using hooks, fixed netters, vessels using pots and traps and vessels using Polyvalent passive gears. Achieved Sample Rate lower than expected due to low no of responses
A26: POL | B26: Baltic Sea, North Sea and Eastern Arctic, and North Atlantic | C26: Passive gears | D26: 00-<10 m | E26: NA | F26: E | G26: Total hours worked per year | H26: questionnaires | I26: A | J26: Every Year | K26: 100 | M26: 510 | N26: 248 | O26: 0.4862745098 | P26: 0.4862745098 | Q26: 0.4862745098 | R26: Typing error in WP - name in column C should read: "Vessels using Polyvalent ‘passive’ gears only". Includes vessels using hooks, fixed netters, vessels using pots and traps and vessels using Polyvalent passive gears. Achieved Sample Rate lower than expected due to low no of responses
A27: POL | B27: Baltic Sea, North Sea and Eastern Arctic, and North Atlantic | C27: Passive gears | D27: 00-<10 m | E27: NA | F27: E | G27: Number of vessels | H27: questionnaires, Register | I27: A | J27: Every Year | K27: 100 | M27: 510 | N27: 510 | O27: 1 | P27: 1 | Q27: 1 | R27: Typing error in WP - name in column C should read: "Vessels using Polyvalent ‘passive’ gears only". Includes vessels using hooks, fixed netters, vessels using pots and traps and vessels using Polyvalent passive gears.
A28: POL | B28: Baltic Sea, North Sea and Eastern Arctic, and North Atlantic | C28: Passive gears | D28: 00-<10 m | E28: NA | F28: E | G28: Mean LOA of vessels | H28: questionnaires, Register | I28: A | J28: Every Year | K28: 100 | M28: 510 | N28: 510 | O28: 1 | P28: 1 | Q28: 1 | R28: Typing error in WP - name in column C should read: "Vessels using Polyvalent ‘passive’ gears only". Includes vessels using hooks, fixed netters, vessels using pots and traps and vessels using Polyvalent passive gears.
A29: POL | B29: Baltic Sea, North Sea and Eastern Arctic, and North Atlantic | C29: Passive gears | D29: 00-<10 m | E29: NA | F29: E | G29: Total vessels tonnage | H29: questionnaires, Register | I29: A | J29: Every Year | K29: 100 | M29: 510 | N29: 510 | O29: 1 | P29: 1 | Q29: 1 | R29: Typing error in WP - name in column C should read: "Vessels using Polyvalent ‘passive’ gears only". Includes vessels using hooks, fixed netters, vessels using pots and traps and vessels using Polyvalent passive gears.
A30: POL | B30: Baltic Sea, North Sea and Eastern Arctic, and North Atlantic | C30: Passive gears | D30: 00-<10 m | E30: NA | F30: E | G30: Total vessels power | H30: questionnaires, Register | I30: A | J30: Every Year | K30: 100 | M30: 510 | N30: 510 | O30: 1 | P30: 1 | Q30: 1 | R30: Typing error in WP - name in column C should read: "Vessels using Polyvalent ‘passive’ gears only". Includes vessels using hooks, fixed netters, vessels using pots and traps and vessels using Polyvalent passive gears.
A31: POL | B31: Baltic Sea, North Sea and Eastern Arctic, and North Atlantic | C31: Passive gears | D31: 00-<10 m | E31: NA | F31: E | G31: Mean age of vessels | H31: questionnaires, Register | I31: A | J31: Every Year | K31: 100 | M31: 510 | N31: 510 | O31: 1 | P31: 1 | Q31: 1 | R31: Typing error in WP - name in column C should read: "Vessels using Polyvalent ‘passive’ gears only". Includes vessels using hooks, fixed netters, vessels using pots and traps and vessels using Polyvalent passive gears.
A32: POL | B32: Baltic Sea, North Sea and Eastern Arctic, and North Atlantic | C32: Passive gears | D32: 00-<10 m | E32: NA | F32: E | G32: Days at sea | H32: questionnaires, logbooks | I32: A | J32: Every Year | K32: 100 | M32: 510 | N32: 510 | O32: 1 | P32: 1 | Q32: 1 | R32: Typing error in WP - name in column C should read: "Vessels using Polyvalent ‘passive’ gears only". Includes vessels using hooks, fixed netters, vessels using pots and traps and vessels using Polyvalent passive gears.
A33: POL | B33: Baltic Sea, North Sea and Eastern Arctic, and North Atlantic | C33: Passive gears | D33: 00-<10 m | E33: NA | F33: E | G33: Energy consuption | H33: questionnaires | I33: A | J33: Every Year | K33: 100 | M33: 510 | N33: 248 | O33: 0.4862745098 | P33: 0.4862745098 | Q33: 0.4862745098 | R33: Typing error in WP - name in column C should read: "Vessels using Polyvalent ‘passive’ gears only". Includes vessels using hooks, fixed netters, vessels using pots and traps and vessels using Polyvalent passive gears. Achieved Sample Rate lower than expected due to low no of responses
A34: POL | B34: Baltic Sea, North Sea and Eastern Arctic, and North Atlantic | C34: Passive gears | D34: 00-<10 m | E34: NA | F34: E | G34: Number of fishing enterprises/units | H34: Register | I34: A | J34: Every Year | K34: 100 | M34: 510 | N34: 510 | O34: 1 | P34: 1 | Q34: 1 | R34: Typing error in WP - name in column C should read: "Vessels using Polyvalent ‘passive’ gears only". Includes vessels using hooks, fixed netters, vessels using pots and traps and vessels using Polyvalent passive gears.
A35: POL | B35: Baltic Sea, North Sea and Eastern Arctic, and North Atlantic | C35: Passive gears | D35: 00-<10 m | E35: NA | F35: E | G35: Value of landings per species | H35: First sale document | I35: A | J35: Every Year | K35: 100 | M35: 510 | N35: 510 | O35: 1 | P35: 1 | Q35: 1 | R35: Typing error in WP - name in column C should read: "Vessels using Polyvalent ‘passive’ gears only". Includes vessels using hooks, fixed netters, vessels using pots and traps and vessels using Polyvalent passive gears.
A36: POL | B36: Baltic Sea, North Sea and Eastern Arctic, and North Atlantic | C36: Passive gears | D36: 00-<10 m | E36: NA | F36: E | G36: Average price per spices | H36: First sale document | I36: A | J36: Every Year | K36: 100 | M36: 510 | N36: 510 | O36: 1 | P36: 1 | Q36: 1 | R36: Typing error in WP - name in column C should read: "Vessels using Polyvalent ‘passive’ gears only". Includes vessels using hooks, fixed netters, vessels using pots and traps and vessels using Polyvalent passive gears.
A37: POL | B37: Baltic Sea, North Sea and Eastern Arctic, and North Atlantic | C37: Passive gears | D37: 00-<10 m | E37: NA | F37: S | G37: Employment by gender | H37: questionnaires | I37: A | J37: Every Year | K37: 100 | M37: 510 | N37: 248 | O37: 0.4862745098 | P37: 0.4862745098 | Q37: 0.4862745098 | R37: Typing error in WP - name in column C should read: "Vessels using Polyvalent ‘passive’ gears only". Includes vessels using hooks, fixed netters, vessels using pots and traps and vessels using Polyvalent passive gears. Achieved Sample Rate lower than expected due to low no of responses
A38: POL | B38: Baltic Sea, North Sea and Eastern Arctic, and North Atlantic | C38: Passive gears | D38: 00-<10 m | E38: NA | F38: S | G38: FTE by gender | H38: questionnaires | I38: A | J38: Every Year | K38: 100 | M38: 510 | N38: 248 | O38: 0.4862745098 | P38: 0.4862745098 | Q38: 0.4862745098 | R38: Typing error in WP - name in column C should read: "Vessels using Polyvalent ‘passive’ gears only". Includes vessels using hooks, fixed netters, vessels using pots and traps and vessels using Polyvalent passive gears. Achieved Sample Rate lower than expected due to low no of responses
A39: POL | B39: Baltic Sea, North Sea and Eastern Arctic, and North Atlantic | C39: Passive gears | D39: 00-<10 m | E39: NA | F39: S | G39: Unpaid labour by gender | H39: questionnaires | I39: A | J39: Every Year | K39: 100 | M39: 510 | N39: 248 | O39: 0.4862745098 | P39: 0.4862745098 | Q39: 0.4862745098 | R39: Typing error in WP - name in column C should read: "Vessels using Polyvalent ‘passive’ gears only". Includes vessels using hooks, fixed netters, vessels using pots and traps and vessels using Polyvalent passive gears. Achieved Sample Rate lower than expected due to low no of responses
A40: POL | B40: Baltic Sea, North Sea and Eastern Arctic, and North Atlantic | C40: Passive gears | D40: 00-<10 m | E40: NA | F40: S | G40: Employment by age | H40: questionnaires | I40: A | J40: Every Year | K40: 100 | M40: 510 | N40: 248 | O40: 0.4862745098 | P40: 0.4862745098 | Q40: 0.4862745098 | R40: Typing error in WP - name in column C should read: "Vessels using Polyvalent ‘passive’ gears only". Includes vessels using hooks, fixed netters, vessels using pots and traps and vessels using Polyvalent passive gears. Achieved Sample Rate lower than expected due to low no of responses
A41: POL | B41: Baltic Sea, North Sea and Eastern Arctic, and North Atlantic | C41: Passive gears | D41: 00-<10 m | E41: NA | F41: S | G41: Employment by education level | H41: questionnaires | I41: A | J41: Every Year | K41: 100 | M41: 510 | N41: 248 | O41: 0.4862745098 | P41: 0.4862745098 | Q41: 0.4862745098 | R41: Typing error in WP - name in column C should read: "Vessels using Polyvalent ‘passive’ gears only". Includes vessels using hooks, fixed netters, vessels using pots and traps and vessels using Polyvalent passive gears. Achieved Sample Rate lower than expected due to low no of responses
A42: POL | B42: Baltic Sea, North Sea and Eastern Arctic, and North Atlantic | C42: Passive gears | D42: 00-<10 m | E42: NA | F42: S | G42: Employment by nationality | H42: questionnaires | I42: A | J42: Every Year | K42: 100 | M42: 510 | N42: 248 | O42: 0.4862745098 | P42: 0.4862745098 | Q42: 0.4862745098 | R42: Typing error in WP - name in column C should read: "Vessels using Polyvalent ‘passive’ gears only". Data were collected in 2019 (for 2018), data are estimated based on questionnaires
A43: POL | B43: Baltic Sea, North Sea and Eastern Arctic, and North Atlantic | C43: Passive gears | D43: 00-<10 m | E43: NA | F43: S | G43: Employment by employment status | H43: questionnaires | I43: A | J43: Every Year | K43: 100 | M43: 510 | N43: 248 | O43: 0.4862745098 | P43: 0.4862745098 | Q43: 0.4862745098 | R43: Typing error in WP - name in column C should read: "Vessels using Polyvalent ‘passive’ gears only". Includes vessels using hooks, fixed netters, vessels using pots and traps and vessels using Polyvalent passive gears. Achieved Sample Rate lower than expected due to low no of responses
A44: POL | B44: Baltic Sea, North Sea and Eastern Arctic, and North Atlantic | C44: Passive gears | D44: 00-<10 m | E44: NA | F44: S | G44: FTE National | H44: questionnaires | I44: A | J44: Every Year | K44: 100 | M44: 510 | N44: 248 | O44: 0.4862745098 | P44: 0.4862745098 | Q44: 0.4862745098 | R44: Typing error in WP - name in column C should read: "Vessels using Polyvalent ‘passive’ gears only". Includes vessels using hooks, fixed netters, vessels using pots and traps and vessels using Polyvalent passive gears. Achieved Sample Rate lower than expected due to low no of responses
A45: POL | B45: Baltic Sea, North Sea and Eastern Arctic, and North Atlantic | C45: Passive gears | D45: 10-<12 m | E45: NA | F45: E | G45: Gross value of landings | H45: landing declaration, sales notes | I45: A | J45: Every Year | K45: 100 | M45: 107 | N45: 107 | O45: 1 | P45: =N45/M45 -> 1 | Q45: 1 | R45: Typing error in WP - name in column C should read: "Vessels using Polyvalent ‘passive’ gears only". Additional Data Source - first sale documents. Includes vessels using hooks, fixed netters, vessels using pots and traps and vessels using Polyvalent passive gears.
A46: POL | B46: Baltic Sea, North Sea and Eastern Arctic, and North Atlantic | C46: Passive gears | D46: 10-<12 m | E46: NA | F46: E | G46: Income from leasing out quota or other fishing rights | H46: not relevant | M46: N/A | N46: N/A | O46: N/A | P46: N/A | Q46: N/A
A47: POL | B47: Baltic Sea, North Sea and Eastern Arctic, and North Atlantic | C47: Passive gears | D47: 10-<12 m | E47: NA | F47: E | G47: Other income | H47: questionnaires | I47: A | J47: Every Year | K47: 100 | M47: 107 | N47: 40 | O47: =N47/M47 -> 0.3738317757 | P47: =N47/M47 -> 0.3738317757 | Q47: 0.3738317757 | R47: Typing error in WP - name in column C should read: "Vessels using Polyvalent ‘passive’ gears only". Includes vessels using hooks, fixed netters, vessels using pots and traps and vessels using Polyvalent passive gears. Achieved Sample Rate lower than expected due to low no of responses
A48: POL | B48: Baltic Sea, North Sea and Eastern Arctic, and North Atlantic | C48: Passive gears | D48: 10-<12 m | E48: NA | F48: E | G48: Wages and salaries of crew | H48: questionnaires | I48: A | J48: Every Year | K48: 100 | M48: 107 | N48: 40 | O48: =N48/M48 -> 0.3738317757 | P48: =N48/M48 -> 0.3738317757 | Q48: 0.3738317757 | R48: Typing error in WP - name in column C should read: "Vessels using Polyvalent ‘passive’ gears only". Wrong variable name in WP - should read: "Personnel cost". Includes vessels using hooks, fixed netters, vessels using pots and traps and vessels using Polyvalent passive gears. Achieved Sample Rate lower than expected due to low no of responses
A49: POL | B49: Baltic Sea, North Sea and Eastern Arctic, and North Atlantic | C49: Passive gears | D49: 10-<12 m | E49: NA | F49: E | G49: Imputed value of unpaid labour | H49: estimation | I49: D | J49: Every Year | K49: 100 | M49: 107 | N49: 40 | O49: 0.3738317757 | P49: 0.3738317757 | Q49: 0.3738317757 | R49: Typing error in WP - name in column C should read: "Vessels using Polyvalent ‘passive’ gears only". Wrong variable name in WP - should read: "Value of unpaid labour". Includes vessels using hooks, fixed netters, vessels using pots and traps and vessels using Polyvalent passive gears. Achieved Sample Rate lower than expected due to low no of responses
A50: POL | B50: Baltic Sea, North Sea and Eastern Arctic, and North Atlantic | C50: Passive gears | D50: 10-<12 m | E50: NA | F50: E | G50: Energy costs | H50: questionnaires | I50: A | J50: Every Year | K50: 100 | M50: 107 | N50: 40 | O50: 0.3738317757 | P50: 0.3738317757 | Q50: 0.3738317757 | R50: Typing error in WP - name in column C should read: "Vessels using Polyvalent ‘passive’ gears only". Includes vessels using hooks, fixed netters, vessels using pots and traps and vessels using Polyvalent passive gears. Achieved Sample Rate lower than expected due to low no of responses
A51: POL | B51: Baltic Sea, North Sea and Eastern Arctic, and North Atlantic | C51: Passive gears | D51: 10-<12 m | E51: NA | F51: E | G51: Repair and maintenance costs | H51: questionnaires | I51: A | J51: Every Year | K51: 100 | M51: 107 | N51: 40 | O51: 0.3738317757 | P51: 0.3738317757 | Q51: 0.3738317757 | R51: Typing error in WP - name in column C should read: "Vessels using Polyvalent ‘passive’ gears only". Includes vessels using hooks, fixed netters, vessels using pots and traps and vessels using Polyvalent passive gears. Achieved Sample Rate lower than expected due to low no of responses
A52: POL | B52: Baltic Sea, North Sea and Eastern Arctic, and North Atlantic | C52: Passive gears | D52: 10-<12 m | E52: NA | F52: E | G52: Variable costs | H52: questionnaires | I52: A | J52: Every Year | K52: 100 | M52: 107 | N52: 40 | O52: 0.3738317757 | P52: 0.3738317757 | Q52: 0.3738317757 | R52: Typing error in WP - name in column C should read: "Vessels using Polyvalent ‘passive’ gears only". Includes vessels using hooks, fixed netters, vessels using pots and traps and vessels using Polyvalent passive gears. Achieved Sample Rate lower than expected due to low no of responses
A53: POL | B53: Baltic Sea, North Sea and Eastern Arctic, and North Atlantic | C53: Passive gears | D53: 10-<12 m | E53: NA | F53: E | G53: Non-variable costs | H53: questionnaires | I53: A | J53: Every Year | K53: 100 | M53: 107 | N53: 40 | O53: 0.3738317757 | P53: 0.3738317757 | Q53: 0.3738317757 | R53: Typing error in WP - name in column C should read: "Vessels using Polyvalent ‘passive’ gears only". Includes vessels using hooks, fixed netters, vessels using pots and traps and vessels using Polyvalent passive gears. Achieved Sample Rate lower than expected due to low no of responses
A54: POL | B54: Baltic Sea, North Sea and Eastern Arctic, and North Atlantic | C54: Passive gears | D54: 10-<12 m | E54: NA | F54: E | G54: Lease/rental payments for quota or other fishing rights | H54: questionnaires | I54: A | J54: Every Year | K54: 100 | M54: 107 | N54: 40 | O54: 0.3738317757 | P54: 0.3738317757 | Q54: 0.3738317757 | R54: Typing error in WP - name in column C should read: "Vessels using Polyvalent ‘passive’ gears only". Includes vessels using hooks, fixed netters, vessels using pots and traps and vessels using Polyvalent passive gears. Achieved Sample Rate lower than expected due to low no of responses
A55: POL | B55: Baltic Sea, North Sea and Eastern Arctic, and North Atlantic | C55: Passive gears | D55: 10-<12 m | E55: NA | F55: E | G55: Operating Subsidies | H55: administrative records | I55: A | J55: Every Year | K55: 100 | M55: 107 | N55: 40 | O55: 0.3738317757 | P55: 0.3738317757 | Q55: 0.3738317757 | R55: Typing error in WP - name in column C should read: "Vessels using Polyvalent ‘passive’ gears only". Includes vessels using hooks, fixed netters, vessels using pots and traps and vessels using Polyvalent passive gears. Achieved Sample Rate lower than expected due to low no of responses
A56: POL | B56: Baltic Sea, North Sea and Eastern Arctic, and North Atlantic | C56: Passive gears | D56: 10-<12 m | E56: NA | F56: E | G56: Subsidies on investments | H56: administrative records | I56: A | J56: Every Year | K56: 100 | M56: 107 | N56: 40 | O56: 0.3738317757 | P56: 0.3738317757 | Q56: 0.3738317757 | R56: Typing error in WP - name in column C should read: "Vessels using Polyvalent ‘passive’ gears only". Includes vessels using hooks, fixed netters, vessels using pots and traps and vessels using Polyvalent passive gears. Achieved Sample Rate lower than expected due to low no of responses
A57: POL | B57: Baltic Sea, North Sea and Eastern Arctic, and North Atlantic | C57: Passive gears | D57: 10-<12 m | E57: NA | F57: E | G57: Lease/rental payments for quota or other fishing rights | H57: not relevant | M57: N/A | N57: N/A | O57: N/A | P57: N/A | Q57: N/A
A58: POL | B58: Baltic Sea, North Sea and Eastern Arctic, and North Atlantic | C58: Passive gears | D58: 10-<12 m | E58: NA | F58: E | G58: Consumption of fixed capital | H58: questionnaires | I58: A | J58: Every Year | K58: 100 | M58: 107 | N58: 40 | O58: =N58/M58 -> 0.3738317757 | P58: =N58/M58 -> 0.3738317757 | Q58: 0.3738317757 | R58: Typing error in WP - name in column C should read: "Vessels using Polyvalent ‘passive’ gears only". Includes vessels using hooks, fixed netters, vessels using pots and traps and vessels using Polyvalent passive gears. Achieved Sample Rate lower than expected due to low no of responses
A59: POL | B59: Baltic Sea, North Sea and Eastern Arctic, and North Atlantic | C59: Passive gears | D59: 10-<12 m | E59: NA | F59: E | G59: Value of physical capital | H59: calculated based on scraping premium | I59: A | J59: Every Year | K59: 100 | M59: 107 | N59: 107 | O59: 1 | P59: 1 | Q59: 1 | R59: Typing error in WP - name in column C should read: "Vessels using Polyvalent ‘passive’ gears only". Includes vessels using hooks, fixed netters, vessels using pots and traps and vessels using Polyvalent passive gears. Achieved Sample Rate lower than expected due to low no of responses
A60: POL | B60: Baltic Sea, North Sea and Eastern Arctic, and North Atlantic | C60: Passive gears | D60: 10-<12 m | E60: NA | F60: E | G60: Value of quota and other fishing rights | H60: not relevant | M60: N/A | N60: N/A | O60: N/A | P60: N/A | Q60: N/A
A61: POL | B61: Baltic Sea, North Sea and Eastern Arctic, and North Atlantic | C61: Passive gears | D61: 10-<12 m | E61: NA | F61: E | G61: Investments of tangible assets, net | H61: questionnaires | I61: A | J61: Every Year | K61: 100 | M61: 107 | N61: 40 | O61: =N61/M61 -> 0.3738317757 | P61: =N61/M61 -> 0.3738317757 | Q61: =N61/(M61*K61/100) -> 0.3738317757 | R61: Typing error in WP - name in column C should read: "Vessels using Polyvalent ‘passive’ gears only". Includes vessels using hooks, fixed netters, vessels using pots and traps and vessels using Polyvalent passive gears. Achieved Sample Rate lower than expected due to low no of responses
A62: POL | B62: Baltic Sea, North Sea and Eastern Arctic, and North Atlantic | C62: Passive gears | D62: 10-<12 m | E62: NA | F62: E | G62: Long/short debts | H62: questionnaires | I62: A | J62: Every Year | K62: 100 | M62: 107 | N62: 40 | O62: 0.3738317757 | P62: 0.3738317757 | Q62: 0.3738317757 | R62: Typing error in WP - name in column C should read: "Vessels using Polyvalent ‘passive’ gears only". Includes vessels using hooks, fixed netters, vessels using pots and traps and vessels using Polyvalent passive gears. Achieved Sample Rate lower than expected due to low no of responses
A63: POL | B63: Baltic Sea, North Sea and Eastern Arctic, and North Atlantic | C63: Passive gears | D63: 10-<12 m | E63: NA | F63: E | G63: Total assets | H63: questionnaires | I63: A | J63: Every Year | K63: 100 | M63: 107 | N63: 40 | O63: 0.3738317757 | P63: 0.3738317757 | Q63: 0.3738317757 | R63: Typing error in WP - name in column C should read: "Vessels using Polyvalent ‘passive’ gears only". Includes vessels using hooks, fixed netters, vessels using pots and traps and vessels using Polyvalent passive gears. Achieved Sample Rate lower than expected due to low no of responses
A64: POL | B64: Baltic Sea, North Sea and Eastern Arctic, and North Atlantic | C64: Passive gears | D64: 10-<12 m | E64: NA | F64: E | G64: Engaged crew | H64: questionnaires | I64: A | J64: Every Year | K64: 100 | M64: 107 | N64: 40 | O64: 0.3738317757 | P64: 0.3738317757 | Q64: 0.3738317757 | R64: Typing error in WP - name in column C should read: "Vessels using Polyvalent ‘passive’ gears only". Includes vessels using hooks, fixed netters, vessels using pots and traps and vessels using Polyvalent passive gears. Achieved Sample Rate lower than expected due to low no of responses
A65: POL | B65: Baltic Sea, North Sea and Eastern Arctic, and North Atlantic | C65: Passive gears | D65: 10-<12 m | E65: NA | F65: E | G65: Unpaid labour | H65: questionnaires | I65: A | J65: Every Year | K65: 100 | M65: 107 | N65: 40 | O65: 0.3738317757 | P65: 0.3738317757 | Q65: 0.3738317757 | R65: Typing error in WP - name in column C should read: "Vessels using Polyvalent ‘passive’ gears only". Includes vessels using hooks, fixed netters, vessels using pots and traps and vessels using Polyvalent passive gears. Achieved Sample Rate lower than expected due to low no of responses
A66: POL | B66: Baltic Sea, North Sea and Eastern Arctic, and North Atlantic | C66: Passive gears | D66: 10-<12 m | E66: NA | F66: E | G66: Total hours worked per year | H66: questionnaires | I66: A | J66: Every Year | K66: 100 | M66: 107 | N66: 107 | O66: 1 | P66: 1 | Q66: 1 | R66: Typing error in WP - name in column C should read: "Vessels using Polyvalent ‘passive’ gears only". Includes vessels using hooks, fixed netters, vessels using pots and traps and vessels using Polyvalent passive gears. Achieved Sample Rate lower than expected due to low no of responses
A67: POL | B67: Baltic Sea, North Sea and Eastern Arctic, and North Atlantic | C67: Passive gears | D67: 10-<12 m | E67: NA | F67: E | G67: Number of vessels | H67: questionnaires, Register | I67: A | J67: Every Year | K67: 100 | M67: 107 | N67: 107 | O67: 1 | P67: 1 | Q67: 1 | R67: Typing error in WP - name in column C should read: "Vessels using Polyvalent ‘passive’ gears only". Includes vessels using hooks, fixed netters, vessels using pots and traps and vessels using Polyvalent passive gears.
A68: POL | B68: Baltic Sea, North Sea and Eastern Arctic, and North Atlantic | C68: Passive gears | D68: 10-<12 m | E68: NA | F68: E | G68: Mean LOA of vessels | H68: questionnaires, Register | I68: A | J68: Every Year | K68: 100 | M68: 107 | N68: 107 | O68: 1 | P68: 1 | Q68: 1 | R68: Typing error in WP - name in column C should read: "Vessels using Polyvalent ‘passive’ gears only". Includes vessels using hooks, fixed netters, vessels using pots and traps and vessels using Polyvalent passive gears.
A69: POL | B69: Baltic Sea, North Sea and Eastern Arctic, and North Atlantic | C69: Passive gears | D69: 10-<12 m | E69: NA | F69: E | G69: Total vessels tonnage | H69: questionnaires, Register | I69: A | J69: Every Year | K69: 100 | M69: 107 | N69: 107 | O69: 1 | P69: 1 | Q69: 1 | R69: Typing error in WP - name in column C should read: "Vessels using Polyvalent ‘passive’ gears only". Includes vessels using hooks, fixed netters, vessels using pots and traps and vessels using Polyvalent passive gears.
A70: POL | B70: Baltic Sea, North Sea and Eastern Arctic, and North Atlantic | C70: Passive gears | D70: 10-<12 m | E70: NA | F70: E | G70: Total vessels power | H70: questionnaires, Register | I70: A | J70: Every Year | K70: 100 | M70: 107 | N70: 107 | O70: 1 | P70: 1 | Q70: 1 | R70: Typing error in WP - name in column C should read: "Vessels using Polyvalent ‘passive’ gears only". Includes vessels using hooks, fixed netters, vessels using pots and traps and vessels using Polyvalent passive gears.
A71: POL | B71: Baltic Sea, North Sea and Eastern Arctic, and North Atlantic | C71: Passive gears | D71: 10-<12 m | E71: NA | F71: E | G71: Mean age of vessels | H71: questionnaires, Register | I71: A | J71: Every Year | K71: 100 | M71: 107 | N71: 107 | O71: 1 | P71: 1 | Q71: 1 | R71: Typing error in WP - name in column C should read: "Vessels using Polyvalent ‘passive’ gears only". Includes vessels using hooks, fixed netters, vessels using pots and traps and vessels using Polyvalent passive gears.
A72: POL | B72: Baltic Sea, North Sea and Eastern Arctic, and North Atlantic | C72: Passive gears | D72: 10-<12 m | E72: NA | F72: E | G72: Days at sea | H72: questionnaires, logbooks | I72: A | J72: Every Year | K72: 100 | M72: 107 | N72: 107 | O72: 1 | P72: 1 | Q72: 1 | R72: Typing error in WP - name in column C should read: "Vessels using Polyvalent ‘passive’ gears only". Includes vessels using hooks, fixed netters, vessels using pots and traps and vessels using Polyvalent passive gears.
A73: POL | B73: Baltic Sea, North Sea and Eastern Arctic, and North Atlantic | C73: Passive gears | D73: 10-<12 m | E73: NA | F73: E | G73: Energy consuption | H73: questionnaires | I73: A | J73: Every Year | K73: 100 | M73: 107 | N73: 40 | O73: 0.3738317757 | P73: 0.3738317757 | Q73: 0.3738317757 | R73: Typing error in WP - name in column C should read: "Vessels using Polyvalent ‘passive’ gears only". Includes vessels using hooks, fixed netters, vessels using pots and traps and vessels using Polyvalent passive gears. Achieved Sample Rate lower than expected due to low no of responses
A74: POL | B74: Baltic Sea, North Sea and Eastern Arctic, and North Atlantic | C74: Passive gears | D74: 10-<12 m | E74: NA | F74: E | G74: Number of fishing enterprises/units | H74: Register | I74: A | J74: Every Year | K74: 100 | M74: 107 | N74: 107 | O74: =N74/M74 -> 1 | P74: =N74/M74 -> 1 | Q74: =N74/(M74*K74/100) -> 1 | R74: Typing error in WP - name in column C should read: "Vessels using Polyvalent ‘passive’ gears only". Includes vessels using hooks, fixed netters, vessels using pots and traps and vessels using Polyvalent passive gears.
A75: POL | B75: Baltic Sea, North Sea and Eastern Arctic, and North Atlantic | C75: Passive gears | D75: 10-<12 m | E75: NA | F75: E | G75: Value of landings per species | H75: First sale document | I75: A | J75: Every Year | K75: 100 | M75: 107 | N75: 107 | O75: =N75/M75 -> 1 | P75: =N75/M75 -> 1 | Q75: =N75/(M75*K75/100) -> 1 | R75: Typing error in WP - name in column C should read: "Vessels using Polyvalent ‘passive’ gears only". Includes vessels using hooks, fixed netters, vessels using pots and traps and vessels using Polyvalent passive gears.
A76: POL | B76: Baltic Sea, North Sea and Eastern Arctic, and North Atlantic | C76: Passive gears | D76: 10-<12 m | E76: NA | F76: E | G76: Average price per spices | H76: First sale document | I76: A | J76: Every Year | K76: 100 | M76: 107 | N76: 107 | O76: =N76/M76 -> 1 | P76: =N76/M76 -> 1 | Q76: =N76/(M76*K76/100) -> 1 | R76: Typing error in WP - name in column C should read: "Vessels using Polyvalent ‘passive’ gears only". Includes vessels using hooks, fixed netters, vessels using pots and traps and vessels using Polyvalent passive gears.
A77: POL | B77: Baltic Sea, North Sea and Eastern Arctic, and North Atlantic | C77: Passive gears | D77: 10-<12 m | E77: NA | F77: S | G77: Employment by gender | H77: questionnaires | I77: A | J77: Every Year | K77: 100 | M77: 107 | N77: 40 | O77: 0.3738317757 | P77: 0.3738317757 | Q77: 0.3738317757 | R77: Typing error in WP - name in column C should read: "Vessels using Polyvalent ‘passive’ gears only". Includes vessels using hooks, fixed netters, vessels using pots and traps and vessels using Polyvalent passive gears. Achieved Sample Rate lower than expected due to low no of responses
A78: POL | B78: Baltic Sea, North Sea and Eastern Arctic, and North Atlantic | C78: Passive gears | D78: 10-<12 m | E78: NA | F78: S | G78: FTE by gender | H78: questionnaires | I78: A | J78: Every Year | K78: 100 | M78: 107 | N78: 40 | O78: 0.3738317757 | P78: 0.3738317757 | Q78: 0.3738317757 | R78: Typing error in WP - name in column C should read: "Vessels using Polyvalent ‘passive’ gears only". Includes vessels using hooks, fixed netters, vessels using pots and traps and vessels using Polyvalent passive gears. Achieved Sample Rate lower than expected due to low no of responses
A79: POL | B79: Baltic Sea, North Sea and Eastern Arctic, and North Atlantic | C79: Passive gears | D79: 10-<12 m | E79: NA | F79: S | G79: Unpaid labour by gender | H79: questionnaires | I79: A | J79: Every Year | K79: 100 | M79: 107 | N79: 40 | O79: 0.3738317757 | P79: 0.3738317757 | Q79: 0.3738317757 | R79: Typing error in WP - name in column C should read: "Vessels using Polyvalent ‘passive’ gears only". Includes vessels using hooks, fixed netters, vessels using pots and traps and vessels using Polyvalent passive gears. Achieved Sample Rate lower than expected due to low no of responses
A80: POL | B80: Baltic Sea, North Sea and Eastern Arctic, and North Atlantic | C80: Passive gears | D80: 10-<12 m | E80: NA | F80: S | G80: Employment by age | H80: questionnaires | I80: A | J80: Every Year | K80: 100 | M80: 107 | N80: 40 | O80: 0.3738317757 | P80: 0.3738317757 | Q80: 0.3738317757 | R80: Typing error in WP - name in column C should read: "Vessels using Polyvalent ‘passive’ gears only". Includes vessels using hooks, fixed netters, vessels using pots and traps and vessels using Polyvalent passive gears. Achieved Sample Rate lower than expected due to low no of responses
A81: POL | B81: Baltic Sea, North Sea and Eastern Arctic, and North Atlantic | C81: Passive gears | D81: 10-<12 m | E81: NA | F81: S | G81: Employment by education level | H81: questionnaires | I81: A | J81: Every Year | K81: 100 | M81: 107 | N81: 40 | O81: 0.3738317757 | P81: 0.3738317757 | Q81: 0.3738317757 | R81: Typing error in WP - name in column C should read: "Vessels using Polyvalent ‘passive’ gears only". Includes vessels using hooks, fixed netters, vessels using pots and traps and vessels using Polyvalent passive gears. Achieved Sample Rate lower than expected due to low no of responses
A82: POL | B82: Baltic Sea, North Sea and Eastern Arctic, and North Atlantic | C82: Passive gears | D82: 10-<12 m | E82: NA | F82: S | G82: Employment by nationality | H82: questionnaires | I82: A | J82: Every Year | K82: 100 | M82: 107 | N82: 40 | O82: 0.3738317757 | P82: 0.3738317757 | Q82: 0.3738317757 | R82: Typing error in WP - name in column C should read: "Vessels using Polyvalent ‘passive’ gears only". Data were collected in 2019 (for 2018), data are estimated based on questionnaires
A83: POL | B83: Baltic Sea, North Sea and Eastern Arctic, and North Atlantic | C83: Passive gears | D83: 10-<12 m | E83: NA | F83: S | G83: Employment by employment status | H83: questionnaires | I83: A | J83: Every Year | K83: 100 | M83: 107 | N83: 40 | O83: 0.3738317757 | P83: 0.3738317757 | Q83: 0.3738317757 | R83: Typing error in WP - name in column C should read: "Vessels using Polyvalent ‘passive’ gears only". Includes vessels using hooks, fixed netters, vessels using pots and traps and vessels using Polyvalent passive gears. Achieved Sample Rate lower than expected due to low no of responses
A84: POL | B84: Baltic Sea, North Sea and Eastern Arctic, and North Atlantic | C84: Passive gears | D84: 10-<12 m | E84: NA | F84: S | G84: FTE National | H84: questionnaires | I84: A | J84: Every Year | K84: 100 | M84: 107 | N84: 40 | O84: 0.3738317757 | P84: 0.3738317757 | Q84: 0.3738317757 | R84: Typing error in WP - name in column C should read: "Vessels using Polyvalent ‘passive’ gears only". Includes vessels using hooks, fixed netters, vessels using pots and traps and vessels using Polyvalent passive gears. Achieved Sample Rate lower than expected due to low no of responses
A85: POL | B85: Baltic Sea, North Sea and Eastern Arctic, and North Atlantic | C85: Drift and fixed netters | D85: 12-<18 m | E85: Drift and fixed netters 12-18 m | F85: E | G85: Gross value of landings | H85: landing declaration, sales notes | I85: A | J85: Every Year | K85: 100 | M85: 10 | N85: 10 | O85: 1 | P85: =N85/M85 -> 1 | Q85: 1 | R85: Typing error in WP - name in column C should read: "Drift and/or fixed netters". Additional Data Source - first sale documents. Vessels class 12-18 are dominant in the cluster. By mistake, the WP contains wrong length class in column "D" (10-12 m)
A86: POL | B86: Baltic Sea, North Sea and Eastern Arctic, and North Atlantic | C86: Drift and fixed netters | D86: 12-<18 m | E86: Drift and fixed netters 12-18 m | F86: E | G86: Income from leasing out quota or other fishing rights | H86: not relevant | M86: N/A | N86: N/A | O86: N/A | P86: N/A | Q86: N/A
A87: POL | B87: Baltic Sea, North Sea and Eastern Arctic, and North Atlantic | C87: Drift and fixed netters | D87: 12-<18 m | E87: Drift and fixed netters 12-18 m | F87: E | G87: Other income | H87: questionnaires | I87: A | J87: Every Year | K87: 100 | M87: 10 | N87: 4 | O87: =N87/M87 -> 0.4 | P87: =N87/M87 -> 0.4 | Q87: 0.4 | R87: Typing error in WP - name in column C should read: "Drift and/or fixed netters". Vessels class 12-18 are dominant in the cluster. By mistake, the WP contains wrong length class in column "D" (10-12 m). Achieved Sample Rate lower than expected due to low no of responses
A88: POL | B88: Baltic Sea, North Sea and Eastern Arctic, and North Atlantic | C88: Drift and fixed netters | D88: 12-<18 m | E88: Drift and fixed netters 12-18 m | F88: E | G88: Wages and salaries of crew | H88: questionnaires | I88: A | J88: Every Year | K88: 100 | M88: 10 | N88: 4 | O88: =N88/M88 -> 0.4 | P88: =N88/M88 -> 0.4 | Q88: 0.4 | R88: Typing error in WP - name in column C should read: "Drift and/or fixed netters". Wrong variable name in WP - should read: "Personnel cost". Vessels class 12-18 are dominant in the cluster. By mistake, the WP contains wrong length class in column "D" (10-12 m). Achieved Sample Rate lower than expected due to low no of responses
A89: POL | B89: Baltic Sea, North Sea and Eastern Arctic, and North Atlantic | C89: Drift and fixed netters | D89: 12-<18 m | E89: Drift and fixed netters 12-18 m | F89: E | G89: Imputed value of unpaid labour | H89: estimation | I89: D | J89: Every Year | K89: 100 | M89: 10 | N89: 4 | O89: 0.4 | P89: 0.4 | Q89: 0.4 | R89: Typing error in WP - name in column C should read: "Drift and/or fixed netters". Wrong variable name in WP - should read: "Value of unpaid labour". Vessels class 12-18 are dominant in the cluster. By mistake, the WP contains wrong length class in column "D" (10-12 m). Achieved Sample Rate lower than expected due to low no of responses
A90: POL | B90: Baltic Sea, North Sea and Eastern Arctic, and North Atlantic | C90: Drift and fixed netters | D90: 12-<18 m | E90: Drift and fixed netters 12-18 m | F90: E | G90: Energy costs | H90: questionnaires | I90: A | J90: Every Year | K90: 100 | M90: 10 | N90: 4 | O90: 0.4 | P90: 0.4 | Q90: 0.4 | R90: Typing error in WP - name in column C should read: "Drift and/or fixed netters". Vessels class 12-18 are dominant in the cluster. By mistake, the WP contains wrong length class in column "D" (10-12 m). Achieved Sample Rate lower than expected due to low no of responses
A91: POL | B91: Baltic Sea, North Sea and Eastern Arctic, and North Atlantic | C91: Drift and fixed netters | D91: 12-<18 m | E91: Drift and fixed netters 12-18 m | F91: E | G91: Repair and maintenance costs | H91: questionnaires | I91: A | J91: Every Year | K91: 100 | M91: 10 | N91: 4 | O91: 0.4 | P91: 0.4 | Q91: 0.4 | R91: Typing error in WP - name in column C should read: "Drift and/or fixed netters". Vessels class 12-18 are dominant in the cluster. By mistake, the WP contains wrong length class in column "D" (10-12 m). Achieved Sample Rate lower than expected due to low no of responses
A92: POL | B92: Baltic Sea, North Sea and Eastern Arctic, and North Atlantic | C92: Drift and fixed netters | D92: 12-<18 m | E92: Drift and fixed netters 12-18 m | F92: E | G92: Variable costs | H92: questionnaires | I92: A | J92: Every Year | K92: 100 | M92: 10 | N92: 4 | O92: 0.4 | P92: 0.4 | Q92: 0.4 | R92: Typing error in WP - name in column C should read: "Drift and/or fixed netters". Vessels class 12-18 are dominant in the cluster. By mistake, the WP contains wrong length class in column "D" (10-12 m). Achieved Sample Rate lower than expected due to low no of responses
A93: POL | B93: Baltic Sea, North Sea and Eastern Arctic, and North Atlantic | C93: Drift and fixed netters | D93: 12-<18 m | E93: Drift and fixed netters 12-18 m | F93: E | G93: Non-variable costs | H93: questionnaires | I93: A | J93: Every Year | K93: 100 | M93: 10 | N93: 4 | O93: 0.4 | P93: 0.4 | Q93: 0.4 | R93: Typing error in WP - name in column C should read: "Drift and/or fixed netters". Vessels class 12-18 are dominant in the cluster. By mistake, the WP contains wrong length class in column "D" (10-12 m). Achieved Sample Rate lower than expected due to low no of responses
A94: POL | B94: Baltic Sea, North Sea and Eastern Arctic, and North Atlantic | C94: Drift and fixed netters | D94: 12-<18 m | E94: Drift and fixed netters 12-18 m | F94: E | G94: Lease/rental payments for quota or other fishing rights | H94: questionnaires | I94: A | J94: Every Year | K94: 100 | M94: 10 | N94: 4 | O94: 0.4 | P94: 0.4 | Q94: 0.4 | R94: Typing error in WP - name in column C should read: "Drift and/or fixed netters". Vessels class 12-18 are dominant in the cluster. By mistake, the WP contains wrong length class in column "D" (10-12 m). Achieved Sample Rate lower than expected due to low no of responses
A95: POL | B95: Baltic Sea, North Sea and Eastern Arctic, and North Atlantic | C95: Drift and fixed netters | D95: 12-<18 m | E95: Drift and fixed netters 12-18 m | F95: E | G95: Operating Subsidies | H95: administrative records | I95: A | J95: Every Year | K95: 100 | M95: 10 | N95: 10 | O95: 1 | P95: 1 | Q95: 1 | R95: Typing error in WP - name in column C should read: "Drift and/or fixed netters". Vessels class 12-18 are dominant in the cluster. By mistake, the WP contains wrong length class in column "D" (10-12 m). Achieved Sample Rate lower than expected due to low no of responses
A96: POL | B96: Baltic Sea, North Sea and Eastern Arctic, and North Atlantic | C96: Drift and fixed netters | D96: 12-<18 m | E96: Drift and fixed netters 12-18 m | F96: E | G96: Subsidies on investments | H96: administrative records | I96: A | J96: Every Year | K96: 100 | M96: 10 | N96: 10 | O96: 1 | P96: 1 | Q96: 1 | R96: Typing error in WP - name in column C should read: "Drift and/or fixed netters". Vessels class 12-18 are dominant in the cluster. By mistake, the WP contains wrong length class in column "D" (10-12 m). Achieved Sample Rate lower than expected due to low no of responses
A97: POL | B97: Baltic Sea, North Sea and Eastern Arctic, and North Atlantic | C97: Drift and fixed netters | D97: 12-<18 m | E97: Drift and fixed netters 12-18 m | F97: E | G97: Lease/rental payments for quota or other fishing rights | H97: not relevant | M97: N/A | N97: N/A | O97: N/A | P97: N/A | Q97: N/A
A98: POL | B98: Baltic Sea, North Sea and Eastern Arctic, and North Atlantic | C98: Drift and fixed netters | D98: 12-<18 m | E98: Drift and fixed netters 12-18 m | F98: E | G98: Consumption of fixed capital | H98: questionnaires | I98: A | J98: Every Year | K98: 100 | M98: 10 | N98: 4 | O98: =N98/M98 -> 0.4 | P98: =N98/M98 -> 0.4 | Q98: 0.4 | R98: Typing error in WP - name in column C should read: "Drift and/or fixed netters". Vessels class 12-18 are dominant in the cluster. By mistake, the WP contains wrong length class in column "D" (10-12 m). Achieved Sample Rate lower than expected due to low no of responses
A99: POL | B99: Baltic Sea, North Sea and Eastern Arctic, and North Atlantic | C99: Drift and fixed netters | D99: 12-<18 m | E99: Drift and fixed netters 12-18 m | F99: E | G99: Value of physical capital | H99: calculated based on scraping premium | I99: A | J99: Every Year | K99: 100 | M99: 10 | N99: 10 | O99: 1 | P99: 1 | Q99: 1 | R99: Typing error in WP - name in column C should read: "Drift and/or fixed netters". Vessels class 12-18 are dominant in the cluster. By mistake, the WP contains wrong length class in column "D" (10-12 m). Achieved Sample Rate lower than expected due to low no of responses
A100: POL | B100: Baltic Sea, North Sea and Eastern Arctic, and North Atlantic | C100: Drift and fixed netters | D100: 12-<18 m | E100: Drift and fixed netters 12-18 m | F100: E | G100: Value of quota and other fishing rights | H100: not relevant | M100: N/A | N100: N/A | O100: N/A | P100: N/A | Q100: N/A
A101: POL | B101: Baltic Sea, North Sea and Eastern Arctic, and North Atlantic | C101: Drift and fixed netters | D101: 12-<18 m | E101: Drift and fixed netters 12-18 m | F101: E | G101: Investments of tangible assets, net | H101: questionnaires | I101: A | J101: Every Year | K101: 100 | M101: 10 | N101: 4 | O101: =N101/M101 -> 0.4 | P101: =N101/M101 -> 0.4 | Q101: 0.4 | R101: Typing error in WP - name in column C should read: "Drift and/or fixed netters". Vessels class 12-18 are dominant in the cluster. By mistake, the WP contains wrong length class in column "D" (10-12 m). Achieved Sample Rate lower than expected due to low no of responses
A102: POL | B102: Baltic Sea, North Sea and Eastern Arctic, and North Atlantic | C102: Drift and fixed netters | D102: 12-<18 m | E102: Drift and fixed netters 12-18 m | F102: E | G102: Long/short debts | H102: questionnaires | I102: A | J102: Every Year | K102: 100 | M102: 10 | N102: 4 | O102: 0.4 | P102: 0.4 | Q102: 0.4 | R102: Typing error in WP - name in column C should read: "Drift and/or fixed netters". Vessels class 12-18 are dominant in the cluster. By mistake, the WP contains wrong length class in column "D" (10-12 m). Achieved Sample Rate lower than expected due to low no of responses
A103: POL | B103: Baltic Sea, North Sea and Eastern Arctic, and North Atlantic | C103: Drift and fixed netters | D103: 12-<18 m | E103: Drift and fixed netters 12-18 m | F103: E | G103: Total assets | H103: questionnaires | I103: A | J103: Every Year | K103: 100 | M103: 10 | N103: 4 | O103: 0.4 | P103: 0.4 | Q103: 0.4 | R103: Typing error in WP - name in column C should read: "Drift and/or fixed netters". Vessels class 12-18 are dominant in the cluster. By mistake, the WP contains wrong length class in column "D" (10-12 m). Achieved Sample Rate lower than expected due to low no of responses
A104: POL | B104: Baltic Sea, North Sea and Eastern Arctic, and North Atlantic | C104: Drift and fixed netters | D104: 12-<18 m | E104: Drift and fixed netters 12-18 m | F104: E | G104: Engaged crew | H104: questionnaires | I104: A | J104: Every Year | K104: 100 | M104: 10 | N104: 4 | O104: 0.4 | P104: 0.4 | Q104: 0.4 | R104: Typing error in WP - name in column C should read: "Drift and/or fixed netters". Vessels class 12-18 are dominant in the cluster. By mistake, the WP contains wrong length class in column "D" (10-12 m). Achieved Sample Rate lower than expected due to low no of responses
A105: POL | B105: Baltic Sea, North Sea and Eastern Arctic, and North Atlantic | C105: Drift and fixed netters | D105: 12-<18 m | E105: Drift and fixed netters 12-18 m | F105: E | G105: Unpaid labour | H105: questionnaires | I105: A | J105: Every Year | K105: 100 | M105: 10 | N105: 4 | O105: 0.4 | P105: 0.4 | Q105: 0.4 | R105: Typing error in WP - name in column C should read: "Drift and/or fixed netters". Vessels class 12-18 are dominant in the cluster. By mistake, the WP contains wrong length class in column "D" (10-12 m). Achieved Sample Rate lower than expected due to low no of responses
A106: POL | B106: Baltic Sea, North Sea and Eastern Arctic, and North Atlantic | C106: Drift and fixed netters | D106: 12-<18 m | E106: Drift and fixed netters 12-18 m | F106: E | G106: Total hours worked per year | H106: questionnaires | I106: A | J106: Every Year | K106: 100 | M106: 10 | N106: 4 | O106: 0.4 | P106: 0.4 | Q106: 0.4 | R106: Typing error in WP - name in column C should read: "Drift and/or fixed netters". Vessels class 12-18 are dominant in the cluster. By mistake, the WP contains wrong length class in column "D" (10-12 m). Achieved Sample Rate lower than expected due to low no of responses
A107: POL | B107: Baltic Sea, North Sea and Eastern Arctic, and North Atlantic | C107: Drift and fixed netters | D107: 12-<18 m | E107: Drift and fixed netters 12-18 m | F107: E | G107: Number of vessels | H107: questionnaires, Register | I107: A | J107: Every Year | K107: 100 | M107: 10 | N107: 10 | O107: 1 | P107: 1 | Q107: 1 | R107: Typing error in WP - name in column C should read: "Drift and/or fixed netters". Vessels class 12-18 are dominant in the cluster. By mistake, the WP contains wrong length class in column "D" (10-12 m)
A108: POL | B108: Baltic Sea, North Sea and Eastern Arctic, and North Atlantic | C108: Drift and fixed netters | D108: 12-<18 m | E108: Drift and fixed netters 12-18 m | F108: E | G108: Mean LOA of vessels | H108: questionnaires, Register | I108: A | J108: Every Year | K108: 100 | M108: 10 | N108: 10 | O108: 1 | P108: 1 | Q108: 1 | R108: Typing error in WP - name in column C should read: "Drift and/or fixed netters". Vessels class 12-18 are dominant in the cluster. By mistake, the WP contains wrong length class in column "D" (10-12 m)
A109: POL | B109: Baltic Sea, North Sea and Eastern Arctic, and North Atlantic | C109: Drift and fixed netters | D109: 12-<18 m | E109: Drift and fixed netters 12-18 m | F109: E | G109: Total vessels tonnage | H109: questionnaires, Register | I109: A | J109: Every Year | K109: 100 | M109: 10 | N109: 10 | O109: 1 | P109: 1 | Q109: 1 | R109: Typing error in WP - name in column C should read: "Drift and/or fixed netters". Vessels class 12-18 are dominant in the cluster. By mistake, the WP contains wrong length class in column "D" (10-12 m)
A110: POL | B110: Baltic Sea, North Sea and Eastern Arctic, and North Atlantic | C110: Drift and fixed netters | D110: 12-<18 m | E110: Drift and fixed netters 12-18 m | F110: E | G110: Total vessels power | H110: questionnaires, Register | I110: A | J110: Every Year | K110: 100 | M110: 10 | N110: 10 | O110: 1 | P110: 1 | Q110: 1 | R110: Typing error in WP - name in column C should read: "Drift and/or fixed netters". Vessels class 12-18 are dominant in the cluster. By mistake, the WP contains wrong length class in column "D" (10-12 m)
A111: POL | B111: Baltic Sea, North Sea and Eastern Arctic, and North Atlantic | C111: Drift and fixed netters | D111: 12-<18 m | E111: Drift and fixed netters 12-18 m | F111: E | G111: Mean age of vessels | H111: questionnaires, Register | I111: A | J111: Every Year | K111: 100 | M111: 10 | N111: 10 | O111: 1 | P111: 1 | Q111: 1 | R111: Typing error in WP - name in column C should read: "Drift and/or fixed netters". Vessels class 12-18 are dominant in the cluster. By mistake, the WP contains wrong length class in column "D" (10-12 m)
A112: POL | B112: Baltic Sea, North Sea and Eastern Arctic, and North Atlantic | C112: Drift and fixed netters | D112: 12-<18 m | E112: Drift and fixed netters 12-18 m | F112: E | G112: Days at sea | H112: questionnaires, logbooks | I112: A | J112: Every Year | K112: 100 | M112: 10 | N112: 10 | O112: 1 | P112: 1 | Q112: 1 | R112: Typing error in WP - name in column C should read: "Drift and/or fixed netters". Vessels class 12-18 are dominant in the cluster. By mistake, the WP contains wrong length class in column "D" (10-12 m)
A113: POL | B113: Baltic Sea, North Sea and Eastern Arctic, and North Atlantic | C113: Drift and fixed netters | D113: 12-<18 m | E113: Drift and fixed netters 12-18 m | F113: E | G113: Energy consuption | H113: questionnaires | I113: A | J113: Every Year | K113: 100 | M113: 10 | N113: 4 | O113: 0.4 | P113: 0.4 | Q113: 0.4 | R113: Typing error in WP - name in column C should read: "Drift and/or fixed netters". Vessels class 12-18 are dominant in the cluster. By mistake, the WP contains wrong length class in column "D" (10-12 m). Achieved Sample Rate lower than expected due to low no of responses
A114: POL | B114: Baltic Sea, North Sea and Eastern Arctic, and North Atlantic | C114: Drift and fixed netters | D114: 12-<18 m | E114: Drift and fixed netters 12-18 m | F114: E | G114: Number of fishing enterprises/units | H114: Register | I114: A | J114: Every Year | K114: 100 | M114: 10 | N114: 10 | O114: 1 | P114: 1 | Q114: 1 | R114: Typing error in WP - name in column C should read: "Drift and/or fixed netters". Vessels class 12-18 are dominant in the cluster. By mistake, the WP contains wrong length class in column "D" (10-12 m)
A115: POL | B115: Baltic Sea, North Sea and Eastern Arctic, and North Atlantic | C115: Drift and fixed netters | D115: 12-<18 m | E115: Drift and fixed netters 12-18 m | F115: E | G115: Value of landings per species | H115: First sale document | I115: A | J115: Every Year | K115: 100 | M115: 10 | N115: 10 | O115: 1 | P115: 1 | Q115: 1 | R115: Typing error in WP - name in column C should read: "Drift and/or fixed netters". Vessels class 12-18 are dominant in the cluster. By mistake, the WP contains wrong length class in column "D" (10-12 m)
A116: POL | B116: Baltic Sea, North Sea and Eastern Arctic, and North Atlantic | C116: Drift and fixed netters | D116: 12-<18 m | E116: Drift and fixed netters 12-18 m | F116: E | G116: Average price per spices | H116: First sale document | I116: A | J116: Every Year | K116: 100 | M116: 10 | N116: 10 | O116: 1 | P116: 1 | Q116: 1 | R116: Typing error in WP - name in column C should read: "Drift and/or fixed netters". Vessels class 12-18 are dominant in the cluster. By mistake, the WP contains wrong length class in column "D" (10-12 m)
A117: POL | B117: Baltic Sea, North Sea and Eastern Arctic, and North Atlantic | C117: Drift and fixed netters | D117: 12-<18 m | E117: Drift and fixed netters 12-18 m | F117: S | G117: Employment by gender | H117: questionnaires | I117: A | J117: Every Year | K117: 100 | M117: 10 | N117: 4 | O117: 0.4 | P117: 0.4 | Q117: 0.4 | R117: Typing error in WP - name in column C should read: "Drift and/or fixed netters". Vessels class 12-18 are dominant in the cluster. By mistake, the WP contains wrong length class in column "D" (10-12 m). Achieved Sample Rate lower than expected due to low no of responses
A118: POL | B118: Baltic Sea, North Sea and Eastern Arctic, and North Atlantic | C118: Drift and fixed netters | D118: 12-<18 m | E118: Drift and fixed netters 12-18 m | F118: S | G118: FTE by gender | H118: questionnaires | I118: A | J118: Every Year | K118: 100 | M118: 10 | N118: 4 | O118: 0.4 | P118: 0.4 | Q118: 0.4 | R118: Typing error in WP - name in column C should read: "Drift and/or fixed netters". Vessels class 12-18 are dominant in the cluster. By mistake, the WP contains wrong length class in column "D" (10-12 m). Achieved Sample Rate lower than expected due to low no of responses
A119: POL | B119: Baltic Sea, North Sea and Eastern Arctic, and North Atlantic | C119: Drift and fixed netters | D119: 12-<18 m | E119: Drift and fixed netters 12-18 m | F119: S | G119: Unpaid labour by gender | H119: questionnaires | I119: A | J119: Every Year | K119: 100 | M119: 10 | N119: 4 | O119: 0.4 | P119: 0.4 | Q119: 0.4 | R119: Typing error in WP - name in column C should read: "Drift and/or fixed netters". Vessels class 12-18 are dominant in the cluster. By mistake, the WP contains wrong length class in column "D" (10-12 m). Achieved Sample Rate lower than expected due to low no of responses
A120: POL | B120: Baltic Sea, North Sea and Eastern Arctic, and North Atlantic | C120: Drift and fixed netters | D120: 12-<18 m | E120: Drift and fixed netters 12-18 m | F120: S | G120: Employment by age | H120: questionnaires | I120: A | J120: Every Year | K120: 100 | M120: 10 | N120: 4 | O120: 0.4 | P120: 0.4 | Q120: 0.4 | R120: Typing error in WP - name in column C should read: "Drift and/or fixed netters". Vessels class 12-18 are dominant in the cluster. By mistake, the WP contains wrong length class in column "D" (10-12 m). Achieved Sample Rate lower than expected due to low no of responses
A121: POL | B121: Baltic Sea, North Sea and Eastern Arctic, and North Atlantic | C121: Drift and fixed netters | D121: 12-<18 m | E121: Drift and fixed netters 12-18 m | F121: S | G121: Employment by education level | H121: questionnaires | I121: A | J121: Every Year | K121: 100 | M121: 10 | N121: 4 | O121: 0.4 | P121: 0.4 | Q121: 0.4 | R121: Typing error in WP - name in column C should read: "Drift and/or fixed netters". Vessels class 12-18 are dominant in the cluster. By mistake, the WP contains wrong length class in column "D" (10-12 m). Achieved Sample Rate lower than expected due to low no of responses
A122: POL | B122: Baltic Sea, North Sea and Eastern Arctic, and North Atlantic | C122: Drift and fixed netters | D122: 12-<18 m | E122: Drift and fixed netters 12-18 m | F122: S | G122: Employment by nationality | H122: questionnaires | I122: A | J122: Every Year | K122: 100 | M122: 10 | N122: 4 | O122: 0.4 | P122: 0.4 | Q122: 0.4 | R122: Typing error in WP - name in column C should read: "Drift and/or fixed netters". Data were collected in 2019 (for 2018), data are estimated based on questionnaires
A123: POL | B123: Baltic Sea, North Sea and Eastern Arctic, and North Atlantic | C123: Drift and fixed netters | D123: 12-<18 m | E123: Drift and fixed netters 12-18 m | F123: S | G123: Employment by employment status | H123: questionnaires | I123: A | J123: Every Year | K123: 100 | M123: 10 | N123: 4 | O123: 0.4 | P123: 0.4 | Q123: 0.4 | R123: Typing error in WP - name in column C should read: "Drift and/or fixed netters". Vessels class 12-18 are dominant in the cluster. By mistake, the WP contains wrong length class in column "D" (10-12 m). Achieved Sample Rate lower than expected due to low no of responses
A124: POL | B124: Baltic Sea, North Sea and Eastern Arctic, and North Atlantic | C124: Drift and fixed netters | D124: 12-<18 m | E124: Drift and fixed netters 12-18 m | F124: S | G124: FTE National | H124: questionnaires | I124: A | J124: Every Year | K124: 100 | M124: 10 | N124: 4 | O124: 0.4 | P124: 0.4 | Q124: 0.4 | R124: Typing error in WP - name in column C should read: "Drift and/or fixed netters". Vessels class 12-18 are dominant in the cluster. By mistake, the WP contains wrong length class in column "D" (10-12 m). Achieved Sample Rate lower than expected due to low no of responses
A125: POL | B125: Baltic Sea, North Sea and Eastern Arctic, and North Atlantic | C125: Demersal trawlers and seiners | D125: 12-<18 m | E125: Demersal trawlers 12-18 m | F125: E | G125: Gross value of landings | H125: landing declaration, sales notes | I125: A | J125: Every Year | K125: 100 | M125: 49 | N125: 49 | O125: 1 | P125: =N125/M125 -> 1 | Q125: =N125/(M125*K125/100) -> 1 | R125: Additional Data Source - first sale documents.
A126: POL | B126: Baltic Sea, North Sea and Eastern Arctic, and North Atlantic | C126: Demersal trawlers and seiners | D126: 12-<18 m | E126: Demersal trawlers 12-18 m | F126: E | G126: Income from leasing out quota or other fishing rights | H126: not relevant | M126: N/A | N126: N/A | O126: N/A | P126: N/A | Q126: N/A
A127: POL | B127: Baltic Sea, North Sea and Eastern Arctic, and North Atlantic | C127: Demersal trawlers and seiners | D127: 12-<18 m | E127: Demersal trawlers 12-18 m | F127: E | G127: Other income | H127: questionnaires | I127: A | J127: Every Year | K127: 100 | M127: 49 | N127: 17 | O127: =N127/M127 -> 0.3469387755 | P127: =N127/M127 -> 0.3469387755 | Q127: 0.3469387755 | R127: Achieved Sample Rate lower than expected due to low no of responses
A128: POL | B128: Baltic Sea, North Sea and Eastern Arctic, and North Atlantic | C128: Demersal trawlers and seiners | D128: 12-<18 m | E128: Demersal trawlers 12-18 m | F128: E | G128: Wages and salaries of crew | H128: questionnaires | I128: A | J128: Every Year | K128: 100 | M128: 49 | N128: 17 | O128: =N128/M128 -> 0.3469387755 | P128: =N128/M128 -> 0.3469387755 | Q128: 0.3469387755 | R128: Wrong variable name in WP - should read: "Personnel cost". Achieved Sample Rate lower than expected due to low no of responses
A129: POL | B129: Baltic Sea, North Sea and Eastern Arctic, and North Atlantic | C129: Demersal trawlers and seiners | D129: 12-<18 m | E129: Demersal trawlers 12-18 m | F129: E | G129: Imputed value of unpaid labour | H129: estimation | I129: D | J129: Every Year | K129: 100 | M129: 49 | N129: 17 | O129: 0.3469387755 | P129: 0.3469387755 | Q129: 0.3469387755 | R129: Wrong variable name in WP - should read: "Value of unpaid labour". Achieved Sample Rate lower than expected due to low no of responses
A130: POL | B130: Baltic Sea, North Sea and Eastern Arctic, and North Atlantic | C130: Demersal trawlers and seiners | D130: 12-<18 m | E130: Demersal trawlers 12-18 m | F130: E | G130: Energy costs | H130: questionnaires | I130: A | J130: Every Year | K130: 100 | M130: 49 | N130: 17 | O130: 0.3469387755 | P130: 0.3469387755 | Q130: 0.3469387755 | R130: Achieved Sample Rate lower than expected due to low no of responses
A131: POL | B131: Baltic Sea, North Sea and Eastern Arctic, and North Atlantic | C131: Demersal trawlers and seiners | D131: 12-<18 m | E131: Demersal trawlers 12-18 m | F131: E | G131: Repair and maintenance costs | H131: questionnaires | I131: A | J131: Every Year | K131: 100 | M131: 49 | N131: 17 | O131: 0.3469387755 | P131: 0.3469387755 | Q131: 0.3469387755 | R131: Achieved Sample Rate lower than expected due to low no of responses
A132: POL | B132: Baltic Sea, North Sea and Eastern Arctic, and North Atlantic | C132: Demersal trawlers and seiners | D132: 12-<18 m | E132: Demersal trawlers 12-18 m | F132: E | G132: Variable costs | H132: questionnaires | I132: A | J132: Every Year | K132: 100 | M132: 49 | N132: 17 | O132: 0.3469387755 | P132: 0.3469387755 | Q132: 0.3469387755 | R132: Achieved Sample Rate lower than expected due to low no of responses
A133: POL | B133: Baltic Sea, North Sea and Eastern Arctic, and North Atlantic | C133: Demersal trawlers and seiners | D133: 12-<18 m | E133: Demersal trawlers 12-18 m | F133: E | G133: Non-variable costs | H133: questionnaires | I133: A | J133: Every Year | K133: 100 | M133: 49 | N133: 17 | O133: 0.3469387755 | P133: 0.3469387755 | Q133: 0.3469387755 | R133: Achieved Sample Rate lower than expected due to low no of responses
A134: POL | B134: Baltic Sea, North Sea and Eastern Arctic, and North Atlantic | C134: Demersal trawlers and seiners | D134: 12-<18 m | E134: Demersal trawlers 12-18 m | F134: E | G134: Lease/rental payments for quota or other fishing rights | H134: questionnaires | I134: A | J134: Every Year | K134: 100 | M134: 49 | N134: 17 | O134: 0.3469387755 | P134: 0.3469387755 | Q134: 0.3469387755 | R134: Achieved Sample Rate lower than expected due to low no of responses
A135: POL | B135: Baltic Sea, North Sea and Eastern Arctic, and North Atlantic | C135: Demersal trawlers and seiners | D135: 12-<18 m | E135: Demersal trawlers 12-18 m | F135: E | G135: Operating Subsidies | H135: administrative records | I135: A | J135: Every Year | K135: 100 | M135: 49 | N135: 49 | O135: 1 | P135: 1 | Q135: 1 | R135: Achieved Sample Rate lower than expected due to low no of responses
A136: POL | B136: Baltic Sea, North Sea and Eastern Arctic, and North Atlantic | C136: Demersal trawlers and seiners | D136: 12-<18 m | E136: Demersal trawlers 12-18 m | F136: E | G136: Subsidies on investments | H136: administrative records | I136: A | J136: Every Year | K136: 100 | M136: 49 | N136: 49 | O136: 1 | P136: 1 | Q136: 1 | R136: Achieved Sample Rate lower than expected due to low no of responses
A137: POL | B137: Baltic Sea, North Sea and Eastern Arctic, and North Atlantic | C137: Demersal trawlers and seiners | D137: 12-<18 m | E137: Demersal trawlers 12-18 m | F137: E | G137: Lease/rental payments for quota or other fishing rights | H137: not relevant | M137: N/A | N137: N/A | O137: N/A | P137: N/A | Q137: N/A
A138: POL | B138: Baltic Sea, North Sea and Eastern Arctic, and North Atlantic | C138: Demersal trawlers and seiners | D138: 12-<18 m | E138: Demersal trawlers 12-18 m | F138: E | G138: Consumption of fixed capital | H138: questionnaires | I138: A | J138: Every Year | K138: 100 | M138: 49 | N138: 17 | O138: =N138/M138 -> 0.3469387755 | P138: =N138/M138 -> 0.3469387755 | Q138: 0.3469387755 | R138: Achieved Sample Rate lower than expected due to low no of responses
A139: POL | B139: Baltic Sea, North Sea and Eastern Arctic, and North Atlantic | C139: Demersal trawlers and seiners | D139: 12-<18 m | E139: Demersal trawlers 12-18 m | F139: E | G139: Value of physical capital | H139: calculated based on scraping premium | I139: A | J139: Every Year | K139: 100 | M139: 49 | N139: 49 | O139: 1 | P139: 1 | Q139: 1 | R139: Achieved Sample Rate lower than expected due to low no of responses
A140: POL | B140: Baltic Sea, North Sea and Eastern Arctic, and North Atlantic | C140: Demersal trawlers and seiners | D140: 12-<18 m | E140: Demersal trawlers 12-18 m | F140: E | G140: Value of quota and other fishing rights | H140: not relevant | M140: N/A | N140: N/A | O140: N/A | P140: N/A | Q140: N/A
A141: POL | B141: Baltic Sea, North Sea and Eastern Arctic, and North Atlantic | C141: Demersal trawlers and seiners | D141: 12-<18 m | E141: Demersal trawlers 12-18 m | F141: E | G141: Investments of tangible assets, net | H141: questionnaires | I141: A | J141: Every Year | K141: 100 | M141: 49 | N141: 17 | O141: =N141/M141 -> 0.3469387755 | P141: =N141/M141 -> 0.3469387755 | Q141: 0.3469387755 | R141: Achieved Sample Rate lower than expected due to low no of responses
A142: POL | B142: Baltic Sea, North Sea and Eastern Arctic, and North Atlantic | C142: Demersal trawlers and seiners | D142: 12-<18 m | E142: Demersal trawlers 12-18 m | F142: E | G142: Long/short debts | H142: questionnaires | I142: A | J142: Every Year | K142: 100 | M142: 49 | N142: 17 | O142: 0.3469387755 | P142: 0.3469387755 | Q142: 0.3469387755 | R142: Achieved Sample Rate lower than expected due to low no of responses
A143: POL | B143: Baltic Sea, North Sea and Eastern Arctic, and North Atlantic | C143: Demersal trawlers and seiners | D143: 12-<18 m | E143: Demersal trawlers 12-18 m | F143: E | G143: Total assets | H143: questionnaires | I143: A | J143: Every Year | K143: 100 | M143: 49 | N143: 17 | O143: 0.3469387755 | P143: 0.3469387755 | Q143: 0.3469387755 | R143: Achieved Sample Rate lower than expected due to low no of responses
A144: POL | B144: Baltic Sea, North Sea and Eastern Arctic, and North Atlantic | C144: Demersal trawlers and seiners | D144: 12-<18 m | E144: Demersal trawlers 12-18 m | F144: E | G144: Engaged crew | H144: questionnaires | I144: A | J144: Every Year | K144: 100 | M144: 49 | N144: 17 | O144: 0.3469387755 | P144: 0.3469387755 | Q144: 0.3469387755 | R144: Achieved Sample Rate lower than expected due to low no of responses
A145: POL | B145: Baltic Sea, North Sea and Eastern Arctic, and North Atlantic | C145: Demersal trawlers and seiners | D145: 12-<18 m | E145: Demersal trawlers 12-18 m | F145: E | G145: Unpaid labour | H145: questionnaires | I145: A | J145: Every Year | K145: 100 | M145: 49 | N145: 17 | O145: 0.3469387755 | P145: 0.3469387755 | Q145: 0.3469387755 | R145: Achieved Sample Rate lower than expected due to low no of responses
A146: POL | B146: Baltic Sea, North Sea and Eastern Arctic, and North Atlantic | C146: Demersal trawlers and seiners | D146: 12-<18 m | E146: Demersal trawlers 12-18 m | F146: E | G146: Total hours worked per year | H146: questionnaires | I146: A | J146: Every Year | K146: 100 | M146: 49 | N146: 17 | O146: 0.3469387755 | P146: 0.3469387755 | Q146: 0.3469387755 | R146: Achieved Sample Rate lower than expected due to low no of responses
A147: POL | B147: Baltic Sea, North Sea and Eastern Arctic, and North Atlantic | C147: Demersal trawlers and seiners | D147: 12-<18 m | E147: Demersal trawlers 12-18 m | F147: E | G147: Number of vessels | H147: questionnaires, Register | I147: A | J147: Every Year | K147: 100 | M147: 49 | N147: 49 | O147: 1 | P147: 1 | Q147: 1
A148: POL | B148: Baltic Sea, North Sea and Eastern Arctic, and North Atlantic | C148: Demersal trawlers and seiners | D148: 12-<18 m | E148: Demersal trawlers 12-18 m | F148: E | G148: Mean LOA of vessels | H148: questionnaires, Register | I148: A | J148: Every Year | K148: 100 | M148: 49 | N148: 49 | O148: 1 | P148: 1 | Q148: 1
A149: POL | B149: Baltic Sea, North Sea and Eastern Arctic, and North Atlantic | C149: Demersal trawlers and seiners | D149: 12-<18 m | E149: Demersal trawlers 12-18 m | F149: E | G149: Total vessels tonnage | H149: questionnaires, Register | I149: A | J149: Every Year | K149: 100 | M149: 49 | N149: 49 | O149: 1 | P149: 1 | Q149: 1
A150: POL | B150: Baltic Sea, North Sea and Eastern Arctic, and North Atlantic | C150: Demersal trawlers and seiners | D150: 12-<18 m | E150: Demersal trawlers 12-18 m | F150: E | G150: Total vessels power | H150: questionnaires, Register | I150: A | J150: Every Year | K150: 100 | M150: 49 | N150: 49 | O150: 1 | P150: 1 | Q150: 1
A151: POL | B151: Baltic Sea, North Sea and Eastern Arctic, and North Atlantic | C151: Demersal trawlers and seiners | D151: 12-<18 m | E151: Demersal trawlers 12-18 m | F151: E | G151: Mean age of vessels | H151: questionnaires, Register | I151: A | J151: Every Year | K151: 100 | M151: 49 | N151: 49 | O151: 1 | P151: 1 | Q151: 1
A152: POL | B152: Baltic Sea, North Sea and Eastern Arctic, and North Atlantic | C152: Demersal trawlers and seiners | D152: 12-<18 m | E152: Demersal trawlers 12-18 m | F152: E | G152: Days at sea | H152: questionnaires, logbooks | I152: A | J152: Every Year | K152: 100 | M152: 49 | N152: 49 | O152: 1 | P152: 1 | Q152: 1
A153: POL | B153: Baltic Sea, North Sea and Eastern Arctic, and North Atlantic | C153: Demersal trawlers and seiners | D153: 12-<18 m | E153: Demersal trawlers 12-18 m | F153: E | G153: Energy consuption | H153: questionnaires | I153: A | J153: Every Year | K153: 100 | M153: 49 | N153: 17 | O153: 0.3469387755 | P153: 0.3469387755 | Q153: 0.3469387755 | R153: Achieved Sample Rate lower than expected due to low no of responses
A154: POL | B154: Baltic Sea, North Sea and Eastern Arctic, and North Atlantic | C154: Demersal trawlers and seiners | D154: 12-<18 m | E154: Demersal trawlers 12-18 m | F154: E | G154: Number of fishing enterprises/units | H154: Register | I154: A | J154: Every Year | K154: 100 | M154: 49 | N154: 49 | O154: 1 | P154: 1 | Q154: 1
A155: POL | B155: Baltic Sea, North Sea and Eastern Arctic, and North Atlantic | C155: Demersal trawlers and seiners | D155: 12-<18 m | E155: Demersal trawlers 12-18 m | F155: E | G155: Value of landings per species | H155: First sale document | I155: A | J155: Every Year | K155: 100 | M155: 49 | N155: 49 | O155: 1 | P155: 1 | Q155: 1
A156: POL | B156: Baltic Sea, North Sea and Eastern Arctic, and North Atlantic | C156: Demersal trawlers and seiners | D156: 12-<18 m | E156: Demersal trawlers 12-18 m | F156: E | G156: Average price per spices | H156: First sale document | I156: A | J156: Every Year | K156: 100 | M156: 49 | N156: 49 | O156: 1 | P156: 1 | Q156: 1
A157: POL | B157: Baltic Sea, North Sea and Eastern Arctic, and North Atlantic | C157: Demersal trawlers and seiners | D157: 12-<18 m | E157: Demersal trawlers 12-18 m | F157: S | G157: Employment by gender | H157: questionnaires | I157: A | J157: Every Year | K157: 100 | M157: 49 | N157: 17 | O157: 0.3469387755 | P157: 0.3469387755 | Q157: 0.3469387755 | R157: Achieved Sample Rate lower than expected due to low no of responses
A158: POL | B158: Baltic Sea, North Sea and Eastern Arctic, and North Atlantic | C158: Demersal trawlers and seiners | D158: 12-<18 m | E158: Demersal trawlers 12-18 m | F158: S | G158: FTE by gender | H158: questionnaires | I158: A | J158: Every Year | K158: 100 | M158: 49 | N158: 17 | O158: 0.3469387755 | P158: 0.3469387755 | Q158: 0.3469387755 | R158: Achieved Sample Rate lower than expected due to low no of responses
A159: POL | B159: Baltic Sea, North Sea and Eastern Arctic, and North Atlantic | C159: Demersal trawlers and seiners | D159: 12-<18 m | E159: Demersal trawlers 12-18 m | F159: S | G159: Unpaid labour by gender | H159: questionnaires | I159: A | J159: Every Year | K159: 100 | M159: 49 | N159: 17 | O159: 0.3469387755 | P159: 0.3469387755 | Q159: 0.3469387755 | R159: Achieved Sample Rate lower than expected due to low no of responses
A160: POL | B160: Baltic Sea, North Sea and Eastern Arctic, and North Atlantic | C160: Demersal trawlers and seiners | D160: 12-<18 m | E160: Demersal trawlers 12-18 m | F160: S | G160: Employment by age | H160: questionnaires | I160: A | J160: Every Year | K160: 100 | M160: 49 | N160: 17 | O160: 0.3469387755 | P160: 0.3469387755 | Q160: 0.3469387755 | R160: Achieved Sample Rate lower than expected due to low no of responses
A161: POL | B161: Baltic Sea, North Sea and Eastern Arctic, and North Atlantic | C161: Demersal trawlers and seiners | D161: 12-<18 m | E161: Demersal trawlers 12-18 m | F161: S | G161: Employment by education level | H161: questionnaires | I161: A | J161: Every Year | K161: 100 | M161: 49 | N161: 17 | O161: 0.3469387755 | P161: 0.3469387755 | Q161: 0.3469387755 | R161: Achieved Sample Rate lower than expected due to low no of responses
A162: POL | B162: Baltic Sea, North Sea and Eastern Arctic, and North Atlantic | C162: Demersal trawlers and seiners | D162: 12-<18 m | E162: Demersal trawlers 12-18 m | F162: S | G162: Employment by nationality | H162: questionnaires | I162: A | J162: Every Year | K162: 100 | M162: 49 | N162: 17 | O162: 0.3469387755 | P162: 0.3469387755 | Q162: 0.3469387755 | R162: Data were collected in 2019 (for 2018), data are estimated based on questionnaires
A163: POL | B163: Baltic Sea, North Sea and Eastern Arctic, and North Atlantic | C163: Demersal trawlers and seiners | D163: 12-<18 m | E163: Demersal trawlers 12-18 m | F163: S | G163: Employment by employment status | H163: questionnaires | I163: A | J163: Every Year | K163: 100 | M163: 49 | N163: 17 | O163: 0.3469387755 | P163: 0.3469387755 | Q163: 0.3469387755 | R163: Achieved Sample Rate lower than expected due to low no of responses
A164: POL | B164: Baltic Sea, North Sea and Eastern Arctic, and North Atlantic | C164: Demersal trawlers and seiners | D164: 12-<18 m | E164: Demersal trawlers 12-18 m | F164: S | G164: FTE National | H164: questionnaires | I164: A | J164: Every Year | K164: 100 | M164: 49 | N164: 17 | O164: 0.3469387755 | P164: 0.3469387755 | Q164: 0.3469387755 | R164: Achieved Sample Rate lower than expected due to low no of responses
A165: POL | B165: Baltic Sea, North Sea and Eastern Arctic, and North Atlantic | C165: Demersal trawlers and seiners | D165: 18-<24 m | E165: Demersal trawlers 18-24 m | F165: E | G165: Gross value of landings | H165: landing declaration, sales notes | I165: A | J165: Every Year | K165: 100 | M165: 26 | N165: 15 | O165: 0.5769230769 | P165: =N165/M165 -> 0.5769230769 | Q165: 0.5769230769 | R165: Additional Data Source - first sale documents.
A166: POL | B166: Baltic Sea, North Sea and Eastern Arctic, and North Atlantic | C166: Demersal trawlers and seiners | D166: 18-<24 m | E166: Demersal trawlers 18-24 m | F166: E | G166: Income from leasing out quota or other fishing rights | H166: not relevant | M166: N/A | N166: N/A | O166: N/A | P166: N/A | Q166: N/A
A167: POL | B167: Baltic Sea, North Sea and Eastern Arctic, and North Atlantic | C167: Demersal trawlers and seiners | D167: 18-<24 m | E167: Demersal trawlers 18-24 m | F167: E | G167: Other income | H167: questionnaires | I167: A | J167: Every Year | K167: 100 | M167: 26 | N167: 15 | O167: =N167/M167 -> 0.5769230769 | P167: =N167/M167 -> 0.5769230769 | Q167: 0.5769230769 | R167: Achieved Sample Rate lower than expected due to low no of responses
A168: POL | B168: Baltic Sea, North Sea and Eastern Arctic, and North Atlantic | C168: Demersal trawlers and seiners | D168: 18-<24 m | E168: Demersal trawlers 18-24 m | F168: E | G168: Wages and salaries of crew | H168: questionnaires | I168: A | J168: Every Year | K168: 100 | M168: 26 | N168: 15 | O168: =N168/M168 -> 0.5769230769 | P168: =N168/M168 -> 0.5769230769 | Q168: 0.5769230769 | R168: Wrong variable name in WP - should read: "Personnel cost". Achieved Sample Rate lower than expected due to low no of responses
A169: POL | B169: Baltic Sea, North Sea and Eastern Arctic, and North Atlantic | C169: Demersal trawlers and seiners | D169: 18-<24 m | E169: Demersal trawlers 18-24 m | F169: E | G169: Imputed value of unpaid labour | H169: estimation | I169: D | J169: Every Year | K169: 100 | M169: 26 | N169: 15 | O169: 0.5769230769 | P169: 0.5769230769 | Q169: 0.5769230769 | R169: Wrong variable name in WP - should read: "Value of unpaid labour". Achieved Sample Rate lower than expected due to low no of responses
A170: POL | B170: Baltic Sea, North Sea and Eastern Arctic, and North Atlantic | C170: Demersal trawlers and seiners | D170: 18-<24 m | E170: Demersal trawlers 18-24 m | F170: E | G170: Energy costs | H170: questionnaires | I170: A | J170: Every Year | K170: 100 | M170: 26 | N170: 15 | O170: 0.5769230769 | P170: 0.5769230769 | Q170: 0.5769230769 | R170: Achieved Sample Rate lower than expected due to low no of responses
A171: POL | B171: Baltic Sea, North Sea and Eastern Arctic, and North Atlantic | C171: Demersal trawlers and seiners | D171: 18-<24 m | E171: Demersal trawlers 18-24 m | F171: E | G171: Repair and maintenance costs | H171: questionnaires | I171: A | J171: Every Year | K171: 100 | M171: 26 | N171: 15 | O171: 0.5769230769 | P171: 0.5769230769 | Q171: 0.5769230769 | R171: Achieved Sample Rate lower than expected due to low no of responses
A172: POL | B172: Baltic Sea, North Sea and Eastern Arctic, and North Atlantic | C172: Demersal trawlers and seiners | D172: 18-<24 m | E172: Demersal trawlers 18-24 m | F172: E | G172: Variable costs | H172: questionnaires | I172: A | J172: Every Year | K172: 100 | M172: 26 | N172: 15 | O172: 0.5769230769 | P172: 0.5769230769 | Q172: 0.5769230769 | R172: Achieved Sample Rate lower than expected due to low no of responses
A173: POL | B173: Baltic Sea, North Sea and Eastern Arctic, and North Atlantic | C173: Demersal trawlers and seiners | D173: 18-<24 m | E173: Demersal trawlers 18-24 m | F173: E | G173: Non-variable costs | H173: questionnaires | I173: A | J173: Every Year | K173: 100 | M173: 26 | N173: 15 | O173: 0.5769230769 | P173: 0.5769230769 | Q173: 0.5769230769 | R173: Achieved Sample Rate lower than expected due to low no of responses
A174: POL | B174: Baltic Sea, North Sea and Eastern Arctic, and North Atlantic | C174: Demersal trawlers and seiners | D174: 18-<24 m | E174: Demersal trawlers 18-24 m | F174: E | G174: Lease/rental payments for quota or other fishing rights | H174: questionnaires | I174: A | J174: Every Year | K174: 100 | M174: 26 | N174: 15 | O174: 0.5769230769 | P174: 0.5769230769 | Q174: 0.5769230769 | R174: Achieved Sample Rate lower than expected due to low no of responses
A175: POL | B175: Baltic Sea, North Sea and Eastern Arctic, and North Atlantic | C175: Demersal trawlers and seiners | D175: 18-<24 m | E175: Demersal trawlers 18-24 m | F175: E | G175: Operating Subsidies | H175: administrative records | I175: A | J175: Every Year | K175: 100 | M175: 26 | N175: 26 | O175: 1 | P175: 1 | Q175: 1 | R175: Achieved Sample Rate lower than expected due to low no of responses
A176: POL | B176: Baltic Sea, North Sea and Eastern Arctic, and North Atlantic | C176: Demersal trawlers and seiners | D176: 18-<24 m | E176: Demersal trawlers 18-24 m | F176: E | G176: Subsidies on investments | H176: administrative records | I176: A | J176: Every Year | K176: 100 | M176: 26 | N176: 26 | O176: 1 | P176: 1 | Q176: 1 | R176: Achieved Sample Rate lower than expected due to low no of responses
A177: POL | B177: Baltic Sea, North Sea and Eastern Arctic, and North Atlantic | C177: Demersal trawlers and seiners | D177: 18-<24 m | E177: Demersal trawlers 18-24 m | F177: E | G177: Lease/rental payments for quota or other fishing rights | H177: not relevant | M177: N/A | N177: N/A | O177: N/A | P177: N/A | Q177: N/A
A178: POL | B178: Baltic Sea, North Sea and Eastern Arctic, and North Atlantic | C178: Demersal trawlers and seiners | D178: 18-<24 m | E178: Demersal trawlers 18-24 m | F178: E | G178: Consumption of fixed capital | H178: questionnaires | I178: A | J178: Every Year | K178: 100 | M178: 26 | N178: 15 | O178: =N178/M178 -> 0.5769230769 | P178: =N178/M178 -> 0.5769230769 | Q178: 0.5769230769 | R178: Achieved Sample Rate lower than expected due to low no of responses
A179: POL | B179: Baltic Sea, North Sea and Eastern Arctic, and North Atlantic | C179: Demersal trawlers and seiners | D179: 18-<24 m | E179: Demersal trawlers 18-24 m | F179: E | G179: Value of physical capital | H179: calculated based on scraping premium | I179: A | J179: Every Year | K179: 100 | M179: 26 | N179: 26 | O179: 1 | P179: 1 | Q179: 1 | R179: Achieved Sample Rate lower than expected due to low no of responses
A180: POL | B180: Baltic Sea, North Sea and Eastern Arctic, and North Atlantic | C180: Demersal trawlers and seiners | D180: 18-<24 m | E180: Demersal trawlers 18-24 m | F180: E | G180: Value of quota and other fishing rights | H180: not relevant | M180: N/A | N180: N/A | O180: N/A | P180: N/A | Q180: N/A
A181: POL | B181: Baltic Sea, North Sea and Eastern Arctic, and North Atlantic | C181: Demersal trawlers and seiners | D181: 18-<24 m | E181: Demersal trawlers 18-24 m | F181: E | G181: Investments of tangible assets, net | H181: questionnaires | I181: A | J181: Every Year | K181: 100 | M181: 26 | N181: 15 | O181: =N181/M181 -> 0.5769230769 | P181: =N181/M181 -> 0.5769230769 | Q181: 0.5769230769 | R181: Achieved Sample Rate lower than expected due to low no of responses
A182: POL | B182: Baltic Sea, North Sea and Eastern Arctic, and North Atlantic | C182: Demersal trawlers and seiners | D182: 18-<24 m | E182: Demersal trawlers 18-24 m | F182: E | G182: Long/short debts | H182: questionnaires | I182: A | J182: Every Year | K182: 100 | M182: 26 | N182: 15 | O182: 0.5769230769 | P182: 0.5769230769 | Q182: 0.5769230769 | R182: Achieved Sample Rate lower than expected due to low no of responses
A183: POL | B183: Baltic Sea, North Sea and Eastern Arctic, and North Atlantic | C183: Demersal trawlers and seiners | D183: 18-<24 m | E183: Demersal trawlers 18-24 m | F183: E | G183: Total assets | H183: questionnaires | I183: A | J183: Every Year | K183: 100 | M183: 26 | N183: 15 | O183: 0.5769230769 | P183: 0.5769230769 | Q183: 0.5769230769 | R183: Achieved Sample Rate lower than expected due to low no of responses
A184: POL | B184: Baltic Sea, North Sea and Eastern Arctic, and North Atlantic | C184: Demersal trawlers and seiners | D184: 18-<24 m | E184: Demersal trawlers 18-24 m | F184: E | G184: Engaged crew | H184: questionnaires | I184: A | J184: Every Year | K184: 100 | M184: 26 | N184: 15 | O184: 0.5769230769 | P184: 0.5769230769 | Q184: 0.5769230769 | R184: Achieved Sample Rate lower than expected due to low no of responses
A185: POL | B185: Baltic Sea, North Sea and Eastern Arctic, and North Atlantic | C185: Demersal trawlers and seiners | D185: 18-<24 m | E185: Demersal trawlers 18-24 m | F185: E | G185: Unpaid labour | H185: questionnaires | I185: A | J185: Every Year | K185: 100 | M185: 26 | N185: 15 | O185: 0.5769230769 | P185: 0.5769230769 | Q185: 0.5769230769 | R185: Achieved Sample Rate lower than expected due to low no of responses
A186: POL | B186: Baltic Sea, North Sea and Eastern Arctic, and North Atlantic | C186: Demersal trawlers and seiners | D186: 18-<24 m | E186: Demersal trawlers 18-24 m | F186: E | G186: Total hours worked per year | H186: questionnaires | I186: A | J186: Every Year | K186: 100 | M186: 26 | N186: 15 | O186: 0.5769230769 | P186: 0.5769230769 | Q186: 0.5769230769 | R186: Achieved Sample Rate lower than expected due to low no of responses
A187: POL | B187: Baltic Sea, North Sea and Eastern Arctic, and North Atlantic | C187: Demersal trawlers and seiners | D187: 18-<24 m | E187: Demersal trawlers 18-24 m | F187: E | G187: Number of vessels | H187: questionnaires, Register | I187: A | J187: Every Year | K187: 100 | M187: 26 | N187: 26 | O187: 1 | P187: 1 | Q187: 1
A188: POL | B188: Baltic Sea, North Sea and Eastern Arctic, and North Atlantic | C188: Demersal trawlers and seiners | D188: 18-<24 m | E188: Demersal trawlers 18-24 m | F188: E | G188: Mean LOA of vessels | H188: questionnaires, Register | I188: A | J188: Every Year | K188: 100 | M188: 26 | N188: 26 | O188: 1 | P188: 1 | Q188: 1
A189: POL | B189: Baltic Sea, North Sea and Eastern Arctic, and North Atlantic | C189: Demersal trawlers and seiners | D189: 18-<24 m | E189: Demersal trawlers 18-24 m | F189: E | G189: Total vessels tonnage | H189: questionnaires, Register | I189: A | J189: Every Year | K189: 100 | M189: 26 | N189: 26 | O189: 1 | P189: 1 | Q189: =N189/(M189*K189/100) -> 1
A190: POL | B190: Baltic Sea, North Sea and Eastern Arctic, and North Atlantic | C190: Demersal trawlers and seiners | D190: 18-<24 m | E190: Demersal trawlers 18-24 m | F190: E | G190: Total vessels power | H190: questionnaires, Register | I190: A | J190: Every Year | K190: 100 | M190: 26 | N190: 26 | O190: 1 | P190: 1 | Q190: 1
A191: POL | B191: Baltic Sea, North Sea and Eastern Arctic, and North Atlantic | C191: Demersal trawlers and seiners | D191: 18-<24 m | E191: Demersal trawlers 18-24 m | F191: E | G191: Mean age of vessels | H191: questionnaires, Register | I191: A | J191: Every Year | K191: 100 | M191: 26 | N191: 26 | O191: 1 | P191: 1 | Q191: 1
A192: POL | B192: Baltic Sea, North Sea and Eastern Arctic, and North Atlantic | C192: Demersal trawlers and seiners | D192: 18-<24 m | E192: Demersal trawlers 18-24 m | F192: E | G192: Days at sea | H192: questionnaires, logbooks | I192: A | J192: Every Year | K192: 100 | M192: 26 | N192: 26 | O192: 1 | P192: 1 | Q192: 1
A193: POL | B193: Baltic Sea, North Sea and Eastern Arctic, and North Atlantic | C193: Demersal trawlers and seiners | D193: 18-<24 m | E193: Demersal trawlers 18-24 m | F193: E | G193: Energy consuption | H193: questionnaires | I193: A | J193: Every Year | K193: 100 | M193: 26 | N193: 15 | O193: 0.5769230769 | P193: 0.5769230769 | Q193: 0.5769230769 | R193: Achieved Sample Rate lower than expected due to low no of responses
A194: POL | B194: Baltic Sea, North Sea and Eastern Arctic, and North Atlantic | C194: Demersal trawlers and seiners | D194: 18-<24 m | E194: Demersal trawlers 18-24 m | F194: E | G194: Number of fishing enterprises/units | H194: Register | I194: A | J194: Every Year | K194: 100 | M194: 26 | N194: 26 | O194: 1 | P194: 1 | Q194: 1
A195: POL | B195: Baltic Sea, North Sea and Eastern Arctic, and North Atlantic | C195: Demersal trawlers and seiners | D195: 18-<24 m | E195: Demersal trawlers 18-24 m | F195: E | G195: Value of landings per species | H195: First sale document | I195: A | J195: Every Year | K195: 100 | M195: 26 | N195: 26 | O195: 1 | P195: 1 | Q195: 1
A196: POL | B196: Baltic Sea, North Sea and Eastern Arctic, and North Atlantic | C196: Demersal trawlers and seiners | D196: 18-<24 m | E196: Demersal trawlers 18-24 m | F196: E | G196: Average price per spices | H196: First sale document | I196: A | J196: Every Year | K196: 100 | M196: 26 | N196: 26 | O196: 1 | P196: 1 | Q196: 1
A197: POL | B197: Baltic Sea, North Sea and Eastern Arctic, and North Atlantic | C197: Demersal trawlers and seiners | D197: 18-<24 m | E197: Demersal trawlers 18-24 m | F197: S | G197: Employment by gender | H197: questionnaires | I197: A | J197: Every Year | K197: 100 | M197: 26 | N197: 15 | O197: 0.5769230769 | P197: 0.5769230769 | Q197: 0.5769230769 | R197: Achieved Sample Rate lower than expected due to low no of responses
A198: POL | B198: Baltic Sea, North Sea and Eastern Arctic, and North Atlantic | C198: Demersal trawlers and seiners | D198: 18-<24 m | E198: Demersal trawlers 18-24 m | F198: S | G198: FTE by gender | H198: questionnaires | I198: A | J198: Every Year | K198: 100 | M198: 26 | N198: 15 | O198: 0.5769230769 | P198: 0.5769230769 | Q198: 0.5769230769 | R198: Achieved Sample Rate lower than expected due to low no of responses
A199: POL | B199: Baltic Sea, North Sea and Eastern Arctic, and North Atlantic | C199: Demersal trawlers and seiners | D199: 18-<24 m | E199: Demersal trawlers 18-24 m | F199: S | G199: Unpaid labour by gender | H199: questionnaires | I199: A | J199: Every Year | K199: 100 | M199: 26 | N199: 15 | O199: 0.5769230769 | P199: 0.5769230769 | Q199: 0.5769230769 | R199: Achieved Sample Rate lower than expected due to low no of responses
A200: POL | B200: Baltic Sea, North Sea and Eastern Arctic, and North Atlantic | C200: Demersal trawlers and seiners | D200: 18-<24 m | E200: Demersal trawlers 18-24 m | F200: S | G200: Employment by age | H200: questionnaires | I200: A | J200: Every Year | K200: 100 | M200: 26 | N200: 15 | O200: 0.5769230769 | P200: 0.5769230769 | Q200: 0.5769230769 | R200: Achieved Sample Rate lower than expected due to low no of responses
... 209 more rows

Sheet Table3B Pop segments aquacultur
A1: Table 3B: Population segments for collection of economic and social data for aquaculture
Q2: WP years | R2: 2017-2019
Q3: AR year | R3: 2019
A4: MS | B4: Techniques | C4: Species group | D4: Type of variables (E/S) | E4: Variable | F4: Data source | G4: Type of data collection scheme | H4: Threshold (Y/N) | I4: Threshold Type | J4: Frequency | K4: Planned sample rate % | L4: Comments | M4: Frame population | N4: Achieved sample number | O4: Achieved Sample Rate % | P4: Response Rate % | Q4: Achieved Sample no/Planned sample no. | R4: AR Comment
A5: POL | B5: NA | C5: NA | D5: NA | E5: NA | F5: NA | G5: NA | H5: NA | J5: NA | K5: NA | L5: Based on the data until 2015, according to classification of aquaculture activities by Eurostat statistics, Poland has no marine aquaculture sector. Hence, no sampling is planned | M5: NA | N5: NA | O5: NA | P5: NA | Q5: NA

Sheet Table3C Pop segments processin
A1: Table 3C: Population segments for collection of economic and social data for the processing industry
N2: WP years | O2: 2017-2019
N3: AR year | O3: 2019
A4: MS | B4: Segment | C4: Type of variables (E/S) | D4: Variables | E4: Data sources | F4: Type of data collection scheme | G4: Frequency | H4: Planned sample rate % | I4: Comments | J4: Frame population | K4: Achieved sample number | L4: Achieved Sample Rate % | M4: Response Rate % | N4: Achieved Sample no/Planned sample no. | O4: AR Comments
A5: POL | B5: Companies <= 10 | C5: E | D5: Turnover | E5: questionnaires | F5: A - Census | G5: every year | H5: 1 | J5: 53 | K5: 32 | L5: =K5/J5 -> 0.6037735849 | M5: =K5/J5 -> 0.6037735849 | N5: =K5/(J5*H5/100) -> 60.37735849
A6: POL | B6: Companies <= 10 | C6: E | D6: Other income | E6: questionnaires | F6: A - Census | G6: every year | H6: 1 | J6: 53 | K6: 32 | L6: =K6/J6 -> 0.6037735849 | M6: =K6/J6 -> 0.6037735849 | N6: =K6/(J6*H6/100) -> 60.37735849
A7: POL | B7: Companies <= 10 | C7: E | D7: Personnel costs | E7: questionnaires | F7: A - Census | G7: every year | H7: 1 | J7: 53 | K7: 32 | L7: 0.6037735849 | M7: 0.6037735849 | N7: 60.37735849
A8: POL | B8: Companies <= 10 | C8: E | D8: Value of unpaid labour | E8: questionnaires | F8: A - Census | G8: every year | H8: 1 | J8: 53 | K8: NA
A9: POL | B9: Companies <= 10 | C9: E | D9: Energy costs | E9: questionnaires | F9: A - Census | G9: every year | H9: 1 | J9: 53 | K9: 32 | L9: 0.6037735849 | M9: 0.6037735849 | N9: 60.37735849
A10: POL | B10: Companies <= 10 | C10: E | D10: Purchase of fish and other raw material for production | E10: questionnaires | F10: A - Census | G10: every year | H10: 1 | J10: 53 | K10: 32 | L10: 0.6037735849 | M10: 0.6037735849 | N10: 60.37735849
A11: POL | B11: Companies <= 10 | C11: E | D11: Other operational costs | E11: questionnaires | F11: A - Census | G11: every year | H11: 1 | J11: 53 | K11: 32 | L11: 0.6037735849 | M11: 0.6037735849 | N11: 60.37735849
A12: POL | B12: Companies <= 10 | C12: E | D12: Operating subsidies | E12: questionnaires | F12: A - Census | G12: every year | H12: 1 | J12: 53 | K12: 32 | L12: 0.6037735849 | M12: 0.6037735849 | N12: 60.37735849
A13: POL | B13: Companies <= 10 | C13: E | D13: Subsidies on investments | E13: questionnaires | F13: A - Census | G13: every year | H13: 1 | J13: 53 | K13: 32 | L13: 0.6037735849 | M13: 0.6037735849 | N13: 60.37735849
A14: POL | B14: Companies <= 10 | C14: E | D14: Consumption of fixed capital | E14: questionnaires | F14: A - Census | G14: every year | H14: 1 | J14: 53 | K14: 32 | L14: 0.6037735849 | M14: 0.6037735849 | N14: 60.37735849
A15: POL | B15: Companies <= 10 | C15: E | D15: Total value of assets | E15: questionnaires | F15: A - Census | G15: every year | H15: 1 | J15: 53 | K15: 32 | L15: 0.6037735849 | M15: 0.6037735849 | N15: 60.37735849
A16: POL | B16: Companies <= 10 | C16: E | D16: Financial income | E16: questionnaires | F16: A - Census | G16: every year | H16: 1 | J16: 53 | K16: 32 | L16: 0.6037735849 | M16: 0.6037735849 | N16: 60.37735849
A17: POL | B17: Companies <= 10 | C17: E | D17: Financial expenditures | E17: questionnaires | F17: A - Census | G17: every year | H17: 1 | J17: 53 | K17: 32 | L17: 0.6037735849 | M17: 0.6037735849 | N17: 60.37735849
A18: POL | B18: Companies <= 10 | C18: E | D18: Net investments | E18: questionnaires | F18: A - Census | G18: every year | H18: 1 | J18: 53 | K18: 32 | L18: 0.6037735849 | M18: 0.6037735849 | N18: 60.37735849
A19: POL | B19: Companies <= 10 | C19: E | D19: Debt | E19: questionnaires | F19: A - Census | G19: every year | H19: 1 | J19: 53 | K19: NA
A20: POL | B20: Companies <= 10 | C20: E | D20: Number of persons employed | E20: questionnaires | F20: A - Census | G20: every year | H20: 1 | J20: 53 | K20: 32 | L20: 0.6037735849 | M20: 0.6037735849 | N20: 60.37735849
A21: POL | B21: Companies <= 10 | C21: E | D21: FTE National | E21: questionnaires | F21: A - Census | G21: every year | H21: 1 | J21: 53 | K21: 32 | L21: 0.6037735849 | M21: 0.6037735849 | N21: 60.37735849
A22: POL | B22: Companies <= 10 | C22: E | D22: Unpaid labour | E22: questionnaires | F22: A - Census | G22: every year | H22: 1 | J22: 53 | K22: NA
A23: POL | B23: Companies <= 10 | C23: E | D23: Number of hours worked by employees and unpaid workers | E23: questionnaires | F23: A - Census | G23: every year | H23: 1 | J23: 53 | K23: 32 | L23: 0.6037735849 | M23: 0.6037735849 | N23: 60.37735849
A24: POL | B24: Companies <= 10 | C24: E | D24: Number of enterprises | E24: General Veterinary Inspectorate | F24: A - Census | G24: every year | H24: 1 | J24: 53 | K24: 32 | L24: 0.6037735849 | M24: 0.6037735849 | N24: 60.37735849 | O24: Inactive units are excluded from frame population, despite the calls/emails lack of responses
A25: POL | B25: Companies <= 10 | C25: E | D25: Weight of raw material per species and origin (optional) | E25: questionnaires | F25: A - Census | G25: every year | H25: 1 | J25: 53 | K25: 32 | L25: 0.6037735849 | M25: 0.6037735849 | N25: 60.37735849
A26: POL | B26: Companies <= 10 | C26: S | D26: Employment by gender | E26: questionnaires | F26: A - Census | G26: every year | H26: 1 | J26: 53 | K26: 32 | L26: 0.6037735849 | M26: 0.6037735849 | N26: 60.37735849
A27: POL | B27: Companies <= 10 | C27: S | D27: Employment by age | E27: questionnaires | F27: A - Census | G27: every year | H27: 1 | J27: 53 | K27: 32 | L27: 0.6037735849 | M27: 0.6037735849 | N27: 60.37735849
A28: POL | B28: Companies <= 10 | C28: S | D28: Employment by education level | E28: questionnaires | F28: B - Probability Sample Survey | G28: every 3 years | H28: 1 | J28: 53 | K28: 0 | L28: 0 | M28: 0 | N28: 0 | O28: not collected for 2018
A29: POL | B29: Companies <= 10 | C29: S | D29: Employment by nationality | E29: questionnaires | F29: B - Probability Sample Survey | G29: every 3 years | H29: 1 | J29: 53 | K29: 0 | L29: 0 | M29: 0 | N29: =K29/(J29*H29/100) -> 0 | O29: not collected for 2018
A30: POL | B30: Companies <= 10 | C30: S | D30: FTE National | E30: questionnaires | F30: A - Census | G30: every year | H30: 1 | J30: 53 | K30: 32 | L30: 0.6037735849 | M30: 0.6037735849 | N30: =K30/(J30*H30/100) -> 60.37735849
A31: POL | B31: Companies 11-49 | C31: E | D31: Turnover | E31: questionnaires | F31: A - Census | G31: every year | H31: 1 | J31: 87 | K31: 77 | L31: 0.8850574713 | M31: 0.8850574713 | N31: 88.50574713
A32: POL | B32: Companies 11-49 | C32: E | D32: Other income | E32: questionnaires | F32: A - Census | G32: every year | H32: 1 | J32: 87 | K32: 77 | L32: 0.8850574713 | M32: 0.8850574713 | N32: 88.50574713
A33: POL | B33: Companies 11-49 | C33: E | D33: Personnel costs | E33: questionnaires | F33: A - Census | G33: every year | H33: 1 | J33: 87 | K33: 77 | L33: 0.8850574713 | M33: 0.8850574713 | N33: 88.50574713
A34: POL | B34: Companies 11-49 | C34: E | D34: Value of unpaid labour | E34: questionnaires | F34: A - Census | G34: every year | H34: 1 | J34: 87 | K34: NA
A35: POL | B35: Companies 11-49 | C35: E | D35: Energy costs | E35: questionnaires | F35: A - Census | G35: every year | H35: 1 | J35: 87 | K35: 77 | L35: 0.8850574713 | M35: 0.8850574713 | N35: 88.50574713
A36: POL | B36: Companies 11-49 | C36: E | D36: Purchase of fish and other raw material for production | E36: questionnaires | F36: A - Census | G36: every year | H36: 1 | J36: 87 | K36: 77 | L36: 0.8850574713 | M36: 0.8850574713 | N36: 88.50574713
A37: POL | B37: Companies 11-49 | C37: E | D37: Other operational costs | E37: questionnaires | F37: A - Census | G37: every year | H37: 1 | J37: 87 | K37: 77 | L37: 0.8850574713 | M37: 0.8850574713 | N37: 88.50574713
A38: POL | B38: Companies 11-49 | C38: E | D38: Operating subsidies | E38: questionnaires | F38: A - Census | G38: every year | H38: 1 | J38: 87 | K38: 77 | L38: 0.8850574713 | M38: 0.8850574713 | N38: 88.50574713
A39: POL | B39: Companies 11-49 | C39: E | D39: Subsidies on investments | E39: questionnaires | F39: A - Census | G39: every year | H39: 1 | J39: 87 | K39: 77 | L39: 0.8850574713 | M39: 0.8850574713 | N39: 88.50574713
A40: POL | B40: Companies 11-49 | C40: E | D40: Consumption of fixed capital | E40: questionnaires | F40: A - Census | G40: every year | H40: 1 | J40: 87 | K40: 77 | L40: 0.8850574713 | M40: 0.8850574713 | N40: 88.50574713
A41: POL | B41: Companies 11-49 | C41: E | D41: Total value of assets | E41: questionnaires | F41: A - Census | G41: every year | H41: 1 | J41: 87 | K41: 77 | L41: 0.8850574713 | M41: 0.8850574713 | N41: 88.50574713
A42: POL | B42: Companies 11-49 | C42: E | D42: Financial income | E42: questionnaires | F42: A - Census | G42: every year | H42: 1 | J42: 87 | K42: 77 | L42: 0.8850574713 | M42: 0.8850574713 | N42: 88.50574713
A43: POL | B43: Companies 11-49 | C43: E | D43: Financial expenditures | E43: questionnaires | F43: A - Census | G43: every year | H43: 1 | J43: 87 | K43: 77 | L43: 0.8850574713 | M43: 0.8850574713 | N43: 88.50574713
A44: POL | B44: Companies 11-49 | C44: E | D44: Net investments | E44: questionnaires | F44: A - Census | G44: every year | H44: 1 | J44: 87 | K44: 77 | L44: 0.8850574713 | M44: 0.8850574713 | N44: 88.50574713
A45: POL | B45: Companies 11-49 | C45: E | D45: Debt | E45: questionnaires | F45: A - Census | G45: every year | H45: 1 | J45: 87 | K45: NA
A46: POL | B46: Companies 11-49 | C46: E | D46: Number of persons employed | E46: questionnaires | F46: A - Census | G46: every year | H46: 1 | J46: 87 | K46: 77 | L46: 0.8850574713 | M46: 0.8850574713 | N46: 88.50574713
A47: POL | B47: Companies 11-49 | C47: E | D47: FTE National | E47: questionnaires | F47: A - Census | G47: every year | H47: 1 | J47: 87 | K47: 77 | L47: 0.8850574713 | M47: 0.8850574713 | N47: 88.50574713
A48: POL | B48: Companies 11-49 | C48: E | D48: Unpaid labour | E48: questionnaires | F48: A - Census | G48: every year | H48: 1 | J48: 87 | K48: NA
A49: POL | B49: Companies 11-49 | C49: E | D49: Number of hours worked by employees and unpaid workers | E49: questionnaires | F49: A - Census | G49: every year | H49: 1 | J49: 87 | K49: 77 | L49: 0.8850574713 | M49: 0.8850574713 | N49: 88.50574713
A50: POL | B50: Companies 11-49 | C50: E | D50: Number of enterprises | E50: General Veterinary Inspectorate | F50: A - Census | G50: every year | H50: 1 | J50: 87 | K50: 77 | L50: 0.8850574713 | M50: 0.8850574713 | N50: 88.50574713 | O50: Inactive units are excluded from frame population, despite the calls/emails lack of responses
A51: POL | B51: Companies 11-49 | C51: E | D51: Weight of raw material per species and origin (optional) | E51: questionnaires | F51: A - Census | G51: every year | H51: 1 | J51: 87 | K51: 77 | L51: 0.8850574713 | M51: 0.8850574713 | N51: 88.50574713
A52: POL | B52: Companies 11-49 | C52: S | D52: Employment by gender | E52: questionnaires | F52: A - Census | G52: every year | H52: 1 | J52: 87 | K52: 77 | L52: 0.8850574713 | M52: 0.8850574713 | N52: 88.50574713
A53: POL | B53: Companies 11-49 | C53: S | D53: Employment by age | E53: questionnaires | F53: A - Census | G53: every year | H53: 1 | J53: 87 | K53: 77 | L53: 0.8850574713 | M53: 0.8850574713 | N53: 88.50574713
A54: POL | B54: Companies 11-49 | C54: S | D54: Employment by education level | E54: questionnaires | F54: B - Probability Sample Survey | G54: every 3 years | H54: 1 | J54: 87 | K54: 0 | L54: 0 | M54: 0 | N54: 0 | O54: not collected for 2018
A55: POL | B55: Companies 11-49 | C55: S | D55: Employment by nationality | E55: questionnaires | F55: B - Probability Sample Survey | G55: every 3 years | H55: 1 | J55: 87 | K55: 0 | L55: 0 | M55: 0 | N55: 0 | O55: not collected for 2018
A56: POL | B56: Companies 11-49 | C56: S | D56: FTE National | E56: questionnaires | F56: A - Census | G56: every year | H56: 1 | J56: 87 | K56: 77 | L56: 0.8850574713 | M56: 0.8850574713 | N56: 88.50574713
A57: POL | B57: Companies 50-250 | C57: E | D57: Turnover | E57: questionnaires | F57: A - Census | G57: every year | H57: 1 | J57: 58 | K57: 57 | L57: 0.9827586207 | M57: 0.9827586207 | N57: 98.27586207
A58: POL | B58: Companies 50-250 | C58: E | D58: Other income | E58: questionnaires | F58: A - Census | G58: every year | H58: 1 | J58: 58 | K58: 57 | L58: 0.9827586207 | M58: 0.9827586207 | N58: 98.27586207
A59: POL | B59: Companies 50-250 | C59: E | D59: Personnel costs | E59: questionnaires | F59: A - Census | G59: every year | H59: 1 | J59: 58 | K59: 57 | L59: 0.9827586207 | M59: 0.9827586207 | N59: 98.27586207
A60: POL | B60: Companies 50-250 | C60: E | D60: Value of unpaid labour | E60: questionnaires | F60: A - Census | G60: every year | H60: 1 | J60: 58 | K60: NA
A61: POL | B61: Companies 50-250 | C61: E | D61: Energy costs | E61: questionnaires | F61: A - Census | G61: every year | H61: 1 | J61: 58 | K61: 57 | L61: 0.9827586207 | M61: 0.9827586207 | N61: 98.27586207
A62: POL | B62: Companies 50-250 | C62: E | D62: Purchase of fish and other raw material for production | E62: questionnaires | F62: A - Census | G62: every year | H62: 1 | J62: 58 | K62: 57 | L62: 0.9827586207 | M62: 0.9827586207 | N62: 98.27586207
A63: POL | B63: Companies 50-250 | C63: E | D63: Other operational costs | E63: questionnaires | F63: A - Census | G63: every year | H63: 1 | J63: 58 | K63: 57 | L63: 0.9827586207 | M63: 0.9827586207 | N63: 98.27586207
A64: POL | B64: Companies 50-250 | C64: E | D64: Operating subsidies | E64: questionnaires | F64: A - Census | G64: every year | H64: 1 | J64: 58 | K64: 57 | L64: 0.9827586207 | M64: 0.9827586207 | N64: 98.27586207
A65: POL | B65: Companies 50-250 | C65: E | D65: Subsidies on investments | E65: questionnaires | F65: A - Census | G65: every year | H65: 1 | J65: 58 | K65: 57 | L65: 0.9827586207 | M65: 0.9827586207 | N65: 98.27586207
A66: POL | B66: Companies 50-250 | C66: E | D66: Consumption of fixed capital | E66: questionnaires | F66: A - Census | G66: every year | H66: 1 | J66: 58 | K66: 57 | L66: 0.9827586207 | M66: 0.9827586207 | N66: 98.27586207
A67: POL | B67: Companies 50-250 | C67: E | D67: Total value of assets | E67: questionnaires | F67: A - Census | G67: every year | H67: 1 | J67: 58 | K67: 57 | L67: 0.9827586207 | M67: 0.9827586207 | N67: 98.27586207
A68: POL | B68: Companies 50-250 | C68: E | D68: Financial income | E68: questionnaires | F68: A - Census | G68: every year | H68: 1 | J68: 58 | K68: 57 | L68: 0.9827586207 | M68: 0.9827586207 | N68: 98.27586207
A69: POL | B69: Companies 50-250 | C69: E | D69: Financial expenditures | E69: questionnaires | F69: A - Census | G69: every year | H69: 1 | J69: 58 | K69: 57 | L69: 0.9827586207 | M69: 0.9827586207 | N69: 98.27586207
A70: POL | B70: Companies 50-250 | C70: E | D70: Net investments | E70: questionnaires | F70: A - Census | G70: every year | H70: 1 | J70: 58 | K70: 57 | L70: 0.9827586207 | M70: 0.9827586207 | N70: 98.27586207
A71: POL | B71: Companies 50-250 | C71: E | D71: Debt | E71: questionnaires | F71: A - Census | G71: every year | H71: 1 | J71: 58 | K71: NA
A72: POL | B72: Companies 50-250 | C72: E | D72: Number of persons employed | E72: questionnaires | F72: A - Census | G72: every year | H72: 1 | J72: 58 | K72: 57 | L72: =K72/J72 -> 0.9827586207 | M72: =K72/J72 -> 0.9827586207 | N72: 98.27586207
A73: POL | B73: Companies 50-250 | C73: E | D73: FTE National | E73: questionnaires | F73: A - Census | G73: every year | H73: 1 | J73: 58 | K73: 57 | L73: 0.9827586207 | M73: 0.9827586207 | N73: 98.27586207
A74: POL | B74: Companies 50-250 | C74: E | D74: Unpaid labour | E74: questionnaires | F74: A - Census | G74: every year | H74: 1 | J74: 58 | K74: NA
A75: POL | B75: Companies 50-250 | C75: E | D75: Number of hours worked by employees and unpaid workers | E75: questionnaires | F75: A - Census | G75: every year | H75: 1 | J75: 58 | K75: 57 | L75: 0.9827586207 | M75: 0.9827586207 | N75: 98.27586207
A76: POL | B76: Companies 50-250 | C76: E | D76: Number of enterprises | E76: General Veterinary Inspectorate | F76: A - Census | G76: every year | H76: 1 | J76: 58 | K76: 57 | L76: 0.9827586207 | M76: 0.9827586207 | N76: =K76/(J76*H76/100) -> 98.27586207 | O76: Inactive units are excluded from frame population, despite the calls/emails lack of responses
A77: POL | B77: Companies 50-250 | C77: E | D77: Weight of raw material per species and origin (optional) | E77: questionnaires | F77: A - Census | G77: every year | H77: 1 | J77: 58 | K77: 57 | L77: 0.9827586207 | M77: 0.9827586207 | N77: 98.27586207
A78: POL | B78: Companies 50-250 | C78: S | D78: Employment by gender | E78: questionnaires | F78: A - Census | G78: every year | H78: 1 | J78: 58 | K78: 57 | L78: 0.9827586207 | M78: 0.9827586207 | N78: 98.27586207
A79: POL | B79: Companies 50-250 | C79: S | D79: Employment by age | E79: questionnaires | F79: A - Census | G79: every year | H79: 1 | J79: 58 | K79: 57 | L79: 0.9827586207 | M79: 0.9827586207 | N79: 98.27586207
A80: POL | B80: Companies 50-250 | C80: S | D80: Employment by education level | E80: questionnaires | F80: B - Probability Sample Survey | G80: every 3 years | H80: 1 | J80: 58 | K80: 0 | L80: 0 | M80: 0 | N80: 0 | O80: not collected for 2018
A81: POL | B81: Companies 50-250 | C81: S | D81: Employment by nationality | E81: questionnaires | F81: B - Probability Sample Survey | G81: every 3 years | H81: 1 | J81: 58 | K81: 0 | L81: 0 | M81: 0 | N81: 0 | O81: not collected for 2018
A82: POL | B82: Companies 50-250 | C82: S | D82: FTE National | E82: questionnaires | F82: A - Census | G82: every year | H82: 1 | J82: 58 | K82: 57 | L82: 0.9827586207 | M82: 0.9827586207 | N82: 98.27586207
A83: POL | B83: Companies > 250 | C83: E | D83: Turnover | E83: questionnaires | F83: A - Census | G83: every year | H83: 1 | J83: 18 | K83: 18 | L83: 1 | M83: =K83/J83 -> 1 | N83: 100
A84: POL | B84: Companies > 250 | C84: E | D84: Other income | E84: questionnaires | F84: A - Census | G84: every year | H84: 1 | J84: 18 | K84: 18 | L84: 1 | M84: =K84/J84 -> 1 | N84: 100
A85: POL | B85: Companies > 250 | C85: E | D85: Personnel costs | E85: questionnaires | F85: A - Census | G85: every year | H85: 1 | J85: 18 | K85: 18 | L85: 1 | M85: 1 | N85: 100
A86: POL | B86: Companies > 250 | C86: E | D86: Value of unpaid labour | E86: questionnaires | F86: A - Census | G86: every year | H86: 1 | J86: 18 | K86: NA
A87: POL | B87: Companies > 250 | C87: E | D87: Energy costs | E87: questionnaires | F87: A - Census | G87: every year | H87: 1 | J87: 18 | K87: 18 | L87: 1 | M87: 1 | N87: 100
A88: POL | B88: Companies > 250 | C88: E | D88: Purchase of fish and other raw material for production | E88: questionnaires | F88: A - Census | G88: every year | H88: 1 | J88: 18 | K88: 18 | L88: 1 | M88: 1 | N88: 100
A89: POL | B89: Companies > 250 | C89: E | D89: Other operational costs | E89: questionnaires | F89: A - Census | G89: every year | H89: 1 | J89: 18 | K89: 18 | L89: 1 | M89: 1 | N89: 100
A90: POL | B90: Companies > 250 | C90: E | D90: Operating subsidies | E90: questionnaires | F90: A - Census | G90: every year | H90: 1 | J90: 18 | K90: 18 | L90: 1 | M90: 1 | N90: 100
A91: POL | B91: Companies > 250 | C91: E | D91: Subsidies on investments | E91: questionnaires | F91: A - Census | G91: every year | H91: 1 | J91: 18 | K91: 18 | L91: 1 | M91: 1 | N91: 100
A92: POL | B92: Companies > 250 | C92: E | D92: Consumption of fixed capital | E92: questionnaires | F92: A - Census | G92: every year | H92: 1 | J92: 18 | K92: 18 | L92: 1 | M92: 1 | N92: 100
A93: POL | B93: Companies > 250 | C93: E | D93: Total value of assets | E93: questionnaires | F93: A - Census | G93: every year | H93: 1 | J93: 18 | K93: 18 | L93: 1 | M93: 1 | N93: 100
A94: POL | B94: Companies > 250 | C94: E | D94: Financial income | E94: questionnaires | F94: A - Census | G94: every year | H94: 1 | J94: 18 | K94: 18 | L94: 1 | M94: 1 | N94: 100
A95: POL | B95: Companies > 250 | C95: E | D95: Financial expenditures | E95: questionnaires | F95: A - Census | G95: every year | H95: 1 | J95: 18 | K95: 18 | L95: 1 | M95: 1 | N95: 100
A96: POL | B96: Companies > 250 | C96: E | D96: Net investments | E96: questionnaires | F96: A - Census | G96: every year | H96: 1 | J96: 18 | K96: 18 | L96: 1 | M96: 1 | N96: 100
A97: POL | B97: Companies > 250 | C97: E | D97: Debt | E97: questionnaires | F97: A - Census | G97: every year | H97: 1 | J97: 18 | K97: NA
A98: POL | B98: Companies > 250 | C98: E | D98: Number of persons employed | E98: questionnaires | F98: A - Census | G98: every year | H98: 1 | J98: 18 | K98: 18 | L98: 1 | M98: 1 | N98: 100
A99: POL | B99: Companies > 250 | C99: E | D99: FTE National | E99: questionnaires | F99: A - Census | G99: every year | H99: 1 | J99: 18 | K99: 18 | L99: 1 | M99: 1 | N99: 100
A100: POL | B100: Companies > 250 | C100: E | D100: Unpaid labour | E100: questionnaires | F100: A - Census | G100: every year | H100: 1 | J100: 18 | K100: NA
A101: POL | B101: Companies > 250 | C101: E | D101: Number of hours worked by employees and unpaid workers | E101: questionnaires | F101: A - Census | G101: every year | H101: 1 | J101: 18 | K101: 18 | L101: 1 | M101: 1 | N101: 100
A102: POL | B102: Companies > 250 | C102: E | D102: Number of enterprises | E102: General Veterinary Inspectorate | F102: A - Census | G102: every year | H102: 1 | J102: 18 | K102: 18 | L102: 1 | M102: 1 | N102: 100 | O102: Inactive units are excluded from frame population, despite the calls/emails lack of responses
A103: POL | B103: Companies > 250 | C103: E | D103: Weight of raw material per species and origin (optional) | E103: questionnaires | F103: A - Census | G103: every year | H103: 1 | J103: 18 | K103: 18 | L103: 1 | M103: 1 | N103: 100
A104: POL | B104: Companies > 250 | C104: S | D104: Employment by gender | E104: questionnaires | F104: A - Census | G104: every year | H104: 1 | J104: 18 | K104: 18 | L104: 1 | M104: 1 | N104: 100
A105: POL | B105: Companies > 250 | C105: S | D105: Employment by age | E105: questionnaires | F105: A - Census | G105: every year | H105: 1 | J105: 18 | K105: 18 | L105: 1 | M105: 1 | N105: 100
A106: POL | B106: Companies > 250 | C106: S | D106: Employment by education level | E106: questionnaires | F106: B - Probability Sample Survey | G106: every 3 years | H106: 1 | J106: 18 | K106: 0 | L106: =K106/J106 -> 0 | M106: =K106/J106 -> 0 | N106: 0 | O106: not collected for 2018
A107: POL | B107: Companies > 250 | C107: S | D107: Employment by nationality | E107: questionnaires | F107: B - Probability Sample Survey | G107: every 3 years | H107: 1 | J107: 18 | K107: 0 | L107: =K107/J107 -> 0 | M107: 0 | N107: 0 | O107: not collected for 2018
A108: POL | B108: Companies > 250 | C108: S | D108: FTE National | E108: questionnaires | F108: A - Census | G108: every year | H108: 1 | J108: 18 | K108: 18 | L108: =K108/J108 -> 1 | M108: 1 | N108: 100

Sheet Table4A Sampling plan descripti
A1: Table 4A: Sampling plan description for biological data
X2: WP years | Y2: 2017-2019
X3: AR year | Y3: 2019
P4: Conformity | S4: Informative Data
A5: MS | B5: MS participating in sampling | C5: Region | D5: RFMO/RFO/IO | E5: Sub-area / Fishing ground | F5: Scheme | G5: Stratum ID code | H5: PSU type | I5: Catch fractions covered | J5: Species/ Stocks covered for estimation of volume and length of catch fractions | K5: Seasonality (Temporal strata) | L5: Reference years | M5: Average Number of PSU during the reference years | N5: Planned number of PSUs | O5: Comments | P5: Total number of PSU in the sampling year | Q5: Achieved number of PSU in the sampling year | R5: % of achievement (100*Q/N) | S5: Number of unique vessels with activity in the stratum | T5: Number of unique vessels sampled | U5: Number of fishing trips in the stratum | V5: Number of fishing trips sampled | W5: Number of species with length measurements | X5: Total number of length measurements | Y5: AR Comments
A6: POL | B6: POL | C6: Baltic Sea | D6: ICES | E6: 22-24 | F6: Demersal at sea and on shore | G6: POL DCT1 | H6: vessel trip | I6: landings + discards | J6: all species and stocks | K6: quarterly | L6: 2013-2015 | M6: 93 | N6: 4 | O6: coverage 85% | P6: 336 | Q6: 1 | R6: 25 | S6: 25 | T6: 1 | U6: 256 | V6: 1 | W6: 3 | X6: 168 | Y6: High refusal rate. See Text Box 4A for comments
A7: POL | B7: POL | C7: Baltic Sea | D7: ICES | E7: 22-24 | F7: Demersal at sea and on shore | G7: POL GNSC1 | H7: vessel trip | I7: landings + discards | J7: all species and stocks | K7: quarterly | L7: 2013-2015 | M7: 480 | N7: 6 | P7: 377 | Q7: 0 | R7: 0 | S7: 23 | T7: 0 | U7: 208 | V7: 0 | W7: 0 | X7: 0 | Y7: High refusal rate. See Text Box 4A for comments
A8: POL | B8: POL | C8: Baltic Sea | D8: ICES | E8: 25-32 | F8: Demersal at sea and on shore | G8: POL DCT2 | H8: vessel trip | I8: landings + discards | J8: all species and stocks | K8: quarterly | L8: 2013-2015 | M8: 3100 | N8: 21 | O8: coverage 71% | P8: 1021 | Q8: 8 | R8: 38.0952381 | S8: 72 | T8: 6 | U8: 957 | V8: 8 | W8: 3 | X8: 3792 | Y8: High refusal rate. See Text Box 4A for comments
A9: POL | B9: POL | C9: Baltic Sea | D9: ICES | E9: 25-32 | F9: Demersal at sea and on shore | G9: POL GNSC2 | H9: vessel trip | I9: landings + discards | J9: all species and stocks | K9: quarterly | L9: 2013-2015 | M9: 8891 | N9: 14 | P9: 3267 | Q9: 1 | R9: 7.142857143 | S9: 142 | T9: 1 | U9: 2236 | V9: 1 | W9: 5 | X9: 406 | Y9: High refusal rate. See Text Box 4A for comments
A10: POL | B10: POL | C10: Baltic Sea | D10: ICES | E10: 22-32 | F10: Demersal at sea and on shore | G10: POL DTF | H10: vessel trip | I10: landings + discards | J10: all species and stocks | K10: quarterly | L10: 2013-2015 | M10: 1374 | N10: 26 | O10: coverage 82% | P10: 1323 | Q10: 10 | R10: 38.46153846 | S10: 57 | T10: 8 | U10: 1067 | V10: 10 | W10: 9 | X10: 3444 | Y10: High refusal rate. See Text Box 4A for comments
A11: POL | B11: POL | C11: Baltic Sea | D11: ICES | E11: 22-32 | F11: Demersal at sea and on shore | G11: POL GNSF | H11: vessel trip | I11: landings + discards | J11: all species and stocks | K11: quarterly | L11: 2013-2015 | M11: 7997 | N11: 9 | P11: 14561 | Q11: 8 | R11: 88.88888889 | S11: 240 | T11: 6 | U11: 10066 | V11: 8 | W11: 8 | X11: 1584
A12: POL | B12: POL | C12: Baltic Sea | D12: ICES | E12: 22-32 | F12: Pelagic at sea and on shore | G12: POL PST | H12: vessel trip | I12: landings + discards | J12: all species and stocks | K12: quarterly | L12: 2013-2015 | M12: 2546 | N12: 34 | O12: coverage 97% | P12: 3048 | Q12: 24 | R12: 70.58823529 | S12: 82 | T12: 12 | U12: 2795 | V12: 24 | W12: 11 | X12: 10001 | Y12: High refusal rate. See Text Box 4A for comments
A13: POL | B13: POL | C13: Baltic Sea | D13: ICES | E13: 22-24 | F13: Pelagic at sea and on shore | G13: POL PHT1 | H13: vessel trip | I13: landings + discards | J13: all species and stocks | K13: quarterly | L13: 2013-2015 | M13: 60 | N13: 9 | O13: coverage 81% | P13: 47 | Q13: 3 | R13: 33.33333333 | S13: 11 | T13: 3 | U13: 34 | V13: 3 | W13: 3 | X13: 532 | Y13: High refusal rate. See Text Box 4A for comments
A14: POL | B14: POL | C14: Baltic Sea | D14: ICES | E14: 22-24 | F14: Pelagic at sea and on shore | G14: POL BH1 | H14: vessel trip | I14: landings + discards | J14: all species and stocks | K14: quarterly | L14: 2013-2015 | M14: 189 | N14: 3 | P14: 140 | Q14: 8 | R14: 266.6666667 | S14: 15 | T14: 2 | U14: 128 | V14: 8 | W14: 1 | X14: 1596
A15: POL | B15: POL | C15: Baltic Sea | D15: ICES | E15: 25-32 | F15: Pelagic at sea and on shore | G15: POL PHT2 | H15: vessel trip | I15: landings + discards | J15: all species and stocks | K15: quarterly | L15: 2013-2015 | M15: 1166 | N15: 25 | O15: coverage 61% | P15: 1589 | Q15: 10 | R15: 40 | S15: 80 | T15: 7 | U15: 1443 | V15: 10 | W15: 9 | X15: 3616 | Y15: High refusal rate. See Text Box 4A for comments
A16: POL | B16: POL | C16: Baltic Sea | D16: ICES | E16: 25-32 | F16: Pelagic at sea and on shore | G16: POL BH2 | H16: vessel trip | I16: landings + discards | J16: all species and stocks | K16: quarterly | L16: 2013-2015 | M16: 630 | N16: 5 | P16: 1776 | Q16: 7 | R16: 140 | S16: 36 | T16: 6 | U16: 357 | V16: 7 | W16: 1 | X16: 1260
A17: POL | B17: POL | C17: Baltic Sea | D17: ICES | E17: 22-24 | F17: Freshwater and eel at sea and on shore | G17: POL BFWS1 | H17: vessel trip | I17: landings + discards | J17: all species and stocks | K17: annual | L17: 2013-2015 | M17: 3800 | N17: 14 | O17: coverage 70% | P17: 4033 | Q17: 13 | R17: 92.85714286 | S17: 86 | T17: 5 | U17: 3464 | V17: 13 | W17: 12 | X17: 2036 | Y17: High refusal rate. See Text Box 4A for comments
A18: POL | B18: POL | C18: Baltic Sea | D18: ICES | E18: 25-32 | F18: Freshwater and eel at sea and on shore | G18: POL BFWS2 | H18: vessel trip | I18: landings + discards | J18: all species and stocks | K18: annual | L18: 2013-2015 | M18: 2836 | N18: 14 | O18: coverage 77% | P18: 7203 | Q18: 16 | R18: 114.2857143 | S18: 175 | T18: 13 | U18: 6087 | V18: 16 | W18: 24 | X18: 2848
A19: POL | B19: POL | C19: Baltic Sea | D19: ICES | E19: 22-32 | F19: Salmonids at sea and on shore | G19: POL GNSSAL | H19: vessel trip | I19: landings + discards | J19: all species and stocks | K19: annual | L19: 2013-2015 | M19: 1777 | N19: 14 | O19: coverage 67% | P19: 1905 | Q19: 14 | R19: 100 | S19: 79 | T19: 7 | U19: 1141 | V19: 14 | W19: 9 | X19: 79
A20: POL | B20: POL | C20: Baltic Sea | D20: ICES | E20: 22-32 | F20: Salmonids at sea and on shore | G20: POL LLDSAL | H20: vessel trip | I20: landings + discards | J20: all species and stocks | K20: annual | L20: 2013-2015 | M20: 314 | N20: 10 | P20: 325 | Q20: 0 | R20: 0 | S20: 23 | T20: 0 | U20: 116 | V20: 0 | W20: 0 | X20: 0 | Y20: High refusal rate. See Text Box 4A for comments
A21: POL | B21: POL | C21: North Sea and Eastern Arctic | D21: ICES | E21: I, II | F21: at sea | G21: LDF1 | H21: vessel trip | I21: landings + discards | J21: all species and stocks | K21: annual | L21: 2013-2015 | M21: 5 | N21: 1 | O21: coverage 100% | P21: 7 | Q21: 1 | R21: 100 | S21: 1 | T21: 1 | U21: 7 | V21: 1 | W21: 19 | X21: 8804
A22: POL | B22: DEU - LTU -LVA - NLD - POL | C22: other regions | D22: CECAF | E22: 34.1.3; 34.3.1 | F22: at sea | G22: LDF2 | H22: vessel trip | I22: landings + discards | J22: all species and stocks | K22: annual | L22: 2013-2015 | M22: 9 | N22: NA | O22: Multilateral agreement on joint sampling programme - | P22: 0 | Q22: 2 | R22: NA | S22: 0 | T22: 1 | U22: 0 | V22: 2 | W22: 23 | X22: 8082 | Y22: Joint sampling program based on Multilateral Agreement (see Table 7C). (http://dcf.mir.gdynia.pl/?page_id=365) POL is coordinating joint sampling programme from 2018. Sampling plan set in line with "Biological Data Collection of pelagic fisheries in CECAF waters - Manual for scientific observers on board EU pelagic trawlers in CECAF area", ver. 8-03-2018. There were no fishing activity by Polish vessels in CECAF area in 2019, hence PSU in the sampling year related to Polish vessels = 0. Biological sampling of the fishery conducted by the EU vessels is executed by Poland on behalf of UE MS concerned (parties to the agreements). As an executor of biological sampling, Poland reports this activity in its AR on behalf of MS concerned, hence achieved number of PSU in the sampling year >0. MS concerned, parties to the multilateral agreements, in their ARs make only the reference to Polish AR regarding sampling activity in the CECAF area.
A23: POL | B23: DEU - LTU - NLD - POL | C23: other regions | D23: SPRFMO | E23: SPRFMO Convention Area | F23: at sea | G23: LDF3 | H23: vessel trip | I23: landings + discards | J23: all species and stocks | K23: annual | L23: 2013-2015 | M23: 0 | N23: NA | O23: Multilateral agreement on joint sampling programme | P23: 4 | Q23: 2 | R23: NA | S23: 1 | T23: 1 | U23: 4 | V23: 2 | W23: 12 | X23: 5435 | Y23: Joint sampling program based on Multilateral Agreement (see Table 7C). (http://dcf.mir.gdynia.pl/?page_id=365). POL is coordinating joint sampling programme from 2017. Sampling programme set in line with the SPRFMO Data Standards (CMM 02-2018) and the requirements of the SPRFMO Conservation and Managemnt Measure for Trachurus murphyi (CMM 01-2018). Biological sampling of the fishery conducted by the EU vessels is executed and reported by Poland on behalf of UE MS concerned (parties to the agreements)
A24: POL | B24: POL | C24: Baltic Sea | D24: ICES | E24: 22-32 | F24: on shore | G24: POLGAR | H24: vessel trip | I24: landings | J24: selected species/stocks | K24: NA | L24: 2013-2015 | M24: 422 | N24: NA | O24: NA | P24: 943 | Q24: 2 | R24: NA | S24: 91 | T24: 1 | U24: 943 | V24: 2 | W24: 1 | X24: 121 | Y24: New row - GAR fishery was not selected as a sampling frame in the WP. Fishery season is very short. Two samples were collected for biological variables due to importance of this fishery to local community in Puck Bay (part of Gulf of Gdańsk)
A25: POL | B25: POL-DNK | C25: Baltic Sea | D25: ICES | E25: 22-32 | F25: on shore | G25: POLDNK SPR | H25: vessel trip | I25: landings | J25: sprat | K25: annual | L25: 2013-2015 | M25: 332 | N25: NA | O25: NA | P25: 473 | Q25: 25 | R25: NA | S25: 42 | T25: 17 | U25: 473 | V25: 25 | W25: 1 | X25: 3552 | Y25: New row. There is no corresponding sampling frame in the WP. Samples were collected by DNK from POL vessels on landings in DNK ports. Samples were collected in 2019 and delivered to POL in January 2020.
A26: POL | B26: POL | C26: North Sea and Eastern Arctic | D26: ICES | E26: IV | F26: NA | G26: POLNSCRA | H26: vessel trip | I26: NA | J26: marine crabs nei (CRA) | K26: NA | L26: 2013-2015 | M26: 0 | N26: NA | O26: NA | P26: 51 | Q26: 0 | R26: NA | S26: 1 | T26: 0 | U26: 51 | V26: 0 | W26: 0 | X26: 0 | Y26: New row - vessel started fishing in 2018 thus not included in WP and not sampled

Sheet Table4B Sampling frame descrip
A1: Table 4B: Sampling frame description for biological data
E2: WP years | F2: 2017-2019
E3: AR year | F3: 2019
A4: MS | B4: Stratum ID number | C4: Stratum | D4: Sampling frame description | E4: Method of PSU selection | F4: Comments
A5: POL | B5: POL DCT1 | C5: Baltic demersal trawlers targeting western cod | D5: Vessel list of 48 DTS landing cod in 3 ranked ports | E5: random draw
A6: POL | B6: POL GNSC1 | C6: Balctic gillnetters targeting western cod | D6: Vessel list of 57 GNTS landing cod in 5 ranked ports | E6: random draw
A7: POL | B7: POL DCT1 | C7: Baltic demersal trawlers targeting eastern cod | D7: Vessel list of 154 DTS landing cod in 6 ranked ports | E7: random draw | F7: Correct Stratum ID: POL DCT2
A8: POL | B8: POL GNSC1 | C8: Balctic gillnetters targeting eastern cod | D8: Vessel list of 251 GNTS landing cod in 12 ranked ports | E8: random draw | F8: Correct Stratum ID: POL GNSC2
A9: POL | B9: POL DTF | C9: Baltic demersal trawlers targeting flatfish | D9: Vessel list of 101 DTS landing flatfish in 5 ranked ports | E9: random draw
A10: POL | B10: POL GNSF | C10: Balctic gillnetters targeting flatfish | D10: Vessel list of 361 GNTS landing cod in 23 ranked ports | E10: random draw
A11: POL | B11: POL PST | C11: Baltic sprat trawlers | D11: Vessel list of 121 PTS landing sprat in 6 ranked ports | E11: random draw
A12: POL | B12: POL PHT1 | C12: Batlic herring trawlers of SD 22-24 | D12: Vessel list of 15 PTS landing herring in 1 ranked port | E12: random draw
A13: POL | B13: POL BH1 | C13: Batlic onshore boats targeting herring of SD 22-24 | D13: Vessel list of 18 boats landing herring in 3 ranked port | E13: random draw
A14: POL | B14: POL PHT2 | C14: Batlic herring trawlers of SD 25-32 | D14: Vessel list of 100 PTS landing herring in 4 ranked port | E14: random draw
A15: POL | B15: POL BH2 | C15: Batlic onshore boats targeting herring of SD 25-32 | D15: Vessel list of 90 boats landing herring in 14 ranked port | E15: random draw
A16: POL | B16: POL BFWS1 | C16: Baltic boats targeting freshwater species of SD 22-24 | D16: Vessel list of 94 boats landing freshwater species and eel in 8 ranked port | E16: random draw
A17: POL | B17: POL BFWS2 | C17: Baltic boats targeting freshwater species of SD 25-32 | D17: Vessel list of 239 boats landing freshwater species and eel in 20 ranked port | E17: random draw
A18: POL | B18: POL GNSSAL | C18: Baltic onshore boats targeting salmonids | D18: Vessel list of 165 boats landing salmonids species in 10 ranked port | E18: random draw
A19: POL | B19: POL LLDSAL | C19: Baltic offshore longliners targeting salmon | D19: Vessel list of 51 longliners landing salmon in 4 ranked port | E19: random draw
A20: POL | B20: LDF1 | C20: Freezer trawler targetting cod in NS&EA | D20: 1 trawler targeting cod | E20: NA | F20: NS&EA - one vessel only - no selection needed
A21: POL | B21: LDF2 | C21: Pelagic trawlers fishing in CECAF | D21: Pelagic trawlers fishing in CECAF | E21: NA | F21: Multilateral agreement on joint sampling programme (see Table 7C)
A22: POL | B22: LDF3 | C22: Pelagic trawlers fishing in SPRFMO | D22: Pelagic trawlers fishing in SPRFMO | E22: NA | F22: Multilateral agreement on joint sampling programme (see Table 7C)
C24: DTS - demersal trawlers
C25: PTS - pelagic trawlers
C26: GNTS - gillnetters

Sheet Table4C Data on the fisheries
A1: Table 4C: Data on the fisheries by member state
U2: WP years | V2: 2017-2019
U3: AR year | V3: 2019
A4: MS | B4: Region | C4: RFMO/RFO/IO | D4: Sub-area / Fishing ground | E4: Reference years | F4: Fleet segment / Metier | G4: Targeted species / species assemblage | H4: Average number of vessels | I4: Average number of fishing trips | J4: Average number of fishing days | K4: Average landings (tons) | L4: Average landings (tons) in national ports | M4: Average landings (tons) in foreign ports | N4: Comments | O4: Number of vessels | P4: Number of fishing trips | Q4: Number of fishing days | R4: Is the fleet segment/ metier covered by any stratum (Y/N) | S4: Landings (tons) | T4: Landings (tons) in national ports | U4: Landings (tons) in foreign ports | V4: AR Comments
A5: POL | B5: Baltic Sea | C5: ICES | D5: SD 22-24 | E5: 2013-2015 | F5: demersal trawlers | G5: cod | H5: 34 | I5: 101 | J5: 235 | K5: =L5+M5 -> 323.0701 | L5: 320.2714333 | M5: 2.798666667 | N5: Table 4C was filled in by metier and the sum of vessels of all metiers is higher than the total number of registered Polish fishing vessels. This is because many vessels use more than one gear type / metier. Moreover, the sampling scheme is stock based and as the fishing vessels can target more than one stock within one metier same vessels are included in many groups. | O5: 44 | P5: 336 | Q5: 620 | R5: Y | S5: =T5+U5 -> 888.077 | T5: 885.22 | U5: 2.857
A6: POL | B6: Baltic Sea | C6: ICES | D6: SD 25-32 | E6: 2013-2015 | F6: demersal trawlers | G6: cod | H6: 148 | I6: 3310 | J6: 5646 | K6: =L6+M6 -> 8033.24334 | L6: 8030.65434 | M6: 2.589 | O6: 76 | P6: 1021 | Q6: 1691 | R6: Y | S6: =T6+U6 -> 2267.919 | T6: 2267.919 | U6: 0
A7: POL | B7: Baltic Sea | C7: ICES | D7: SD 22-24 | E7: 2013-2015 | F7: gillnetters | G7: cod | H7: 51 | I7: 574 | J7: 756 | K7: 361.6568333 | L7: 360.8868333 | M7: 0.77 | O7: 47 | P7: 377 | Q7: 448 | R7: Y | S7: 212.1502 | T7: 212.1502 | U7: 0
A8: POL | B8: Baltic Sea | C8: ICES | D8: SD 25-32 | E8: 2013-2015 | F8: gillnetters | G8: cod | H8: 349 | I8: 12972 | J8: 14050 | K8: 3074.156733 | L8: 3074.156733 | M8: 0 | O8: 216 | P8: 3267 | Q8: 3548 | R8: Y | S8: 648.8509 | T8: 648.8509 | U8: 0
A9: POL | B9: Baltic Sea | C9: ICES | D9: SD 22-32 | E9: 2013-2015 | F9: demersal trawlers | G9: flounder, plaice, turbot | H9: 125 | I9: 1586 | J9: 3253 | K9: 8934.119147 | L9: 8929.13648 | M9: 4.982666667 | O9: 86 | P9: 1323 | Q9: 2453 | R9: Y | S9: 7825.004 | T9: 7792.247 | U9: 32.757
A10: POL | B10: Baltic Sea | C10: ICES | D10: SD 22-32 | E10: 2013-2015 | F10: gillnetters | G10: flounder, plaice, turbot | H10: 370 | I10: 10115 | J10: 10318 | K10: 2841.38539 | L10: 2841.348057 | M10: 0.03733333333 | O10: 366 | P10: 14561 | Q10: 14714 | R10: Y | S10: 3952.442 | T10: 3951.842 | U10: 0.6
A11: POL | B11: Baltic Sea | C11: ICES | D11: SD 22-32 | E11: 2013-2015 | F11: pelagic trawlers | G11: sprat | H11: 99 | I11: 2617 | J11: 3555 | K11: 63152.51542 | L11: 42908.73008 | M11: 20243.78533 | O11: 92 | P11: 3048 | Q11: 3784 | R11: Y | S11: 93873.44 | T11: 62252.21 | U11: 31621.23
A12: POL | B12: Baltic Sea | C12: ICES | D12: SD 22-24 | E12: 2013-2015 | F12: pelagic trawlers | G12: herring | H12: 15 | I12: 66 | J12: 133 | K12: 1922.009 | L12: 1808.917333 | M12: 113.0916667 | O12: 17 | P12: 47 | Q12: 76 | R12: Y | S12: 709.092 | T12: 709.092 | U12: 0
A13: POL | B13: Baltic Sea | C13: ICES | D13: SD 25-32 | E13: 2013-2015 | F13: pelagic trawlers | G13: herring | H13: 82 | I13: 1222 | J13: 1950 | K13: 21161.96942 | L13: 19309.84275 | M13: 1852.126667 | O13: 98 | P13: 1589 | Q13: 2203 | R13: Y | S13: 25876.107 | T13: 23500.042 | U13: 2376.065
A14: POL | B14: Baltic Sea | C14: ICES | D14: SD 22-24 | E14: 2013-2015 | F14: gillnetters | G14: herring | H14: 19 | I14: 193 | J14: 139 | K14: 355.153 | L14: 355.153 | M14: 0 | O14: 21 | P14: 140 | Q14: 140 | R14: Y | S14: 146.79 | T14: 146.79 | U14: 0
A15: POL | B15: Baltic Sea | C15: ICES | D15: SD 25-32 | E15: 2013-2015 | F15: gillnetters | G15: herring | H15: 168 | I15: 2015 | J15: 2016 | K15: 1128.79105 | L15: 1128.74105 | M15: 0.05 | O15: 194 | P15: 1776 | Q15: 1776 | R15: Y | S15: 925.6942 | T15: 925.6942 | U15: 0
A16: POL | B16: Baltic Sea | C16: ICES | D16: SD 22-24 | E16: 2013-2015 | F16: passive gears | G16: perch, pike-perch | H16: 130 | I16: 4323 | J16: 4323 | K16: 840.94828 | L16: 840.94828 | M16: 0 | O16: 122 | P16: 4033 | Q16: 4033 | R16: Y | S16: 851.7336 | T16: 851.7336 | U16: 0
A17: POL | B17: Baltic Sea | C17: ICES | D17: SD 25-32 | E17: 2013-2015 | F17: passive gears | G17: perch, pike-perch | H17: 225 | I17: 3210 | J17: 3210 | K17: 216.5909833 | L17: 216.5909833 | M17: 0 | O17: 240 | P17: 7203 | Q17: 7203 | R17: Y | S17: 503.2242 | T17: 503.2242 | U17: 0
A18: POL | B18: Baltic Sea | C18: ICES | D18: SD 22-32 | E18: 2013-2015 | F18: gillnetters | G18: salmon, sea trout | H18: 176 | I18: 2148 | J18: 2160 | K18: 78.30676667 | L18: 78.30676667 | M18: 0 | O18: 174 | P18: 1905 | Q18: 1915 | R18: Y | S18: 89.6395 | T18: 89.6395 | U18: 0
A19: POL | B19: Baltic Sea | C19: ICES | D19: SD 22-32 | E19: 2013-2015 | F19: longliners | G19: salmon, sea trout | H19: 45 | I19: 335 | J19: 541 | K19: 44.05065 | L19: 44.05065 | M19: 0 | O19: 66 | P19: 325 | Q19: 407 | R19: Y | S19: 26.28605 | T19: 26.28605 | U19: 0
A20: POL | B20: North Sea and Eastern Arctic | C20: ICES | D20: I, II | E20: 2013-2015 | F20: demersal trawlers | G20: cod | H20: 1 | I20: 5 | J20: 176 | K20: 5700.064 | L20: 0 | M20: 5700.064 | O20: 1 | P20: 3 | Q20: 92 | R20: Y | S20: 3036.45 | T20: 0 | U20: 3036.45
A21: POL | B21: other regions | C21: CECAF | D21: 34.1.3; 34.3.1 | E21: 2013-2015 | F21: pelagic trawlers | G21: pelagic species | H21: 2 | I21: 9 | J21: 324 | K21: 26189 | L21: 0 | M21: 26189 | O21: 0 | P21: 0 | Q21: 0 | R21: Y | S21: 0 | T21: 0 | U21: 0
A22: POL | B22: other regions | C22: SPRFMO | D22: SPRFMO Convention Area | E22: 2013-2015 | F22: pelagic trawlers | G22: pelagic species | H22: 0 | I22: 0 | J22: 0 | K22: 0 | L22: 0 | M22: 0 | O22: 1 | P22: 4 | Q22: 87 | R22: Y | S22: 12298.9 | T22: 0 | U22: 12298.9
A23: POL | B23: Baltic Sea | C23: ICES | D23: SD 25-26 | E23: 2013-2015 | F23: Drift and/or fixed netters | G23: garfish | H23: 49 | I23: 422 | J23: 422 | K23: 29.674333 | L23: 29.674333 | M23: 0 | O23: 91 | P23: 943 | Q23: 943 | R23: N | S23: 66.4 | T23: 66.4 | U23: 0 | V23: New row - GAR fishery was not selected as a sampling frame in the WP. Fishery season is very short. Two samples were collected for biological variables due to importance of this fishery to local community in Puck Bay (part of Gulf of Gdańsk)
A24: POL | B24: North Sea and Eastern Arctic | C24: ICES | D24: IV | E24: 2013-2015 | F24: Vessels using Pots and/or traps | G24: marine crabs nei | H24: 0 | I24: 0 | J24: 0 | K24: 0 | L24: 0 | M24: 0 | O24: 1 | P24: 51 | Q24: 73 | R24: N | S24: 423.829 | T24: 0 | U24: 423.829 | V24: New row - vessel started fishing in 2018 thus not included in WP

Sheet Table4D Landing locations
A1: Table 4D: Landing locations
J2: WP years | K2: 2017-2019
J3: AR year | K3: 2019
A4: MS | B4: Region | C4: Sub-area / Fishing ground | D4: Reference years | E4: Landing locations(s) | F4: Average number of locations | G4: Average number of registered landings | H4: Average landed tonnage | I4: Average landed tonnage of national fleet | J4: Average landed tonnage of foreign fleet | K4: Comments
A5: POL | B5: Baltic Sea (ICES areas III b-d) | C5: 27.3.d | D5: 2013-2015 | E5: Major ports | F5: 9 | G5: 25371.66667 | H5: =I5+J5 -> 99943.10433 | I5: 96262.39109 | J5: 3680.713247
A6: POL | B6: Baltic Sea (ICES areas III b-d) | C6: 27.3.d | D6: 2013-2015 | E6: Other ports SD 24 | F6: 6 | G6: 2886.666667 | H6: =I6+J6 -> 913.1732667 | I6: 913.1732667 | J6: 0
A7: POL | B7: Baltic Sea (ICES areas III b-d) | C7: 27.3.d | D7: 2013-2015 | E7: Other ports SD 25 | F7: 11 | G7: 5208.666667 | H7: 1962.779953 | I7: 1962.779953 | J7: 0
A8: POL | B8: Baltic Sea (ICES areas III b-d) | C8: 27.3.d | D8: 2013-2015 | E8: Other ports SD 26 | F8: 27 | G8: 13542.66667 | H8: 1624.11611 | I8: 1624.11611 | J8: 0
A9: POL | B9: Baltic Sea (ICES areas III b-d) | C9: 27.3.d | D9: 2013-2015 | E9: Szczecin Lagoon ports | F9: 6 | G9: 6112.333333 | H9: 1561.285633 | I9: 1561.285633 | J9: 0
A10: POL | B10: Baltic Sea (ICES areas III b-d) | C10: 27.3.d | D10: 2013-2015 | E10: Vistula Lagoon ports | F10: 8 | G10: 6508.333333 | H10: 2746.3169 | I10: 2746.3169 | J10: 0

Sheet Table5A Quality assurance frame
A1: Table 5A: Quality assurance framework for biological data
S2: WP years | T2: 2017-2019
S3: AR year | T3: 2019
H4: Sampling design | J4: Sampling implementation | K4: Data capture | M4: Data Storage | O4: Data processing
A5: MS | B5: MS participating in sampling | C5: Sampling year/ period | D5: Region | E5: RFMO/RFO/IO | F5: Name of sampling scheme | G5: Sampling frame | H5: Is the sampling design documented? | I5: Where can documentation on sampling design be found? | J5: Are non-responses and refusals recorded? | K5: Are quality checks to validate detailed data documented? | L5: Where can documentation on quality checks for data capture be found? | M5: In which national database are data stored? | N5: In which international database(s) are data stored? | O5: Are processes to evaluate data accuracy (bias and precision) documented? | P5: Where can documentation on processes to evaluate accuracy be found? | Q5: Are the editing and imputation methods documented? | R5: Where can documentation on editing and imputation be found? | S5: Comments | T5: AR Comments
A6: POL | B6: POL | C6: 2019 | D6: Baltic Sea | E6: ICES | F6: Demersal at sea and on shore | G6: Vessel list of 48 DTS landing cod in 3 ranked ports | H6: Y | I6: DCF - Sampling Design 2017-2019 - http://dcf.mir.gdynia.pl/?page_id=367 | J6: Y | K6: Y | L6: DataQualityCheck_Description.doc (http://dcf.mir.gdynia.pl/?page_id=367) | M6: NPZDRpl | N6: RDB-FishFrame, Intercatch, JRC | O6: Y | P6: DataQualityCheck_Description.doc (http://dcf.mir.gdynia.pl/?page_id=367) | Q6: N | R6: NA | S6: Software for data accuracy checks has been launched, and is still under development with the new features. | T6: The model and assumptions of the data accuracy checks software have been specified in 2019. The environment has been set up and the first type of a check has been implemented. The new features are still being developed and the information about possible accuracy checks is currently being collected from the available literature. Imputation is not performed at national level but at Stock Data Coordination level. Data are provided to end user "as-is" (as collected, validated and recorded in national database).
A7: POL | B7: POL | C7: 2019 | D7: Baltic Sea | E7: ICES | F7: Demersal at sea and on shore | G7: Vessel list of 57 GNTS landing cod in 5 ranked ports | H7: Y | I7: DCF - Sampling Design 2017-2019 - http://dcf.mir.gdynia.pl/?page_id=367 | J7: Y | K7: Y | L7: DataQualityCheck_Description.doc (http://dcf.mir.gdynia.pl/?page_id=367) | M7: NPZDRpl | N7: RDB-FishFrame, Intercatch, JRC | O7: Y | P7: DataQualityCheck_Description.doc (http://dcf.mir.gdynia.pl/?page_id=367) | Q7: N | R7: NA | S7: Software for data accuracy checks has been launched, and is still under development with the new features. | T7: The model and assumptions of the data accuracy checks software have been specified in 2019. The environment has been set up and the first type of a check has been implemented. The new features are still being developed and the information about possible accuracy checks is currently being collected from the available literature. Imputation is not performed at national level but at Stock Data Coordination level. Data are provided to end user "as-is" (as collected, validated and recorded in national database).
A8: POL | B8: POL | C8: 2019 | D8: Baltic Sea | E8: ICES | F8: Demersal at sea and on shore | G8: Vessel list of 154 DTS landing cod in 6 ranked ports | H8: Y | I8: DCF - Sampling Design 2017-2019 - http://dcf.mir.gdynia.pl/?page_id=367 | J8: Y | K8: Y | L8: DataQualityCheck_Description.doc (http://dcf.mir.gdynia.pl/?page_id=367) | M8: NPZDRpl | N8: RDB-FishFrame, Intercatch, JRC | O8: Y | P8: DataQualityCheck_Description.doc (http://dcf.mir.gdynia.pl/?page_id=367) | Q8: N | R8: NA | S8: Software for data accuracy checks has been launched, and is still under development with the new features. | T8: The model and assumptions of the data accuracy checks software have been specified in 2019. The environment has been set up and the first type of a check has been implemented. The new features are still being developed and the information about possible accuracy checks is currently being collected from the available literature. Imputation is not performed at national level but at Stock Data Coordination level. Data are provided to end user "as-is" (as collected, validated and recorded in national database).
A9: POL | B9: POL | C9: 2019 | D9: Baltic Sea | E9: ICES | F9: Demersal at sea and on shore | G9: Vessel list of 251 GNTS landing cod in 12 ranked ports | H9: Y | I9: DCF - Sampling Design 2017-2019 - http://dcf.mir.gdynia.pl/?page_id=367 | J9: Y | K9: Y | L9: DataQualityCheck_Description.doc (http://dcf.mir.gdynia.pl/?page_id=367) | M9: NPZDRpl | N9: RDB-FishFrame, Intercatch, JRC | O9: Y | P9: DataQualityCheck_Description.doc (http://dcf.mir.gdynia.pl/?page_id=367) | Q9: N | R9: NA | S9: Software for data accuracy checks has been launched, and is still under development with the new features. | T9: The model and assumptions of the data accuracy checks software have been specified in 2019. The environment has been set up and the first type of a check has been implemented. The new features are still being developed and the information about possible accuracy checks is currently being collected from the available literature. Imputation is not performed at national level but at Stock Data Coordination level. Data are provided to end user "as-is" (as collected, validated and recorded in national database)
A10: POL | B10: POL | C10: 2019 | D10: Baltic Sea | E10: ICES | F10: Demersal at sea and on shore | G10: Vessel list of 101 DTS landing flatfish in 5 ranked ports | H10: Y | I10: DCF - Sampling Design 2017-2019 - http://dcf.mir.gdynia.pl/?page_id=367 | J10: Y | K10: Y | L10: DataQualityCheck_Description.doc (http://dcf.mir.gdynia.pl/?page_id=367) | M10: NPZDRpl | N10: RDB-FishFrame, Intercatch, JRC | O10: Y | P10: DataQualityCheck_Description.doc (http://dcf.mir.gdynia.pl/?page_id=367) | Q10: N | R10: NA | S10: Software for data accuracy checks has been launched, and is still under development with the new features. | T10: The model and assumptions of the data accuracy checks software have been specified in 2019. The environment has been set up and the first type of a check has been implemented. The new features are still being developed and the information about possible accuracy checks is currently being collected from the available literature. Imputation is not performed at national level but at Stock Data Coordination level. Data are provided to end user "as-is" (as collected, validated and recorded in national database).
A11: POL | B11: POL | C11: 2019 | D11: Baltic Sea | E11: ICES | F11: Demersal at sea and on shore | G11: Vessel list of 361 GNTS landing cod in 23 ranked ports | H11: Y | I11: DCF - Sampling Design 2017-2019 - http://dcf.mir.gdynia.pl/?page_id=367 | J11: Y | K11: Y | L11: DataQualityCheck_Description.doc (http://dcf.mir.gdynia.pl/?page_id=367) | M11: NPZDRpl | N11: RDB-FishFrame, Intercatch, JRC | O11: Y | P11: DataQualityCheck_Description.doc (http://dcf.mir.gdynia.pl/?page_id=367) | Q11: N | R11: NA | S11: Software for data accuracy checks has been launched, and is still under development with the new features. | T11: The model and assumptions of the data accuracy checks software have been specified in 2019. The environment has been set up and the first type of a check has been implemented. The new features are still being developed and the information about possible accuracy checks is currently being collected from the available literature. Imputation is not performed at national level but at Stock Data Coordination level. Data are provided to end user "as-is" (as collected, validated and recorded in national database).
A12: POL | B12: POL | C12: 2019 | D12: Baltic Sea | E12: ICES | F12: Pelagic at sea and on shore | G12: Vessel list of 121 PTS landing sprat in 6 ranked ports | H12: Y | I12: DCF - Sampling Design 2017-2019 - http://dcf.mir.gdynia.pl/?page_id=367 | J12: Y | K12: Y | L12: DataQualityCheck_Description.doc (http://dcf.mir.gdynia.pl/?page_id=367) | M12: NPZDRpl | N12: RDB-FishFrame, Intercatch, JRC | O12: Y | P12: DataQualityCheck_Description.doc (http://dcf.mir.gdynia.pl/?page_id=367) | Q12: N | R12: NA | S12: Software for data accuracy checks has been launched, and is still under development with the new features. | T12: The model and assumptions of the data accuracy checks software have been specified in 2019. The environment has been set up and the first type of a check has been implemented. The new features are still being developed and the information about possible accuracy checks is currently being collected from the available literature. Imputation is not performed at national level but at Stock Data Coordination level. Data are provided to end user "as-is" (as collected, validated and recorded in national database).
A13: POL | B13: POL | C13: 2019 | D13: Baltic Sea | E13: ICES | F13: Pelagic at sea and on shore | G13: Vessel list of 15 PTS landing herring in 1 ranked port | H13: Y | I13: DCF - Sampling Design 2017-2019 - http://dcf.mir.gdynia.pl/?page_id=367 | J13: Y | K13: Y | L13: DataQualityCheck_Description.doc (http://dcf.mir.gdynia.pl/?page_id=367) | M13: NPZDRpl | N13: RDB-FishFrame, Intercatch, JRC | O13: Y | P13: DataQualityCheck_Description.doc (http://dcf.mir.gdynia.pl/?page_id=367) | Q13: N | R13: NA | S13: Software for data accuracy checks has been launched, and is still under development with the new features. | T13: The model and assumptions of the data accuracy checks software have been specified in 2019. The environment has been set up and the first type of a check has been implemented. The new features are still being developed and the information about possible accuracy checks is currently being collected from the available literature. Imputation is not performed at national level but at Stock Data Coordination level. Data are provided to end user "as-is" (as collected, validated and recorded in national database).
A14: POL | B14: POL | C14: 2019 | D14: Baltic Sea | E14: ICES | F14: Pelagic at sea and on shore | G14: Vessel list of 18 boats landing herring in 3 ranked port | H14: Y | I14: DCF - Sampling Design 2017-2019 - http://dcf.mir.gdynia.pl/?page_id=367 | J14: Y | K14: Y | L14: DataQualityCheck_Description.doc (http://dcf.mir.gdynia.pl/?page_id=367) | M14: NPZDRpl | N14: RDB-FishFrame, Intercatch, JRC | O14: Y | P14: DataQualityCheck_Description.doc (http://dcf.mir.gdynia.pl/?page_id=367) | Q14: N | R14: NA | S14: Software for data accuracy checks has been launched, and is still under development with the new features. | T14: The model and assumptions of the data accuracy checks software have been specified in 2019. The environment has been set up and the first type of a check has been implemented. The new features are still being developed and the information about possible accuracy checks is currently being collected from the available literature. Imputation is not performed at national level but at Stock Data Coordination level. Data are provided to end user "as-is" (as collected, validated and recorded in national database).
A15: POL | B15: POL | C15: 2019 | D15: Baltic Sea | E15: ICES | F15: Pelagic at sea and on shore | G15: Vessel list of 100 PTS landing herring in 4 ranked port | H15: Y | I15: DCF - Sampling Design 2017-2019 - http://dcf.mir.gdynia.pl/?page_id=367 | J15: Y | K15: Y | L15: DataQualityCheck_Description.doc (http://dcf.mir.gdynia.pl/?page_id=367) | M15: NPZDRpl | N15: RDB-FishFrame, Intercatch, JRC | O15: Y | P15: DataQualityCheck_Description.doc (http://dcf.mir.gdynia.pl/?page_id=367) | Q15: N | R15: NA | S15: Software for data accuracy checks has been launched, and is still under development with the new features. | T15: The model and assumptions of the data accuracy checks software have been specified in 2019. The environment has been set up and the first type of a check has been implemented. The new features are still being developed and the information about possible accuracy checks is currently being collected from the available literature. Imputation is not performed at national level but at Stock Data Coordination level. Data are provided to end user "as-is" (as collected, validated and recorded in national database).
A16: POL | B16: POL | C16: 2019 | D16: Baltic Sea | E16: ICES | F16: Pelagic at sea and on shore | G16: Vessel list of 90 boats landing herring in 14 ranked port | H16: Y | I16: DCF - Sampling Design 2017-2019 - http://dcf.mir.gdynia.pl/?page_id=367 | J16: Y | K16: Y | L16: DataQualityCheck_Description.doc (http://dcf.mir.gdynia.pl/?page_id=367) | M16: NPZDRpl | N16: RDB-FishFrame, Intercatch, JRC | O16: Y | P16: DataQualityCheck_Description.doc (http://dcf.mir.gdynia.pl/?page_id=367) | Q16: N | R16: NA | S16: Software for data accuracy checks has been launched, and is still under development with the new features. | T16: The model and assumptions of the data accuracy checks software have been specified in 2019. The environment has been set up and the first type of a check has been implemented. The new features are still being developed and the information about possible accuracy checks is currently being collected from the available literature. Imputation is not performed at national level but at Stock Data Coordination level. Data are provided to end user "as-is" (as collected, validated and recorded in national database).
A17: POL | B17: POL | C17: 2019 | D17: Baltic Sea | E17: ICES | F17: Freshwater and eel at sea and on shore | G17: Vessel list of 94 boats landing freshwater species and eel in 8 ranked port | H17: Y | I17: DCF - Sampling Design 2017-2019 - http://dcf.mir.gdynia.pl/?page_id=367 | J17: Y | K17: Y | L17: DataQualityCheck_Description.doc (http://dcf.mir.gdynia.pl/?page_id=367) | M17: NPZDRpl | N17: RDB-FishFrame, Intercatch, JRC | O17: Y | P17: DataQualityCheck_Description.doc (http://dcf.mir.gdynia.pl/?page_id=367) | Q17: N | R17: NA | S17: Software for data accuracy checks has been launched, and is still under development with the new features. | T17: The model and assumptions of the data accuracy checks software have been specified in 2019. The environment has been set up and the first type of a check has been implemented. The new features are still being developed and the information about possible accuracy checks is currently being collected from the available literature. Imputation is not performed at national level but at Stock Data Coordination level. Data are provided to end user "as-is" (as collected, validated and recorded in national database).
A18: POL | B18: POL | C18: 2019 | D18: Baltic Sea | E18: ICES | F18: Freshwater and eel at sea and on shore | G18: Vessel list of 239 boats landing freshwater species and eel in 20 ranked port | H18: Y | I18: DCF - Sampling Design 2017-2019 - http://dcf.mir.gdynia.pl/?page_id=367 | J18: Y | K18: Y | L18: DataQualityCheck_Description.doc (http://dcf.mir.gdynia.pl/?page_id=367) | M18: NPZDRpl | N18: RDB-FishFrame, Intercatch, JRC | O18: Y | P18: DataQualityCheck_Description.doc (http://dcf.mir.gdynia.pl/?page_id=367) | Q18: N | R18: NA | S18: Software for data accuracy checks has been launched, and is still under development with the new features. | T18: The model and assumptions of the data accuracy checks software have been specified in 2019. The environment has been set up and the first type of a check has been implemented. The new features are still being developed and the information about possible accuracy checks is currently being collected from the available literature. Imputation is not performed at national level but at Stock Data Coordination level. Data are provided to end user "as-is" (as collected, validated and recorded in national database).
A19: POL | B19: POL | C19: 2019 | D19: Baltic Sea | E19: ICES | F19: Salmonids at sea and on shore | G19: Vessel list of 165 boats landing salmonids species in 10 ranked port | H19: Y | I19: DCF - Sampling Design 2017-2019 - http://dcf.mir.gdynia.pl/?page_id=367 | J19: Y | K19: Y | L19: DataQualityCheck_Description.doc (http://dcf.mir.gdynia.pl/?page_id=367) | M19: NPZDRpl | N19: RDB-FishFrame, Intercatch, JRC | O19: Y | P19: DataQualityCheck_Description.doc (http://dcf.mir.gdynia.pl/?page_id=367) | Q19: N | R19: NA | S19: Software for data accuracy checks has been launched, and is still under development with the new features. | T19: The model and assumptions of the data accuracy checks software have been specified in 2019. The environment has been set up and the first type of a check has been implemented. The new features are still being developed and the information about possible accuracy checks is currently being collected from the available literature. Imputation is not performed at national level but at Stock Data Coordination level. Data are provided to end user "as-is" (as collected, validated and recorded in national database).
A20: POL | B20: POL | C20: 2019 | D20: Baltic Sea | E20: ICES | F20: Salmonids at sea and on shore | G20: Vessel list of 51 longliners landing salmon in 4 ranked port | H20: Y | I20: DCF - Sampling Design 2017-2019 - http://dcf.mir.gdynia.pl/?page_id=367 | J20: Y | K20: Y | L20: DataQualityCheck_Description.doc (http://dcf.mir.gdynia.pl/?page_id=367) | M20: NPZDRpl | N20: RDB-FishFrame, Intercatch, JRC | O20: Y | P20: DataQualityCheck_Description.doc (http://dcf.mir.gdynia.pl/?page_id=367) | Q20: N | R20: NA | S20: Software for data accuracy checks has been launched, and is still under development with the new features. | T20: The model and assumptions of the data accuracy checks software have been specified in 2019. The environment has been set up and the first type of a check has been implemented. The new features are still being developed and the information about possible accuracy checks is currently being collected from the available literature. Imputation is not performed at national level but at Stock Data Coordination level. Data are provided to end user "as-is" (as collected, validated and recorded in national database).
A21: POL | B21: POL | C21: 2019 | D21: Baltic Sea | E21: ICES | F21: At sea cod recreational fishery | G21: Angling with LHP on boats | H21: Y | I21: Sampling Plan - cod recreational - POL DCF (http://dcf.mir.gdynia.pl/?page_id=367) | J21: Y | K21: Y | L21: DataQualityCheck_Description.doc (http://dcf.mir.gdynia.pl/?page_id=367) | M21: NPZDRpl | N21: WGRFS | O21: N | P21: NA | Q21: N | R21: NA | S21: Types of accuracy checks for recreational fishery have not been identified. | T21: Imputation is not performed at national level. Data delivered to the ICS WGRFS. See Text Box 1D for comments.
A22: POL | B22: POL | C22: 2019 | D22: North Sea and Eastern Arctic | E22: ICES | F22: at sea | G22: 1 trawler targeting cod | H22: Y | I22: "DCF - Sampling Design and Plan description - Demersal - NS&EA" - at: http://dcf.mir.gdynia.pl/?page_id=367 | J22: N | K22: Y | L22: DataQualityCheck_Description.doc (http://dcf.mir.gdynia.pl/?page_id=367) | M22: NPZDRpl | N22: RDB-FishFrame, Intercatch, JRC | O22: Y | P22: DataQualityCheck_Description.doc (http://dcf.mir.gdynia.pl/?page_id=367) | Q22: N | R22: NA | S22: Software for data accuracy checks has been launched, and is still under development with the new features. | T22: The model and assumptions of the data accuracy checks software have been specified in 2019. The environment has been set up and the first type of a check has been implemented. The new features are still being developed and the information about possible accuracy checks is currently being collected from the available literature. Non-responses and refusal are not applicable (one vessel involved). Imputation is not performed at national level but at Stock Data Coordination level. Data are provided to end user "as-is" (as collected,validated and recorded in national database).
A23: POL | B23: DEU - LTU -LVA - NLD - POL | C23: 2019 | D23: other regions | E23: CECAF | F23: at sea | G23: Pelagic trawlers fishing in CECAF | H23: Y | I23: "Biological Data Collection of pelagic fisheries in CECAF waters " at: http://dcf.mir.gdynia.pl/?page_id=367 | J23: NA | K23: Y | L23: DataQualityCheck_Description.doc (http://dcf.mir.gdynia.pl/?page_id=367) | M23: NA | N23: CECAF WG (FAO Working Group on the Assessment of Small Pelagic Fish off Northwest Africa) | O23: Y | P23: DataQualityCheck_Description.doc (http://dcf.mir.gdynia.pl/?page_id=367) | Q23: NA | R23: NA | S23: Software for data accuracy checks has been launched, and is still under development with the new features. | T23: The model and assumptions of the data accuracy checks software have been specified in 2019. The environment has been set up and the first type of a check has been implemented. The new features are still being developed and the information about possible accuracy checks is currently being collected from the available literature. Data collection coordinated and executed by POL and data provision executed by NLD under joint sampling programme based on multilateral agreement (see Table 7C). Data collected in CECAF areas are being converted into the national database format.
A24: POL | B24: DEU - LTU - NLD - POL | C24: 2019 | D24: other regions | E24: SPRFMO | F24: at sea | G24: Pelagic trawlers fishing in SPRFMO | H24: Y | I24: SPRFMO Observer Programme (COM 16-2018), SPRFMO Data Standards (COM 02-2018) at: https://www.sprfmo.int/measures/superseded-cmms/ | J24: NA | K24: Y | L24: DataQualityCheck_Description.doc (http://dcf.mir.gdynia.pl/?page_id=367) | M24: Temporary database in Excel | N24: Internal SPRFMO database | O24: Y | P24: DataQualityCheck_Description.doc (http://dcf.mir.gdynia.pl/?page_id=367) | Q24: N | R24: NA | S24: Software for data accuracy checks has been launched, and is still under development with the new features. | T24: The model and assumptions of the data accuracy checks software have been specified in 2019. The environment has been set up and the first type of a check has been implemented. The new features are still being developed and the information about possible accuracy checks is currently being collected from the available literature. Non-responses and refusal are not applicable for the SPRMFO area. Imputation is not performed at national level. Data delivered to the SPRFMO Secretariat and Scientific Committee. National database during modification to enable storage of data from SPRFMO. Data collection and provision coordinated by POL under joint sampling programme based on multilateral agreement (see Table 7C).
A25: POL | B25: POL | C25: 2019 | D25: ODER EMU | E25: ICES | F25: Anguilla anguilla*sampling | G25: NA | H25: Y | I25: Sampling design Diadromous (http://dcf.mir.gdynia.pl/?page_id=367) | J25: NA | K25: N | L25: NA | M25: Temporary database in Excel | N25: WGEEL database | O25: N | P25: NA | Q25: N | R25: NA | T25: Imputation is not performed at national level. Data delivered to the ICES WGEEL
A26: POL | B26: POL | C26: 2019 | D26: VISTULA EMU | E26: ICES | F26: Anguilla anguilla*sampling | G26: NA | H26: Y | I26: Sampling design Diadromous (http://dcf.mir.gdynia.pl/?page_id=367) | J26: NA | K26: N | L26: NA | M26: Temporary database in Excel | N26: WGEEL database | O26: N | P26: NA | Q26: N | R26: NA | T26: Imputation is not performed at national level. Data delivered to the ICES WGEEL
A27: POL | B27: POL | C27: 2019 | D27: ODER EMU | E27: ICES | F27: Anguilla anguilla*trap | G27: NA | H27: Y | I27: Sampling design Diadromous (http://dcf.mir.gdynia.pl/?page_id=367) | J27: NA | K27: N | L27: NA | M27: Temporary database in Excel | N27: WGEEL database | O27: N | P27: NA | Q27: N | R27: NA | T27: Imputation is not performed at national level. Data delivered to the ICES WGEEL
A28: POL | B28: POL | C28: 2019 | D28: VISTULA EMU | E28: ICES | F28: Anguilla anguilla*trap | G28: NA | H28: Y | I28: Sampling design Diadromous (http://dcf.mir.gdynia.pl/?page_id=367) | J28: NA | K28: N | L28: NA | M28: Temporary database in Excel | N28: WGEEL database | O28: N | P28: NA | Q28: N | R28: NA | T28: Imputation is not performed at national level. Data delivered to the ICES WGEEL
A29: POL | B29: POL | C29: 2019 | D29: ODER EMU | E29: ICES | F29: Anguilla anguilla*electrofishing | G29: NA | H29: Y | I29: Sampling design Diadromous (http://dcf.mir.gdynia.pl/?page_id=367) | J29: NA | K29: N | L29: NA | M29: Temporary database in Excel | N29: WGEEL database | O29: N | P29: NA | Q29: N | R29: NA | T29: The quality of electrofishing is currently being assessed by RCG Diadromous
A30: POL | B30: POL | C30: 2019 | D30: VISTULA EMU | E30: ICES | F30: Anguilla anguilla*electrofishing | G30: NA | H30: Y | I30: Sampling design Diadromous (http://dcf.mir.gdynia.pl/?page_id=367) | J30: NA | K30: N | L30: NA | M30: Temporary database in Excel | N30: WGEEL database | O30: N | P30: NA | Q30: N | R30: NA | T30: The quality of electrofishing is currently being assessed by RCG Diadromous
A31: POL | B31: POL | C31: 2019 | D31: Baltic Sea | E31: ICES | F31: Salmo trutta*sampling | G31: NA | H31: Y | I31: Sampling design Diadromous (http://dcf.mir.gdynia.pl/?page_id=367) | J31: NA | K31: N | L31: NA | M31: Temporary database in Excel | N31: WGBAST database | O31: N | P31: NA | Q31: N | R31: NA | T31: Imputation is not performed at national level. Data delivered to the ICS WGBAST
A32: POL | B32: POL | C32: 2019 | D32: Baltic Sea | E32: ICES | F32: Salmo trutta*electrofishing | G32: NA | H32: Y | I32: Sampling design Diadromous (http://dcf.mir.gdynia.pl/?page_id=367) | J32: NA | K32: N | L32: NA | M32: Temporary database in Excel | N32: WGBAST database | O32: N | P32: NA | Q32: N | R32: NA | T32: The quality of electrofishing is currently being assessed by RCG Diadromous

Sheet Table5B Quality assurance frame
A1: Table 5B: Quality assurance framework for socio-economic data
AF2: WP years | AG2: 2017-2019
AF3: AR year | AG3: 2019
H4: Institutional environment | M4: Statistical processes | W4: Statistical Outputs
H5: P3 Impartiality and objectiveness | J5: P4 Confidentiality | M5: P5 Sound methodology | P5: P6 Appropriate statistical procedures | U5: P7 Non-excessive burden on respondents | V5: P8 Cost effectiveness | W5: P9 Relevance | X5: P10 Accuracy and reliability | Z5: P11 Timeliness and punctuality | AA5: P12 coherence and comparability | AC5: P13 Accessibility and Clarity | AF5: Comments | AG5: AR Comments
A6: MS | B6: Sector Name | C6: Sampling year/ period | D6: Region | E6: RFMO/RFO/IO/NSB | F6: Type of data collection scheme | G6: Data Sources | H6: Statistically sound sources and methods | I6: Error checking | J6: Are procedures for confidential data handling in place and documented? | K6: Are protocols to enforce confidentiality between DCF partners in place and documented? | L6: Are protocols to enforce confidentiality with external users in place and documented? | M6: Is sound methodology documented ? | N6: Does it follow international standards, guidelines and best practices? | O6: Are methodologies consistent at MS, regional and EU level? | P6: Is there consistency between administrative and other statistical data? | Q6: Are there agreements for access and quality of administrative data between partners? | R6: Are data collection, entry and coding checked? | S6: Are editing and imputation methods used and checked? | T6: Are revisions documented and available? | U6: Is duplication of data collection avoided? | V6: Do automatic techniques for data capture, data coding and validation exist? | W6: Are end-users listed and updated? | X6: Are sources, intermediate results and outputs regularly assessed and validated? | Y6: Are errors measured and documented? | Z6: Are procedures in place to ensure timely execution? | AA6: Are procedures in place to monitor internal coherence? | AB6: Are statistics comparable over time? | AC6: Are methodological documents publicly available? | AD6: Are data stored in databases? | AE6: Where can documentation be found?
A7: POL | B7: Fishing | C7: 2017-2019 | D7: All regions | E7: agencies, institutions dealing with socioeconomic statistics | F7: Census, estimation | G7: questionairres, logbooks, first sale documents, Fleet register | H7: Y | I7: Y | J7: Y | K7: Y | L7: Y | M7: Y | N7: Y | O7: Y | P7: Y | Q7: Y | R7: Y | S7: Y | T7: Y | U7: Y | V7: Y | W7: Y | X7: Y | Y7: Y | Z7: Y | AA7: Y | AB7: Y | AC7: Y | AD7: Y | AE7: National law on public statistics and statistical surveys (http://isap.sejm.gov.pl/isap.nsf/download.xsp/WDU20160001426/O/D20161426.pdf); National regulation on the formats of reporting and statistical questionairres and rules of reporting data (http://prawo.sejm.gov.pl/isap.nsf/DocDetails.xsp?id=WDU20170000837); National formats and rules on reporting catch, landings, effort (http://www.cmr.gov.pl/index.html#header3-4)
A8: POL | B8: Processing | C8: 2017-2019 | D8: All regions | E8: agencies, institutions dealing with socioeconomic statistics | F8: Census, estimation | G8: questionairres | H8: Y | I8: Y | J8: Y | K8: NA | L8: Y | M8: Y | N8: Y | O8: Y | P8: Y | Q8: NA | R8: Y | S8: Y | T8: Y | U8: Y | V8: Y | W8: Y | X8: Y | Y8: Y | Z8: Y | AA8: Y | AB8: Y | AC8: Y | AD8: Y

Sheet Table6A_Data_availability
A1: Table 6A: Data availability
I2: WP years | J2: 2017-2019
I3: AR year | J3: 2019
A4: MS | B4: Data set | C4: Section | D4: Variable group | E4: Year(s) of WP implementation | F4: Reference year | G4: Final data available after | H4: Comments | I4: Date when data was available | J4: AR Comments
A5: POL | B5: Fleet economic | C5: 3A | D5: Revenue/costs | E5: 2017-2019 | F5: N-1 | G5: N+1, November 30 | I5: February 15, 2020 | J5: N = 2019
A6: POL | B6: Aquaculture economic | H6: Based on the data until 2015, according to classification of aquaculture activities by Eurostat statistics, Poland has no marine aquaculture sector. Hence, no sampling is planned | I6: NA | J6: N = 2019
A7: POL | B7: Fishing Activity Variable | C7: 3A | D7: capacity | E7: 2017-2019 | F7: N | G7: N+1, January 31 | I7: February 15, 2020 | J7: N = 2019
A8: POL | B8: Fishing Activity Variable | C8: 3A | D8: landings | E8: 2017-2019 | F8: N | G8: N+1, March 31 | I8: March 31, 2020 | J8: N = 2019
A9: POL | B9: Fish processing economic | C9: 3C | D9: all | E9: 2017-2019 | F9: N-1 | G9: N+1, November 30 | I9: February 15, 2020 | J9: N = 2019
A10: POL | B10: Biological variables | C10: 1C | D10: all | E10: 2017-2019 | F10: N | G10: N+1, March 31 | I10: March 31, 2020 | J10: By ommission not included in WP and spotted during the evaluation of AR 2017 (N=2019)
A11: POL | B11: Recreational Fisheries | C11: 1D | D11: all | E11: 2017-2019 | F11: N-1 | G11: N, May 31 | I11: May 31, 2019
A12: POL | B12: Anadromous and catadromous species | C12: 1E | D12: all | E12: 2017-2019 | F12: N | G12: N+1, March 15 | I12: March 15, 2020
A13: POL | B13: Incidental by-catch | C13: 1F | D13: all | E13: 2017-2019 | F13: N | G13: N+1, March 31 | I13: March 31, 2020
A14: POL | B14: Research surveys at sea | C14: 1H | D14: all | E14: 2017-2019 | F14: N | G14: N+1, March 31 | I14: March 31, 2020
A15: POL | B15: Pilot Study 1 | C15: 1D | D15: all | E15: 2017-2019 | F15: N | G15: N+2, April 30 | I15: NA

Sheet Table7A_Planned Regional_coord
A1: Table 7A: Planned regional and international coordination
G2: WP years | H2: 2017-2019
G3: AR year | H3: 2019
A4: MS | B4: Acronym | C4: Name of meeting | D4: RFMO/RFO/IO | E4: Planned MS participation | F4: Comments | G4: Number of participants | H4: AR Comments
A5: POL | B5: RCM Baltic | C5: Regional Coordination Meeting for the Baltic Sea | E5: X | G5: 2
A6: POL | B6: RCM NS&EA | C6: Regional Coordination Meeting for the North Sea and Eastern Arctic | E6: X | G6: 1
A7: POL | B7: RCM LDF | C7: Regional Coordination Meeting for the Long Distance Fisheries | E7: X | G7: 1
A8: POL | B8: EGFDC | C8: Expert Group on Fisheries Data Collection | E8: X | G8: 1 | H8: LM and NC meeting
A9: POL | B9: PGECON | C9: Planning Group on Economic Issues | E9: X | G9: 2
A10: POL | B10: PGDATA | C10: Planning Group on Data Needs for Assessment and Advice | D10: ICES | E10: X | H10: Not attended due to the experienced staff shortage at the time of the meeting.
A11: POL | B11: WGBIOP | C11: Working Group on Biological Parameters | D11: ICES | E11: X | G11: 2
A12: POL | B12: WGEEL | C12: Working Group on Eel | D12: ICES | E12: X | G12: 2
A13: POL | B13: WGBAST | C13: Working Group on Baltic Salmon and Trout | D13: ICES | E13: X | G13: 2
A14: POL | B14: WGRFS | C14: Working Group on Recreational Fisheries Surveys | D14: ICES | E14: X | G14: 2
A15: POL | B15: WGCATCH | C15: Working Group on Commercial Catches | D15: ICES | E15: X | G15: 3
A16: POL | B16: WGBIFS | C16: Working Group on Baltic International Fish Survey | D16: ICES | E16: X | G16: 2
A17: POL | B17: WGBFAS | C17: Baltic Fisheries Assessment Working Group | D17: ICES | E17: X | G17: 3
A18: POL | B18: WGCHAIRS | C18: Annual Meeting of Advisory Working Groups Chairs | D18: ICES | E18: X | H18: N.A. (no WG chair from POL in 2019)
A19: POL | B19: WGBYC | C19: Working Group on Bycatch of Protected Species | D19: ICES | E19: X | G19: 1
A20: POL | B20: WGBIOP | C20: Working Group on Biological Parameters | D20: ICES | E20: X | H20: Double entry in WP (already included in row 11)
A21: POL | B21: WGSFD | C21: Working Group on Spatial Fisheries Data | D21: ICES | E21: X | G21: 1
A22: POL | B22: DIG | C22: Data and Information Group | D22: ICES | E22: X | G22: 1
A23: POL | B23: WKRDB | C23: Workshop on Regional Data Base | D23: ICES | E23: X | H23: See rows 33 and 38-40 below for details
A24: POL | B24: WKBaltSalmon | C24: Baltic salmon Benchmark WKBaltSalmon | D24: ICES | E24: X | H24: No meeting in 2019
A25: POL | B25: WGZE | C25: ICES Working Group on Zooplankton Ecology | D25: ICES | G25: 1 | H25: Not listed in WP
A26: POL | B26: WGOH | C26: ICES Working Group on Oceanic Hydrography | D26: ICES | G26: 1 | H26: Not listed in WP
A27: POL | B27: SCRDB | C27: Steering Committee for the Regional Database & Estimation System | D27: ICES | G27: 1 | H27: Not listed in WP
A28: POL | B28: WGML | C28: Working Group on Marine Litter | D28: ICES | G28: 1 | H28: Not listed in WP
A29: POL | B29: WKBALTCOD2 | C29: Benchmark workshop for Baltic Cod | D29: ICES | G29: 1 | H29: Not listed in WP
A30: POL | B30: WKBECOSS | C30: ICES Workshop on Better Coordinated Sampling Stomachs | D30: ICES | G30: 2 | H30: Not listed in WP
A31: POL | B31: WKVALPEL | C31: Workshop on age validation studies of small pelagic species | D31: ICES | G31: 1 | H31: Not listed in WP
A32: POL | B32: RDBES Core Group | C32: Core Group for the Regional Database & Estimation System | G32: 2 | H32: Not listed in WP. One physical meeting and 11 online (virtual) meetings in 2019
A33: POL | B33: WKRDB-EST | C33: Workshop on Estimation with the RDBES data model | D33: ICES | G33: 2 | H33: Not listed in WP
A34: POL | B34: WKRDB-POP | C34: The Workshop on Populating the RDBES data model | D34: ICES | G34: 2 | H34: Not listed in WP
A35: POL | B35: RCG ISSG | C35: RCGs Intersessional Group on input to the revision of the EU-MAP | G35: 1 | H35: Not listed in WP
A36: POL | B36: RCG ISSG | C36: RCGs Intersessional Group on Baltic Small Pelagic Workshop | G36: 1 | H36: Not listed in WP
A37: POL | B37: RCG ISSG | C37: RCG ISSG on Data Quality | G37: 1 | H37: Not listed in WP. A number of online meetings via Skype
A38: POL | B38: RCG ISSG | C38: RCG ISSG on Metier issues | G38: 1 | H38: Not listed in WP. A number of online meetings via Skype
A39: POL | B39: WKAREA3 | C39: Workshop on eel age reading calibration | D39: ICES | G39: 2 | H39: Not listed in WP

Sheet Table7B_Follow up of Recommenda
A1: Table 7B: Follow-up of recommendations and agreements
J2: WP years | K2: 2017-2019
J3: AR year | K3: 2019
A4: MS | B4: Region | C4: RFMO/RFO/IO | D4: Source | E4: Section | F4: Topic | G4: Recommendation number | H4: Recommendation/ Agreement | I4: Follow-up action | J4: Comments | K4: MS action taken
A5: POL | B5: Baltic Sea | C5: ICES | D5: LM 2012 | E5: VII.C | F5: Metier related variables | G5: RCM Baltic 2012 | H5: MS should upload all landing data into the Regional Data Base allow-ing the RCM to analyse the possible needs for bilateral agreements. The RCMs should each year perform an analysis on landings in for-eign countries and conclude where bilateral agreements need to be made. MS should set up agreements, fixing the details of sampling, compilation and submission of data in each case when it is indicated by the RCM that a bilateral agreement is needed. To include the agreed analysis in FishFrame would be very convenient and time saving. MS should set up agreements, fixing the details of sampling, compi-lation and submission of data in each case it is concluded by the RCM that a bilateral agreement is needed. | I5: Poland follows the recommendation. Bilateral agreements were set in 2011 with Sweden and in 2013 with Denmark. | K5: Fulfilled. No action needed
A6: POL | B6: Baltic Sea | C6: ICES | D6: LM 2012 | E6: IV | F6: Metier related variables | G6: RCM Baltic 2012 | H6: To ensure possibilities for adequate sampling of biological and métier related data including landings in foreign MS, national institutes need to have online access to national logbook data and national VMS data. | I6: Fulfilled | K6: No action needed
A7: POL | B7: Other regions | C7: CECAF | D7: RCM LDF 2011 | E7: VII.C | F7: Sampling programme | G7: RCM LDF 2011 | H7: To implement a joint observer program in the fishery of small pelagic in the CECAF area during the years 2012 and 2013. | I7: Fulfilled | K7: Obsolete - No action needed
A8: POL | B8: Other regions | C8: SPRFMO | D8: RCM LDF 2013 | E8: VII.C | F8: Sampling programme | G8: RCM LDF 2013 | H8: To renew a joint observer program in the pelagic trawl fishery for small pelagic species in the CECAF area for another two years period. | I8: Fulfilled – Amendment extending the joint sampling program for 2014-2015 was signed | K8: Ongoing. Agreement extended for 2019-2020 (http://dcf.mir.gdynia.pl/?page_id=365)
A9: POL | B9: Other regions | C9: SPRFMO | D9: RCM LDF 2013 | E9: VII.C | F9: Sampling programme | G9: RCM LDF 2013 | H9: To implementation of the multilateral agreement on a joint sampling program of fisheries activity in the SPRMFO area | I9: Fulfilled – Agreement signed in 2015 | K9: Ongoing. Agreement extended for 2019-2020 (http://dcf.mir.gdynia.pl/?page_id=365)
A10: POL | B10: All regions (all RCMs) | D10: LM 2013 | E10: V | F10: Quality assurance | G10: LM 12 | H10: MS to document Quality Control and Quality Approach procedures in summary for review at the next RCM. | I10: Fulfilled | K10: Obsolete - No action needed
A11: POL | B11: All regions | D11: LM 2014 | E11: V | F11: Implications of the landing obligation ‑ Scientific data collection and at‑sea sampling | G11: LM 2 | H11: RCM NS&EA recommends that MS maintain scientific schemes for the collection of scientific data for stock assessment and advice. Additionally that the role of scientific observer is not conflated with any monitoring role. Appropriate modifications to at‑sea sampling protocols and recording should be devised for sampling the retained discard fraction. | I11: Partly fulfilled | J11: At‑sea sampling schemes and protocols in place. Recording, storage and estimation process in national database to be solved once RDB is modified | K11: Fulfilled. No action needed
A12: POL | B12: All regions | D12: LM 2014 | E12: V | F12: Implications of the landing obligation ‑ Scientific data storage, IT systems and estimation | G12: LM 3 | H12: RCM NS&EA recommends that scientific institutions and ICES ensure that data recording systems, IT systems and estimation routines are able to appropriately deal with the retained discard fraction. Also, authorities should adjust logbooks and IT systems to Accommodate the accurate recordings of all catch components, including the part that can be released under the de minimis exemptions | I12: Ongoing | J12: Modification of the RDB (ICES) were initated in 2015. The national DB can be modified accordingly once RDB is set-up | K12: Fulfilled. No action needed
A13: POL | B13: All regions | D13: LM 2014 | E13: V | F13: Quality assurance | G13: LM 10 | H13: MS reload all their data in reference to the restricted lists. | I13: Fulfilled | J13: Data for 2011-2014 reloaded in 2015. Data for 2009-2010 reloaded in 2016. | K13: Obsolete - No action needed
